Workbook

Sheet Design Brief
E1: Design Brief
B3: Customer details
B5: Surname | E5: House Number | H5: Poscode
B8: About the space:
B9: Obstructions (Tick all that apply and then take photos and dimensions) | P9: Single Skin
C10: Tie-Bars | F10: Knee Brace | H10: Ridge Brace | J10: Fan | P10: Twin Wall
C11: Decorative Facia | F11: Box Sections | H11: Lights | P11: Unknown
C13: Box Gutter | G13: ↓ | H13: see box gutter guide if you do not know how to identify
B15: Existing Ventilation
C16: Automatic Roof Vents | F16: Manual Roof Vents | I16: AC Unit
C17: Side Opening Windows | F17: Doors Only | I17: Top Opening Windows (All sides)
B19: Sun Exposure Problem | P19: Office
C20: Morning | F20: Afternoon | I20: Evening | P20: TV Room
C21: Summer | F21: Winter | P21: Dining Room
P22: Main Living Room
B23: Main Use | P23: Play Room
E24: ↓ | F24: Other | P24: Garden Room
B27: About the requirements: | P27: Heat
B28: Areas to improve (Rate in order of importance if more than 1) | P28: Glare
P29: Privacy
C30: 1 | E30: ↓ 2 | G30: ↓ 3 | I30: ↓ | J30: Other | P30: Other
B32: I would ideally like this room to be… | P32: I like it quite hot, but not unbearable (Shade and Ventilation)
J33: ↓ | P33: Casual Living Room or Transition Space (Shade and Ventilation)
P34: Everyday Living Room (Full Climate Control)
B35: Coverage/Design
J36: ↓ | P36: Ultimate - 85% (Multiple sails with small gaps)
P37: Complete - 75% (Max coverage standard design)
B38: Additional Features | P38: Full Open - 65% (Point to point sails)
C39: Accent Sails | E39: Two Colour Design | P39: Simple - 85% (Minimum number of sails with max. coverage)
P40: Partial (Specify which areas in your email)
B41: Design Type Required
G42: ↓ | H42: You must select one from drop down list | P42: Free Online Design
P43: Design PDF
B44: Information Attached/In File | P44: Use My Design Sketch (attach to email)
C45: Photos | E45: Obstruction Surveys | H45: Additional Sketch

Sheet Roof Lantern
W1: Main Material | X1: =IF(OR(E13=AC2,E13=AC3,E13=AC4,E13=AC5,E13=AC6,E13=AC7),5,IF(OR(E13=AC8,E13=AC9,E13=AC10,E13=AC11,E13=AC12,E13=AC13,E13=AC14,E13=AC15,E13=AC16,E13=AC17),6,IF(OR(E13=AC18,E13=AC19,E13=AC20,E13=AC21,E13=AC22,E13=AC23,E13=AC24),7.2,))) -> 6 | Y1: Material cost | Z1: 11.35 | AA1: Sails | AC1: Fabric Colour | AE1: Fittings Colours
H2: These sails are designed to work either flat or twisted and be fitted into a box out or an orangery roof. | W2: Tri Material | X2: =IF(OR(E14=AC2,E14=AC3,E14=AC4,E14=AC5,E14=AC6,E14=AC7),5,IF(OR(E14=AC8,E14=AC9,E14=AC10,E14=AC11,E14=AC12,E14=AC13,E14=AC14,E14=AC15,E14=AC16,E14=AC17),6,IF(OR(E14=AC18,E14=AC19,E14=AC20,E14=AC21,E14=AC22,E14=AC23,E14=AC24),7.2,))) -> 6 | Y2: PE | Z2: 2.5 | AA2: 1 | AC2: ISX Solid | AD2: 5 | AE2: Stainless steel
Y3: PN | Z3: 3.5 | AA3: 2 | AC3: ISX White | AE3: White
D4: Number of sails | E4: 1 | Y4: IP | Z4: 2 | AA4: 3 | AC4: ISX Solid Ivory | AE4: Gold
D5: Left triangle sail | E5: No | Y5: No. of vents | AC5: ISX Solid Oyster
D6: Right triangle sail | E6: No | W6: Shape | X6: =IF(AA9=W7,X7,IF(AA9=W8,X8,IF(AA9=W9,X9))) -> 1 | Y6: 0 | AC6: ISX Solid Sand
W7: Triangle | X7: 0.6 | Y7: 1 | AC7: ISX Solid Stone
D8: Reduce left gap size | E8: 1 | W8: Diamond | X8: 0.6 | Y8: 2 | Z8: No. of corners | AA8: 4 | AC8: ISX Duplex | AD8: 6
D9: Reduce right gap size | E9: 1 | W9: Other | X9: 1 | Y9: 3 | Z9: Shape | AA9: Other | AC9: ISX Duplex Ocean
B10: All dims in mm | D10: Total additional fittings | E10: 4 | W10: Overlap left | X10: =IF(E8=W11,X11,IF(E8=W12,X12,IF(E8=W13,X13))) -> 0 | Y10: 4 | Z10: Curve allowance | AA10: 0.5 | AC10: ISX Duplex Forest
A11: Length | B11: 3000 | D11: Total straight edges | E11: 0 | W11: Standard | X11: 0 | Y11: Triangles | Z11: Roof area | AA11: =AA14*Z30 -> 1 | AC11: ISX Duplex Stone
A12: Width | B12: 3000 | W12: 0.5 | X12: =IF(E4=1,0,IF(E4=2,(X28/2)+AA19,IF(E4=3,(X28*0.67)+AA19))) -> 0 | Y12: No | Z12: Area of each sail | AA12: =AA11/E4 -> 1 | AC12: ISX Duplex Slate
A13: Depth | B13: 800 | D13: Colour of main sails | E13: ISX Duplex Ocean | W13: 1 | X13: =IF(E4=1,0,IF(E4=2,X28+AA19,IF(E4=3,(X28*1.34)+AA19))) -> 0 | Y13: Yes | Z13: Sail perimeter | AA13: =((AA15+0.07)*2)+((AA16+0.07)*2) -> 4.186666667 | AC13: ISX Duplex Graphite
D14: Colour of triangles | E14: ISX Duplex Ocean | W14: Overlap right | X14: =IF(E4=AA3,X10,IF(E9=W11,X11,IF(E9=W12,X12,IF(E9=W13,X13)))) -> 0 | Y14: Warnings | Z14: Glazing bar length | AA14: =SQRT((Z29-Z28)^2+Z31^2) -> 1 | AC14: ISXFR Solid | AD14: 6
D15: Colour of fittings | E15: Stainless steel | W15: Warning 1 | X15: Warning: Sail too narrow, increase no. of sails, add additional fitting points or reduce gap size | Y15: =MAX(X21:Z21) -> 3 | Z15: Length of sail | AA15: =AA14-(0.07/(IF(B11>B12,B11,B12)/1000)) -> 0.9766666667 | AC15: ISXFR White
W16: Warning 2 | X16: Warning: Sail too narrow, decrease no. of sails, add additional fitting points or increase gap size | Y16: =MAX(X22:Z22) -> 3 | Z16: Width left | AA16: =(Z30/E4)-(0.07/(IF(B11>B12,B11,B12)/1000))+X10 -> 0.9766666667 | AB16: -> | AC16: ISXFR Solid Ivory
D17: Max length of a sail | E17: =(MAX(X21:Z21))*1000 -> 3000 | J17: Plan view - looking from above | W17: Warning 3 | X17: Warning: Sail too wide for standard fabric, please add more sails or increase gap size | Z17: Width middle | AA17: =((Z30/E4)-(0.07/(IF(B11>B12,B11,B12)/1000))+X10) -> 0.9766666667 | AB17: =((Z30/E4)-(0.07/(IF(B11>B12,B11,B12)/1000))+X14) -> 0.9766666667 | AC17: ISXFR Solid Oyster
D18: Max width of a sail | E18: =(MAX(X22:Z22))*1000 -> 3000 | H18: =IF(OR(E10>0,E11>0),"Mark additional features (fittings/straight edges) on sketch","") -> Mark additional features (fittings/straight edges) on sketch | W18: Warning 4 | X18: Warning: Space too long for standard fabric, contact office for more details | Z18: Width right | AA18: =(Z30/E4)-(0.07/(IF(B11>B12,B11,B12)/1000))+X14 -> 0.9766666667 | AC18: ISXFR Duplex | AD18: 7.2
Z19: 50mm links | AA19: 0.005 | AC19: ISXFR Duplex Ocean
D20: Please note that sails larger than 2100mm in both directions, will require a colour matched seam. | W20: Costs | X20: left | Y20: mid | Z20: right | AA20: tri | AC20: ISXFR Duplex Forest
H21: Total budget cost incl. Installation+VAT+Delivery | K21: =(((X24+Y24+Z24+12.15+IF(AND(E5=Y13,E4<>AA2),AA24,)+IF(AND(E6=Y13,E4=AA4),AA24,))+(25.5*E10)+IF(E15<>AE2,E10*2,0)))+(E11*100*VAT!V1) -> 1094.343353 | W21: Width | X21: =AA14*(IF(B11>B12,B11,B12)/1000) -> 3 | Y21: =X21 -> 3 | Z21: =Y21 -> 3 | AA21: =Z21 -> 3 | AC21: ISXFR Duplex Sand
K22: =' '!P1 -> 1258.494856 | W22: Length | X22: =((E49-E45)+(0.07/(IF(B11>B12,B11,B12)/1000)))*(IF(B11>B12,B11,B12)/1000) -> 3 | Y22: =IF(E4<>AA4,MIN(X22,Z22),(I49-I45+(0.07/(IF(B11>B12,B11,B12)/1000)))*(IF(B11>B12,B11,B12)/1000)) -> 3 | Z22: =IF(E4<>AA2,(G49-G45+(0.07/(IF(B11>B12,B11,B12)/1000)))*(IF(B11>B12,B11,B12)/1000),X22) -> 3 | AA22: =(W26*(IF(B11>B12,B11,B12)/1000))+0.07 -> 2.149 | AC22: ISXFR Duplex Stone
D23: =IF(((X28*(B11/1000))*2)>((MIN(X22:Z22))*AA10),X16,IF(((X29*(B11/1000))*2)>((MIN(X21:Z21))*AA10),X15,IF(AND(Y16>4,Y15>4),X17,IF(Y15>6,X18,"")))) ->  | G23: =' '!A9 -> 0 | W23: Perimeter | X23: =((X21*2)+(X22*2))*1.05 -> 12.6 | Y23: =((Y21*2)+(Y22*2))*1.05 -> 12.6 | Z23: =((Z21*2)+(Z22*2))*1.05 -> 12.6 | AA23: =((AA21*2)+AA22)*1.05 -> 8.55645 | AC23: ISXFR Duplex Slate
X24: =((((1.05*(X1*((X6*X21*X22*Z1)+(X23*Z2)+(AA8*Z3)+Z4))+7.2*AA8))+IF(E15<>AE2,8*VAT!V1,0))*AB28)/1.2*VAT!V1 -> 980.1933534 | Y24: =IF(E4<>AA4,0,((IF(E4=AA4,((1.05*(X1*((X6*Y21*Y22*Z1)+(Y23*Z2)+(AA8*Z3)+Z4))+7.2*AA8)),)+IF(E15<>AE2,8*VAT!V1,0))*AB28)/1.2*VAT!V1) -> 0 | Z24: =IF(E4=AA2,0,((IF(E4<>AA2,((1.05*(X1*((X6*Z21*Z22*Z1)+(Z23*Z2)+(AA8*Z3)+Z4))+7.2*AA8)),)+IF(E15<>AE2,8*VAT!V1,0))*AB28)/1.2*VAT!V1) -> 0 | AA24: =((IF(AND(E4<>AA2,OR(E5=Y13,AND(E6=Y13,E4<>AA3))),((1.05*(X2*((X7*AA21*AA22*Z1)+(AA23*Z2)+(3*Z3)+Z4))+7.2*3)),)+IF(E15<>AE2,6*VAT!V1,0))*AB28)/1.2*VAT!V1 -> 0 | AC24: ISXFR Duplex Graphite
W25: tri width | X25: tri length | Y25: tri mid | Z25: tri quarter | AB25: Shape %
G26: =' '!A12 -> 0 | W26: =X26*0.7 -> 0.693 | X26: =AA14-(AA19*2) -> 0.99 | Y26: =W26*0.13 -> 0.09009 | Z26: =Y26*0.75 -> 0.0675675 | AA26: W | AB26: =(SQRT(B12^2+(B13/2)^2))/B12 -> 1.00884973
X27: Mid | Y27: Quarters | Z27: Dims in m | AA27: L | AB27: =(SQRT((X22*1000)^2+(B13/2)^2))/(X22*1000) -> 1.00884973
W28: Horizontal | X28: =(((AA15+(0.07/(B11/1000)))*0.13)+AA19) -> 0.135 | Y28: =(X28)*0.75 -> 0.10125 | Z28: =B13/IF(B11>B12,B11,B12) -> 0.2666666667 | AA28: Average | AB28: =AVERAGE(AB26:AB27) -> 1.00884973
W29: Vertical left | X29: =((AA16+(0.07/(B11/1000)))*0.13)+AA19 -> 0.135 | Y29: =X29*0.75 -> 0.10125 | Z29: =Z28 -> 0.2666666667
W30: Vertical mid | X30: =((AVERAGE(AA17:AB17)+(0.07/(B11/1000)))*0.13)+AA19 -> 0.135 | Y30: =X30*0.75 -> 0.10125 | Z30: =B11/IF(B11>B12,B11,B12) -> 1
W31: Vertical right | X31: =((AA18+(0.07/(B11/1000)))*0.13)+AA19 -> 0.135 | Y31: =X31*0.75 -> 0.10125 | Z31: =B12/IF(B11>B12,B11,B12) -> 1
E43: x | F43: y | G43: x | H43: y | I43: x | J43: y | K43: x | L43: y | M43: x | N43: y | O43: Roof plan
E44: Left sail | G44: Right sail | I44: Mid sail | K44: tri 1 | M44: tri 2 | O44: x-axis | P44: y-axis
E45: =AA19 -> 0.005 | F45: =AA19 -> 0.005 | G45: =IF(E4=1,0,IF(E4=2,G49-AA18,IF(E4=3,(G49-AA18)))) -> 0 | H45: =IF(E4=1,0,IF(E4=2,AA19,IF(E4=3,AA19))) -> 0 | I45: =IF(E4=1,0,IF(E4=2,0,IF(E4=3,(Z30/2)-(AA17/2)))) -> 0 | J45: =IF(E4=1,0,IF(E4=2,0,IF(E4=3,AA19))) -> 0 | K45: =IF(E5=Y13,IF(E4<>AA2,K47-(W26/2),),) -> 0 | L45: =IF(E5=Y13,IF(E4<>AA2,AA19,),) -> 0 | M45: =IF(E6=Y13,IF(E4=AA4,M47-(W26/2),),) -> 0 | N45: =IF(E6=Y13,IF(E4=AA4,AA19,),) -> 0 | O45: 0 | P45: 0
E46: =E45+(AA16/4) -> 0.2491666667 | F46: =F47*0.75 -> 0.10125 | G46: =IF(E4=1,0,IF(E4=2,G47-(AA18/4),IF(E4=3,G45+(AA18/4)))) -> 0 | H46: =IF(E4=1,0,IF(E4=2,H48,IF(E4=3,H48))) -> 0 | I46: =IF(E4=1,0,IF(E4=2,0,IF(E4=3,I45+(MAX(AA17:AB17)/4)))) -> 0 | J46: =IF(E4=1,0,IF(E4=2,0,IF(E4=3,Y30))) -> 0 | K46: =IF(E5=Y13,IF(E4<>AA2,K45+(W26/4),),) -> 0 | L46: =IF(E5=Y13,IF(E4<>AA2,Z26,),) -> 0 | M46: =IF(E6=Y13,IF(E4=AA4,M47-(W26/4),),) -> 0 | N46: =IF(E6=Y13,IF(E4=AA4,Z26,),) -> 0 | O46: =Z30 -> 1 | P46: 0
E47: =IF(E4=1,(Z30/2),IF(E4=2,E49-(AA16/2),IF(E4=3,(E49-AA19)-(AA16/2)))) -> 0.5 | F47: =X29 -> 0.135 | G47: =IF(E4=1,0,IF(E4=2,G49-(AA18/2),IF(E4=3,G49-AA19-(AA18/2)))) -> 0 | H47: =IF(E4=1,0,IF(E4=2,X31,IF(E4=3,X31))) -> 0 | I47: =IF(E4=1,0,IF(E4=2,0,IF(E4=3,I49-((I49-I45)/2)))) -> 0 | J47: =IF(E4=1,0,IF(E4=2,0,IF(E4=3,X30))) -> 0 | K47: =IF(E5=Y13,IF(E4=AA3,O46/2,IF(E4=AA4,O46/3)),) -> 0 | L47: =IF(E5=Y13,IF(E4<>AA2,Y26,),) -> 0 | M47: =IF(E6=Y13,IF(E4=AA4,O47*(2/3),),) -> 0 | N47: =IF(E6=Y13,IF(E4=AA4,Y26,),) -> 0 | O47: =Z30 -> 1 | P47: =Z31 -> 1
E48: =E49-(AA16/4) -> 0.7375 | F48: =F46 -> 0.10125 | G48: =G49-(AA18/4) -> -0.2441666667 | H48: =IF(E4=1,0,IF(E4=2,Y31,IF(E4=3,Y31))) -> 0 | I48: =IF(E4=1,0,IF(E4=2,0,IF(E4=3,I49-(MAX(AA17:AB17)/4)))) -> 0 | J48: =IF(E4=AA4,Y30,) -> 0 | K48: =IF(E5=Y13,IF(E4<>AA2,K47+(W26/4),),) -> 0 | L48: =IF(E5=Y13,IF(E4<>AA2,Z26,),) -> 0 | M48: =IF(E6=Y13,IF(E4=AA4,M47+(W26/4),),) -> 0 | N48: =IF(E6=Y13,IF(E4=AA4,N46,),) -> 0 | O48: 0 | P48: =Z31 -> 1
E49: =IF(E4=1,E45+AA16,IF(E4=2,AA16+E45,IF(E4=3,E45+AA16))) -> 0.9816666667 | F49: =AA19 -> 0.005 | G49: =IF(E4=1,0,IF(E4=2,Z30-AA19,IF(E4=3,Z30-AA19))) -> 0 | H49: =IF(E4=1,0,IF(E4=2,AA19,IF(E4=3,AA19))) -> 0 | I49: =IF(E4=1,0,IF(E4=2,0,IF(E4=3,Z30/2+(AB17/2)))) -> 0 | J49: =IF(E4=1,0,IF(E4=2,0,IF(E4=3,AA19))) -> 0 | K49: =IF(E5=Y13,IF(E4<>AA2,K47+(W26/2),),) -> 0 | L49: =IF(E5=Y13,IF(E4<>AA2,AA19,),) -> 0 | M49: =IF(E6=Y13,IF(E4=AA4,M47+(W26/2),),) -> 0 | N49: =IF(E6=Y13,IF(E4=AA4,N45,),) -> 0 | O49: 0 | P49: 0
E50: =E49-Y28 -> 0.8804166667 | F50: =Z31/4 -> 0.25 | G50: =IF(E4=1,0,IF(E4=2,G49-Y28,IF(E4=3,(G49-Y28)))) -> 0 | H50: =IF(E4=1,0,IF(E4=2,F60,IF(E4=3,F60))) -> 0 | I50: =IF(E4=1,0,IF(E4=2,0,IF(E4=3,I49-Y28))) -> 0 | J50: =IF(E4=1,0,IF(E4=2,0,IF(E4=3,H50))) -> 0 | K50: =IF(E5=Y13,IF(E4<>AA2,K49-((K49-K53)/1.8),),) -> 0 | L50: =IF(E5=Y13,IF(E4<>AA2,P47/4,),) -> 0 | M50: =IF(E6=Y13,IF(E4=AA4,M49-((M49-M53)/1.8),),) -> 0 | N50: =IF(E6=Y13,IF(E4=AA4,P47/4,),) -> 0
E51: =E49-X28 -> 0.8466666667 | F51: =Z31/2 -> 0.5 | G51: =IF(E4=1,0,IF(E4=2,G49-X28,IF(E4=3,(G49-X28)))) -> 0 | H51: =IF(E4=1,0,IF(E4=2,F51,IF(E4=3,F51))) -> 0 | I51: =IF(E4=1,0,IF(E4=2,0,IF(E4=3,I49-X28))) -> 0 | J51: =IF(E4=1,0,IF(E4=2,0,IF(E4=3,F51))) -> 0 | K51: =IF(E5=Y13,IF(E4<>AA2,K49-((K49-K53)*0.85),),) -> 0 | L51: =IF(E5=Y13,IF(E4<>AA2,P47/2,),) -> 0 | M51: =IF(E6=Y13,IF(E4=AA4,M49-((M49-M53)*0.85),),) -> 0 | N51: =IF(E6=Y13,IF(E4=AA4,P47/2,),) -> 0
E52: =E50 -> 0.8804166667 | F52: =(Z31*0.75) -> 0.75 | G52: =G50 -> 0 | H52: =IF(E4=1,0,IF(E4=2,F58,IF(E4=3,F58))) -> 0 | I52: =I50 -> 0 | J52: =IF(E4=1,0,IF(E4=2,0,IF(E4=3,H52))) -> 0 | K52: =IF(E5=Y13,IF(E4<>AA2,K53+((K49-K53)*0.05),),) -> 0 | L52: =IF(E5=Y13,IF(E4<>AA2,P47*0.75,),) -> 0 | M52: =IF(E6=Y13,IF(E4=AA4,M53+((M49-M53)*0.05),),) -> 0 | N52: =IF(E6=Y13,IF(E4=AA4,P47*0.75,),) -> 0
E53: =E49 -> 0.9816666667 | F53: =Z31-AA19 -> 0.995 | G53: =IF(E4=1,0,IF(E4=2,G49,IF(E4=3,G49))) -> 0 | H53: =IF(E4=1,0,IF(E4=2,F57,IF(E4=3,Z31-AA19))) -> 0 | I53: =IF(E4=1,0,IF(E4=2,0,IF(E4=3,I49))) -> 0 | J53: =IF(E4=1,0,IF(E4=2,0,IF(E4=3,H57))) -> 0 | K53: =IF(E5=Y13,IF(E4<>AA2,K47,),) -> 0 | L53: =IF(E5=Y13,IF(E4<>AA2,P48-AA19,),) -> 0 | M53: =IF(E6=Y13,IF(E4=AA4,M47,),) -> 0 | N53: =IF(E6=Y13,IF(E4=AA4,P48-AA19,),) -> 0
E54: =E48 -> 0.7375 | F54: =Z31-F46 -> 0.89875 | G54: =G48 -> -0.2441666667 | H54: =IF(E4=1,0,IF(E4=2,Z31-Y31,IF(E4=3,Z31-Y31))) -> 0 | I54: =I48 -> 0 | J54: =IF(E4=1,0,IF(E4=2,0,IF(E4=3,Z31-Y30))) -> 0 | K54: =IF(E5=Y13,IF(E4<>AA2,K53-((K53-K57)*0.05),),) -> 0 | L54: =IF(E5=Y13,IF(E4<>AA2,L52,),) -> 0 | M54: =IF(E6=Y13,IF(E4=AA4,M53-((M53-M57)*0.05),),) -> 0 | N54: =IF(E6=Y13,IF(E4=AA4,N52,),) -> 0
E55: =E47 -> 0.5 | F55: =Z31-F47 -> 0.865 | G55: =IF(E4=1,0,IF(E4=2,G47,IF(E4=3,G47))) -> 0 | H55: =IF(E4=1,0,IF(E4=2,Z31-X31,IF(E4=3,Z31-X31))) -> 0 | I55: =IF(E4=1,0,IF(E4=2,0,IF(E4=3,I47))) -> 0 | J55: =IF(E4=1,0,IF(E4=2,0,IF(E4=3,Z31-X30))) -> 0 | K55: =IF(E5=Y13,IF(E4<>AA2,K57+((K53-K57)*0.85),),) -> 0 | L55: =IF(E5=Y13,IF(E4<>AA2,L51,),) -> 0 | M55: =IF(E6=Y13,IF(E4=AA4,M57+((M53-M57)*0.85),),) -> 0 | N55: =IF(E6=Y13,IF(E4=AA4,N51,),) -> 0
E56: =E46 -> 0.2491666667 | F56: =F54 -> 0.89875 | G56: =G46 -> 0 | H56: =IF(E4=1,0,IF(E4=2,H54,IF(E4=3,H54))) -> 0 | I56: =I46 -> 0 | J56: =J54 -> 0 | K56: =IF(E5=Y13,IF(E4<>AA2,K57+((K53-K57)/1.8),),) -> 0 | L56: =IF(E5=Y13,IF(E4<>AA2,L50,),) -> 0 | M56: =IF(E6=Y13,IF(E4=AA4,M57+((M53-M57)/1.8),),) -> 0 | N56: =IF(E6=Y13,IF(E4=AA4,N50,),) -> 0
E57: =E45 -> 0.005 | F57: =F53 -> 0.995 | G57: =IF(E4=1,0,IF(E4=2,G45,IF(E4=3,G45))) -> 0 | H57: =IF(E4=1,0,IF(E4=2,H53,IF(E4=3,H53))) -> 0 | I57: =IF(E4=1,0,IF(E4=2,0,IF(E4=3,I45))) -> 0 | J57: =IF(E4=1,0,IF(E4=2,0,IF(E4=3,J53))) -> 0 | K57: =IF(E5=Y13,IF(E4<>AA2,K45,),) -> 0 | L57: =IF(E5=Y13,IF(E4<>AA2,L45,),) -> 0 | M57: =IF(E6=Y13,IF(E4=AA4,M45,),) -> 0 | N57: =IF(E6=Y13,IF(E4=AA4,N45,),) -> 0
E58: =E45+Y28 -> 0.10625 | F58: =F52 -> 0.75 | G58: =IF(E4=1,0,IF(E4=2,G57+Y28,IF(E4=3,(G45+Y28)))) -> 0 | H58: =H52 -> 0 | I58: =IF(E4=1,0,IF(E4=2,0,IF(E4=3,(I45+Y28)))) -> 0 | J58: =J52 -> 0
E59: =E45+X28 -> 0.14 | F59: =F51 -> 0.5 | G59: =IF(E4=1,0,IF(E4=2,G57+X28,IF(E4=3,(G45+X28)))) -> 0 | H59: =IF(E4=1,0,IF(E4=2,H51,IF(E4=3,H51))) -> 0 | I59: =IF(E4=1,0,IF(E4=2,0,IF(E4=3,I45+X28))) -> 0 | J59: =IF(E4=1,0,IF(E4=2,0,IF(E4=3,F51))) -> 0
E60: =E58 -> 0.10625 | F60: =F50 -> 0.25 | G60: =G58 -> 0 | H60: =H50 -> 0 | I60: =I58 -> 0 | J60: =J50 -> 0
E61: =E45 -> 0.005 | F61: =AA19 -> 0.005 | G61: =IF(E4=1,0,IF(E4=2,G57,IF(E4=3,G57))) -> 0 | H61: =IF(E4=1,0,IF(E4=2,AA19,IF(E4=3,AA19))) -> 0 | I61: =IF(E4=1,0,IF(E4=2,0,IF(E4=3,I57))) -> 0 | J61: =IF(E4=1,0,IF(E4=2,0,IF(E4=3,AA19))) -> 0

Sheet Lean To
W1: Main Material | X1: =IF(OR(E14=AC2,E14=AC3,E14=AC4,E14=AC5,E14=AC6,E14=AC7),5,IF(OR(E14=AC8,E14=AC9,E14=AC10,E14=AC11,E14=AC12,E14=AC13,E14=AC14,E14=AC15,E14=AC16,E14=AC17),6,IF(OR(E14=AC18,E14=AC19,E14=AC20,E14=AC21,E14=AC22,E14=AC23,E14=AC24),7.2,))) -> 6 | Y1: Material cost | Z1: 11.35 | AA1: Sails | AC1: Fabric Colour | AE1: Fittings Colours
W2: Tri Material | X2: =IF(OR(E15=AC2,E15=AC3,E15=AC4,E15=AC5,E15=AC6,E15=AC7),5,IF(OR(E15=AC8,E15=AC9,E15=AC10,E15=AC11,E15=AC12,E15=AC13,E15=AC14,E15=AC15,E15=AC16,E15=AC17),6,IF(OR(E15=AC18,E15=AC19,E15=AC20,E15=AC21,E15=AC22,E15=AC23,E15=AC24),7.2,))) -> 6 | Y2: PE | Z2: 2.5 | AA2: 1 | AC2: ISX Solid | AD2: 5 | AE2: Stainless steel
Y3: PN | Z3: 3.5 | AA3: 2 | AC3: ISX White | AE3: White
D4: Number of sails | E4: 1 | Y4: IP | Z4: 2 | AA4: 3 | AC4: ISX Solid Ivory | AE4: Gold
D5: Left triangle sail | E5: No | Y5: No. of vents | AC5: ISX Solid Oyster
D6: Right triangle sail | E6: No | W6: Shape | X6: =IF(AA9=W7,X7,IF(AA9=W8,X8,IF(AA9=W9,X9))) -> 1 | Y6: 0 | AC6: ISX Solid Sand
W7: Triangle | X7: 0.6 | Y7: 1 | AC7: ISX Solid Stone
D8: Reduce left gap size | E8: 1 | W8: Diamond | X8: 0.6 | Y8: 2 | Z8: No. of corners | AA8: 4 | AC8: ISX Duplex | AD8: 6
D9: Reduce right gap size | E9: Standard | W9: Other | X9: 1 | Y9: 3 | Z9: Shape | AA9: Other | AC9: ISX Duplex Ocean
D10: Total additional fittings | E10: 4 | W10: Overlap left | X10: =IF(E8=W11,X11,IF(E8=W12,X12,IF(E8=W13,X13))) -> 0 | Y10: 4 | Z10: Curve allowance | AA10: 0.5 | AC10: ISX Duplex Forest
D11: Total tie-bar loops | E11: 4 | W11: Standard | X11: 0 | Y11: Triangles | Z11: Roof area | AA11: =AA14*Z30 -> 1.464547712 | AC11: ISX Duplex Stone
D12: Total straight edges | E12: 0 | W12: 0.5 | X12: =IF(E4=1,0,IF(E4=2,(X28/2)+AA19,IF(E4=3,(X28*0.67)+AA19))) -> 0 | Y12: No | Z12: Area of each sail | AA12: =AA11/E4 -> 1.464547712 | AC12: ISX Duplex Slate
W13: 1 | X13: =IF(E4=1,0,IF(E4=2,X28+AA19,IF(E4=3,(X28*1.34)+AA19))) -> 0 | Y13: Yes | Z13: Sail perimeter | AA13: =((AA15+0.07)*2)+((AA16+0.07)*2) -> 5.11576209 | AC13: ISX Duplex Graphite
D14: Colour of main sails | E14: ISX Duplex Ocean | W14: Overlap right | X14: =IF(E4=AA3,X10,IF(E9=W11,X11,IF(E9=W12,X12,IF(E9=W13,X13)))) -> 0 | Y14: Warnings | Z14: Glazing bar length | AA14: =SQRT((Z29-Z28)^2+Z31^2) -> 1.464547712 | AC14: ISXFR Solid | AD14: 6
D15: Colour of triangles | E15: ISX Duplex Ocean | W15: Warning 1 | X15: Warning: Sail too narrow, increase no. of sails, add additional fitting points or reduce gap size | Y15: =MAX(X21:Z21) -> 4.393643135 | Z15: Length of sail | AA15: =AA14-(0.07/(IF(B23>B24,B23,B24)/1000)) -> 1.441214378 | AC15: ISXFR White
D16: Colour of fittings | E16: Stainless steel | W16: Warning 2 | X16: Warning: Sail too narrow, decrease no. of sails, add additional fitting points or increase gap size | Y16: =MAX(X22:Z22) -> 3 | Z16: Width left | AA16: =(Z30/E4)-(0.07/(IF(B23>B24,B23,B24)/1000))+X10 -> 0.9766666667 | AB16: -> | AC16: ISXFR Solid Ivory
D17: Number of window vents | E17: 0 | J17: Plan view - looking from above | W17: Warning 3 | X17: Warning: Sail too wide for standard fabric, please add more sails or increase gap size | Z17: Width middle | AA17: =((Z30/E4)-(0.07/(IF(B23>B24,B23,B24)/1000))+X10) -> 0.9766666667 | AB17: =((Z30/E4)-(0.07/(IF(B23>B24,B23,B24)/1000))+X14) -> 0.9766666667 | AC17: ISXFR Solid Oyster
H18: =IF(OR(E10>0,E11>0,E12>0),"Mark additional features (fittings/tie-bar loops/straight edges) on sketch","") -> Mark additional features (fittings/tie-bar loops/straight edges) on sketch | W18: Warning 4 | X18: Warning: Conservatory too long for standard fabric, contact office for more details | Z18: Width right | AA18: =(Z30/E4)-(0.07/(IF(B23>B24,B23,B24)/1000))+X14 -> 0.9766666667 | AC18: ISXFR Duplex | AD18: 7.2
D19: Max length of a sail | E19: =(MAX(X21:Z21))*1000 -> 4393.643135 | Z19: 50mm links | AA19: =0.035/(IF(B23>B24,B23,B24)/1000) -> 0.01166666667 | AC19: ISXFR Duplex Ocean
D20: Max width of a sail | E20: =(MAX(X22:Z22))*1000 -> 3000 | W20: Costs | X20: left | Y20: mid | Z20: right | AA20: tri | AC20: ISXFR Duplex Forest
H21: Total budget cost incl. Installation+VAT+Delivery | K21: =(((X24+Y24+Z24+12.15+(E17*50*VAT!V1)+IF(AND(E5=Y13,E4<>AA2),AA24,)+IF(AND(E6=Y13,E4=AA4),AA24,))+(25.5*E10)+IF(E16<>AE2,E10*2,0)))+(E11*75*VAT!V1)+(E12*100*VAT!V1) -> 1790.797104 | W21: length | X21: =AA14*(IF(B23>B24,B23,B24)/1000) -> 4.393643135 | Y21: =X21 -> 4.393643135 | Z21: =Y21 -> 4.393643135 | AA21: =Z21 -> 4.393643135 | AC21: ISXFR Duplex Sand
B22: All dims in mm | D22: Please note that sails larger than 2100mm in both directions, will require a colour matched seam. | K22: =' '!P2 -> 2059.416669 | W22: width | X22: =((E49-E45)+(0.07/(IF(B23>B24,B23,B24)/1000)))*(IF(B23>B24,B23,B24)/1000) -> 3 | Y22: =IF(E4<>AA4,MIN(X22,Z22),(I49-I45+(0.07/(IF(B23>B24,B23,B24)/1000)))*(IF(B23>B24,B23,B24)/1000)) -> 3 | Z22: =IF(E4<>AA2,(G49-G45+(0.07/(IF(B23>B24,B23,B24)/1000)))*(IF(B23>B24,B23,B24)/1000),X22) -> 3 | AA22: =(W26*(IF(B23>B24,B23,B24)/1000))+0.07 -> 3.096550195 | AC22: ISXFR Duplex Stone
A23: X1 | B23: 3000 | G23: =' '!A9 -> 0 | W23: perimeter | X23: =((X21*2)+(X22*2))*1.05 -> 15.52665058 | Y23: =((Y21*2)+(Y22*2))*1.05 -> 15.52665058 | Z23: =((Z21*2)+(Z22*2))*1.05 -> 15.52665058 | AA23: =((AA21*2)+AA22)*1.05 -> 12.47802829 | AC23: ISXFR Duplex Slate
A24: Y1 | B24: 3000 | X24: =(((1.05*(X1*((X6*X21*X22*Z1)+(X23*Z2)+(AA8*Z3)+Z4))+7.2*AA8))+IF(E16<>AE2,8*VAT!V1,0))/1.2*VAT!V1 -> 1316.647104 | Y24: =IF(E4<>AA4,0,(IF(E4=AA4,((1.05*(X1*((X6*Y21*Y22*Z1)+(Y23*Z2)+(AA8*Z3)+Z4))+7.2*AA8)),)+IF(E16<>AE2,8*VAT!V1,0))/1.2*VAT!V1) -> 0 | Z24: =(IF(E4<>AA2,((1.05*(X1*((X6*Z21*Z22*Z1)+(Z23*Z2)+(AA8*Z3)+Z4))+7.2*AA8)),)+IF(E16<>AE2,8*VAT!V1,0))/1.2*VAT!V1 -> 0 | AA24: =(IF(AND(E4<>AA2,OR(E5=Y13,AND(E6=Y13,E4<>AA3))),((1.05*(X2*((X7*AA21*AA22*Z1)+(AA23*Z2)+(3*Z3)+Z4))+7.2*3)),)+IF(E16<>AE2,6*VAT!V1,0))/1.2*VAT!V1 -> 0 | AC24: ISXFR Duplex Graphite
A25: H1 | B25: 0 | D25: =IF(((X28*(B23/1000))*2)>((MIN(X22:Z22))*AA10),X16,IF(((X29*(B23/1000))*2)>((MIN(X21:Z21))*AA10),X15,IF(AND(Y16>4,Y15>4),X17,IF(Y15>6,X18,"")))) ->  | W25: tri width | X25: tri length | Y25: tri mid | Z25: tri quarter
A26: H2 | B26: 3210 | G26: =' '!A12 -> 0 | W26: =X26*0.7 -> 1.008850065 | X26: =AA14-(AA19*2) -> 1.441214378 | Y26: =W26*0.13 -> 0.1311505084 | Z26: =Y26*0.75 -> 0.09836288133
X27: Mid | Y27: Quarters | Z27: Dims in m
W28: Horizontal | X28: =(((AA15+(0.07/(B23/1000)))*0.13)+AA19) -> 0.2020578692 | Y28: =(X28)*0.75 -> 0.1515434019 | Z28: =B25/IF(B23>B24,B23,B24) -> 0
W29: Vertical left | X29: =((AA16+(0.07/(B23/1000)))*0.13)+AA19 -> 0.1416666667 | Y29: =X29*0.75 -> 0.10625 | Z29: =B26/IF(B23>B24,B23,B24) -> 1.07
W30: Vertical mid | X30: =((AVERAGE(AA17:AB17)+(0.07/(B23/1000)))*0.13)+AA19 -> 0.1416666667 | Y30: =X30*0.75 -> 0.10625 | Z30: =B23/IF(B23>B24,B23,B24) -> 1
W31: Vertical right | X31: =((AA18+(0.07/(B23/1000)))*0.13)+AA19 -> 0.1416666667 | Y31: =X31*0.75 -> 0.10625 | Z31: =B24/IF(B23>B24,B23,B24) -> 1
E43: x | F43: y | G43: x | H43: y | I43: x | J43: y | K43: x | L43: y | M43: x | N43: y | O43: Roof plan
E44: Left sail | G44: Right sail | I44: Mid sail | K44: tri 1 | M44: tri 2 | O44: x-axis | P44: y-axis
E45: =AA19 -> 0.01166666667 | F45: =AA19 -> 0.01166666667 | G45: =IF(E4=1,0,IF(E4=2,G49-AA18,IF(E4=3,(G49-AA18)))) -> 0 | H45: =IF(E4=1,0,IF(E4=2,AA19,IF(E4=3,AA19))) -> 0 | I45: =IF(E4=1,0,IF(E4=2,0,IF(E4=3,(Z30/2)-(AA17/2)))) -> 0 | J45: =IF(E4=1,0,IF(E4=2,0,IF(E4=3,AA19))) -> 0 | K45: =IF(E5=Y13,IF(E4<>AA2,K47-(W26/2),),) -> 0 | L45: =IF(E5=Y13,IF(E4<>AA2,AA19,),) -> 0 | M45: =IF(E6=Y13,IF(E4=AA4,M47-(W26/2),),) -> 0 | N45: =IF(E6=Y13,IF(E4=AA4,AA19,),) -> 0 | O45: 0 | P45: 0
E46: =E45+(AA16/4) -> 0.2558333333 | F46: =F47*0.75 -> 0.10625 | G46: =IF(E4=1,0,IF(E4=2,G47-(AA18/4),IF(E4=3,G45+(AA18/4)))) -> 0 | H46: =IF(E4=1,0,IF(E4=2,H48,IF(E4=3,H48))) -> 0 | I46: =IF(E4=1,0,IF(E4=2,0,IF(E4=3,I45+(MAX(AA17:AB17)/4)))) -> 0 | J46: =IF(E4=1,0,IF(E4=2,0,IF(E4=3,Y30))) -> 0 | K46: =IF(E5=Y13,IF(E4<>AA2,K45+(W26/4),),) -> 0 | L46: =IF(E5=Y13,IF(E4<>AA2,Z26,),) -> 0 | M46: =IF(E6=Y13,IF(E4=AA4,M47-(W26/4),),) -> 0 | N46: =IF(E6=Y13,IF(E4=AA4,Z26,),) -> 0 | O46: =Z30 -> 1 | P46: 0
E47: =IF(E4=1,(Z30/2),IF(E4=2,E49-(AA16/2),IF(E4=3,(E49-AA19)-(AA16/2)))) -> 0.5 | F47: =X29 -> 0.1416666667 | G47: =IF(E4=1,0,IF(E4=2,G49-(AA18/2),IF(E4=3,G49-AA19-(AA18/2)))) -> 0 | H47: =IF(E4=1,0,IF(E4=2,X31,IF(E4=3,X31))) -> 0 | I47: =IF(E4=1,0,IF(E4=2,0,IF(E4=3,I49-((I49-I45)/2)))) -> 0 | J47: =IF(E4=1,0,IF(E4=2,0,IF(E4=3,X30))) -> 0 | K47: =IF(E5=Y13,IF(E4=AA3,O46/2,IF(E4=AA4,O46/3)),) -> 0 | L47: =IF(E5=Y13,IF(E4<>AA2,Y26,),) -> 0 | M47: =IF(E6=Y13,IF(E4=AA4,O47*(2/3),),) -> 0 | N47: =IF(E6=Y13,IF(E4=AA4,Y26,),) -> 0 | O47: =Z30 -> 1 | P47: =Z31 -> 1
E48: =E49-(AA16/4) -> 0.7441666667 | F48: =F46 -> 0.10625 | G48: =G49-(AA18/4) -> -0.2441666667 | H48: =IF(E4=1,0,IF(E4=2,Y31,IF(E4=3,Y31))) -> 0 | I48: =IF(E4=1,0,IF(E4=2,0,IF(E4=3,I49-(MAX(AA17:AB17)/4)))) -> 0 | J48: =IF(E4=AA4,Y30,) -> 0 | K48: =IF(E5=Y13,IF(E4<>AA2,K47+(W26/4),),) -> 0 | L48: =IF(E5=Y13,IF(E4<>AA2,Z26,),) -> 0 | M48: =IF(E6=Y13,IF(E4=AA4,M47+(W26/4),),) -> 0 | N48: =IF(E6=Y13,IF(E4=AA4,N46,),) -> 0 | O48: 0 | P48: =Z31 -> 1
E49: =IF(E4=1,E45+AA16,IF(E4=2,AA16+E45,IF(E4=3,E45+AA16))) -> 0.9883333333 | F49: =AA19 -> 0.01166666667 | G49: =IF(E4=1,0,IF(E4=2,Z30-AA19,IF(E4=3,Z30-AA19))) -> 0 | H49: =IF(E4=1,0,IF(E4=2,AA19,IF(E4=3,AA19))) -> 0 | I49: =IF(E4=1,0,IF(E4=2,0,IF(E4=3,Z30/2+(AB17/2)))) -> 0 | J49: =IF(E4=1,0,IF(E4=2,0,IF(E4=3,AA19))) -> 0 | K49: =IF(E5=Y13,IF(E4<>AA2,K47+(W26/2),),) -> 0 | L49: =IF(E5=Y13,IF(E4<>AA2,AA19,),) -> 0 | M49: =IF(E6=Y13,IF(E4=AA4,M47+(W26/2),),) -> 0 | N49: =IF(E6=Y13,IF(E4=AA4,N45,),) -> 0 | O49: 0 | P49: 0
E50: =E49-Y28 -> 0.8367899314 | F50: =Z31/4 -> 0.25 | G50: =IF(E4=1,0,IF(E4=2,G49-Y28,IF(E4=3,(G49-Y28)))) -> 0 | H50: =IF(E4=1,0,IF(E4=2,F60,IF(E4=3,F60))) -> 0 | I50: =IF(E4=1,0,IF(E4=2,0,IF(E4=3,I49-Y28))) -> 0 | J50: =IF(E4=1,0,IF(E4=2,0,IF(E4=3,H50))) -> 0 | K50: =IF(E5=Y13,IF(E4<>AA2,K49-((K49-K53)/1.8),),) -> 0 | L50: =IF(E5=Y13,IF(E4<>AA2,P47/4,),) -> 0 | M50: =IF(E6=Y13,IF(E4=AA4,M49-((M49-M53)/1.8),),) -> 0 | N50: =IF(E6=Y13,IF(E4=AA4,P47/4,),) -> 0
E51: =E49-X28 -> 0.7862754641 | F51: =Z31/2 -> 0.5 | G51: =IF(E4=1,0,IF(E4=2,G49-X28,IF(E4=3,(G49-X28)))) -> 0 | H51: =IF(E4=1,0,IF(E4=2,F51,IF(E4=3,F51))) -> 0 | I51: =IF(E4=1,0,IF(E4=2,0,IF(E4=3,I49-X28))) -> 0 | J51: =IF(E4=1,0,IF(E4=2,0,IF(E4=3,F51))) -> 0 | K51: =IF(E5=Y13,IF(E4<>AA2,K49-((K49-K53)*0.85),),) -> 0 | L51: =IF(E5=Y13,IF(E4<>AA2,P47/2,),) -> 0 | M51: =IF(E6=Y13,IF(E4=AA4,M49-((M49-M53)*0.85),),) -> 0 | N51: =IF(E6=Y13,IF(E4=AA4,P47/2,),) -> 0
E52: =E50 -> 0.8367899314 | F52: =(Z31*0.75) -> 0.75 | G52: =G50 -> 0 | H52: =IF(E4=1,0,IF(E4=2,F58,IF(E4=3,F58))) -> 0 | I52: =I50 -> 0 | J52: =IF(E4=1,0,IF(E4=2,0,IF(E4=3,H52))) -> 0 | K52: =IF(E5=Y13,IF(E4<>AA2,K53+((K49-K53)*0.05),),) -> 0 | L52: =IF(E5=Y13,IF(E4<>AA2,P47*0.75,),) -> 0 | M52: =IF(E6=Y13,IF(E4=AA4,M53+((M49-M53)*0.05),),) -> 0 | N52: =IF(E6=Y13,IF(E4=AA4,P47*0.75,),) -> 0
E53: =E49 -> 0.9883333333 | F53: =Z31-AA19 -> 0.9883333333 | G53: =IF(E4=1,0,IF(E4=2,G49,IF(E4=3,G49))) -> 0 | H53: =IF(E4=1,0,IF(E4=2,F57,IF(E4=3,Z31-AA19))) -> 0 | I53: =IF(E4=1,0,IF(E4=2,0,IF(E4=3,I49))) -> 0 | J53: =IF(E4=1,0,IF(E4=2,0,IF(E4=3,H57))) -> 0 | K53: =IF(E5=Y13,IF(E4<>AA2,K47,),) -> 0 | L53: =IF(E5=Y13,IF(E4<>AA2,P48-AA19,),) -> 0 | M53: =IF(E6=Y13,IF(E4=AA4,M47,),) -> 0 | N53: =IF(E6=Y13,IF(E4=AA4,P48-AA19,),) -> 0
E54: =E48 -> 0.7441666667 | F54: =Z31-F46 -> 0.89375 | G54: =G48 -> -0.2441666667 | H54: =IF(E4=1,0,IF(E4=2,Z31-Y31,IF(E4=3,Z31-Y31))) -> 0 | I54: =I48 -> 0 | J54: =IF(E4=1,0,IF(E4=2,0,IF(E4=3,Z31-Y30))) -> 0 | K54: =IF(E5=Y13,IF(E4<>AA2,K53-((K53-K57)*0.05),),) -> 0 | L54: =IF(E5=Y13,IF(E4<>AA2,L52,),) -> 0 | M54: =IF(E6=Y13,IF(E4=AA4,M53-((M53-M57)*0.05),),) -> 0 | N54: =IF(E6=Y13,IF(E4=AA4,N52,),) -> 0
E55: =E47 -> 0.5 | F55: =Z31-F47 -> 0.8583333333 | G55: =IF(E4=1,0,IF(E4=2,G47,IF(E4=3,G47))) -> 0 | H55: =IF(E4=1,0,IF(E4=2,Z31-X31,IF(E4=3,Z31-X31))) -> 0 | I55: =IF(E4=1,0,IF(E4=2,0,IF(E4=3,I47))) -> 0 | J55: =IF(E4=1,0,IF(E4=2,0,IF(E4=3,Z31-X30))) -> 0 | K55: =IF(E5=Y13,IF(E4<>AA2,K57+((K53-K57)*0.85),),) -> 0 | L55: =IF(E5=Y13,IF(E4<>AA2,L51,),) -> 0 | M55: =IF(E6=Y13,IF(E4=AA4,M57+((M53-M57)*0.85),),) -> 0 | N55: =IF(E6=Y13,IF(E4=AA4,N51,),) -> 0
E56: =E46 -> 0.2558333333 | F56: =F54 -> 0.89375 | G56: =G46 -> 0 | H56: =IF(E4=1,0,IF(E4=2,H54,IF(E4=3,H54))) -> 0 | I56: =I46 -> 0 | J56: =J54 -> 0 | K56: =IF(E5=Y13,IF(E4<>AA2,K57+((K53-K57)/1.8),),) -> 0 | L56: =IF(E5=Y13,IF(E4<>AA2,L50,),) -> 0 | M56: =IF(E6=Y13,IF(E4=AA4,M57+((M53-M57)/1.8),),) -> 0 | N56: =IF(E6=Y13,IF(E4=AA4,N50,),) -> 0
E57: =E45 -> 0.01166666667 | F57: =F53 -> 0.9883333333 | G57: =IF(E4=1,0,IF(E4=2,G45,IF(E4=3,G45))) -> 0 | H57: =IF(E4=1,0,IF(E4=2,H53,IF(E4=3,H53))) -> 0 | I57: =IF(E4=1,0,IF(E4=2,0,IF(E4=3,I45))) -> 0 | J57: =IF(E4=1,0,IF(E4=2,0,IF(E4=3,J53))) -> 0 | K57: =IF(E5=Y13,IF(E4<>AA2,K45,),) -> 0 | L57: =IF(E5=Y13,IF(E4<>AA2,L45,),) -> 0 | M57: =IF(E6=Y13,IF(E4=AA4,M45,),) -> 0 | N57: =IF(E6=Y13,IF(E4=AA4,N45,),) -> 0
E58: =E45+Y28 -> 0.1632100686 | F58: =F52 -> 0.75 | G58: =IF(E4=1,0,IF(E4=2,G57+Y28,IF(E4=3,(G45+Y28)))) -> 0 | H58: =H52 -> 0 | I58: =IF(E4=1,0,IF(E4=2,0,IF(E4=3,(I45+Y28)))) -> 0 | J58: =J52 -> 0
E59: =E45+X28 -> 0.2137245359 | F59: =F51 -> 0.5 | G59: =IF(E4=1,0,IF(E4=2,G57+X28,IF(E4=3,(G45+X28)))) -> 0 | H59: =IF(E4=1,0,IF(E4=2,H51,IF(E4=3,H51))) -> 0 | I59: =IF(E4=1,0,IF(E4=2,0,IF(E4=3,I45+X28))) -> 0 | J59: =IF(E4=1,0,IF(E4=2,0,IF(E4=3,F51))) -> 0
E60: =E58 -> 0.1632100686 | F60: =F50 -> 0.25 | G60: =G58 -> 0 | H60: =H50 -> 0 | I60: =I58 -> 0 | J60: =J50 -> 0
E61: =E45 -> 0.01166666667 | F61: =AA19 -> 0.01166666667 | G61: =IF(E4=1,0,IF(E4=2,G57,IF(E4=3,G57))) -> 0 | H61: =IF(E4=1,0,IF(E4=2,AA19,IF(E4=3,AA19))) -> 0 | I61: =IF(E4=1,0,IF(E4=2,0,IF(E4=3,I57))) -> 0 | J61: =IF(E4=1,0,IF(E4=2,0,IF(E4=3,AA19))) -> 0

Sheet Lean To Hipped
W1: Main material | X1: =IF(OR(E14=AF2,E14=AF3,E14=AF4,E14=AF5,E14=AF6,E14=AF7),5,IF(OR(E14=AF8,E14=AF9,E14=AF10,E14=AF11,E14=AF12,E14=AF13,E14=AF14,E14=AF15,E14=AF16,E14=AF17),6,IF(OR(E14=AF18,E14=AF19,E14=AF20,E14=AF21,E14=AF22,E14=AF23,E14=AF24),7.2,))) -> 5 | Y1: Material cost | Z1: 11.35 | AA1: Sails | AB1: Warnings left/right | AC1: Warnings mid | AD1: Warnings mid tri | AF1: Fabric Colour | AH1: Fittings Colours
W2: Tri Material | X2: =IF(OR(E15=AF2,E15=AF3,E15=AF4,E15=AF5,E15=AF6,E15=AF7),5,IF(OR(E15=AF8,E15=AF9,E15=AF10,E15=AF11,E15=AF12,E15=AF13,E15=AF14,E15=AF15,E15=AF16,E15=AF17),6,IF(OR(E15=AF18,E15=AF19,E15=AF20,E15=AF21,E15=AF22,E15=AF23,E15=AF24),7.2,))) -> 5 | Y2: PE | Z2: 2.5 | AA2: 1 | AB2: =Z32 -> 3.112073264 | AC2: =AA32 -> 3.112073264 | AD2: =IF(OR(E5=AB6,E6=AB6),1,0.00001)*AC32 -> 3.112073264 | AF2: ISX Solid | AG2: 5 | AH2: Stainless steel
Y3: PN | Z3: 3.5 | AA3: 2 | AB3: =IF(E4=AA2,Z33,MIN(Z33,AB33)) -> 2.4 | AC3: =AA33*IF(E4<>AA4,1000,1) -> 1530 | AD3: =AC33 -> 2.199451285 | AF3: ISX White | AH3: White
D4: Number of sails | E4: 2 | Y4: IP | Z4: 2 | AA4: 3 | AB4: Tri sails | AC4: Warning 1 | AD4: Warning: Sail too narrow, increase no. of sails, add additional fitting points or reduce gap size | AF4: ISX Solid Ivory | AH4: Gold
D5: Left triangle sails | E5: Yes | Y5: No. of vents | AB5: No | AC5: Warning 2 | AD5: Warning: Sail too narrow, decrease no. of sails, add additional fitting points or increase gap size | AF5: ISX Solid Oyster
D6: Right triangle sails | E6: No | W6: Shape | X6: =IF(AA9=W7,X7,IF(AA9=W8,X8,IF(AA9=W9,X9))) -> 1 | Y6: 0 | AB6: Yes | AC6: Warning 3 | AD6: Warning: Sail too wide for standard fabric, please add more sails or increase gap size | AF6: ISX Solid Sand
W7: Triangle | X7: 0.6 | Y7: 1 | AB7: Coverage | AC7: Warning 4 | AD7: Warning: Conservatory too long for standard fabric, contact office for more detailed price | AF7: ISX Solid Stone
D8: Reduce left gap size | E8: Standard | W8: Diamond | X8: 0.6 | Y8: 2 | Z8: No. of corners | AA8: 4 | AB8: Cover one side | AC8: Warning 5 | AD8: Warning: Ridge is too short for a 3 sails roof solution, reduce no. of sails | AF8: ISX Duplex | AG8: 6
D9: Reduce right gap size | E9: Standard | W9: Other | X9: 1 | Y9: 3 | Z9: Shape | AA9: Other | AB9: Cover both sides | AF9: ISX Duplex Ocean
D10: Total additional fittings | E10: 0 | W10: Overlap middle left | X10: =IF(E8=W11,X11,IF(E8=W12,X12,IF(E8=W13,X13))) -> 0 | Y10: 4 | Z10: Curve allowance | AA10: 0.5 | AF10: ISX Duplex Forest
D11: Total tie-bar loops | E11: 0 | W11: Standard | X11: 0 | Y11: 5 | Z11: Front | AA11: Mid | AB11: Quarters | AC11: Back | AD11: Mid | AE11: Quarters | AF11: ISX Duplex Stone
D12: Total straight edges | E12: 0 | W12: 0.5 | X12: =IF(E4=AA2,0,(AA12*1.5)+(0.035/(B22/1000))) -> 0.1340104167 | Y12: 6 | Z12: Horizontal | AA12: =((Z26+(0.07/(IF(B22>B23,B22,B23)/1000)))*0.13)+Z24 -> 0.08447916667 | AB12: =(AA12)*0.75 -> 0.063359375 | AC12: Horizontal | AD12: =((AC26+(0.07/(IF(B22>B23,B22,B23)/1000)))*0.13)+Z24 -> 0.08447916667 | AE12: =(AD12)*0.75 -> 0.063359375 | AF12: ISX Duplex Slate
W13: 1 | X13: =IF(E4=AA2,0,(AA12*1.5)*2+(0.035/(B22/1000))) -> 0.2607291667 | Z13: Horizontal overlaped | AA13: =((AA26+(0.07/(IF(B22>B23,B22,B23)/1000)))*0.13)+Z24 -> 0.08447916667 | AB13: =(AA13)*0.75 -> 0.063359375 | AC13: Horizontal overlaped | AD13: =((AC26+(0.07/(IF(B22>B23,B22,B23)/1000)))*0.13)+Z24 -> 0.08447916667 | AE13: =(AD13)*0.75 -> 0.063359375 | AF13: ISX Duplex Graphite
D14: Colour of main sails | E14: ISX Solid | W14: Overlap middle right | X14: =IF(E4=AA3,X10,IF(E9=W11,X11,IF(E9=W12,X12,IF(E9=W13,X13)))) -> 0 | Z14: Vertical | AA14: =IF(E4=AA2,((Z27+(0.07/(IF(B22>B23,B22,B23)/1000)))*0.13)+Z24,((Z27+(0.07/(IF(B22>B23,B22,B23)/1000)))*0.13)+Z24) -> 0.07229166667 | AB14: =AA14*0.75 -> 0.05421875 | AC14: Vertical | AD14: =IF(E4=AA2,((AB27+(0.07/(IF(B22>B23,B22,B23)/1000)))*0.13)+Z24,((AB27+(0.07/(IF(B22>B23,B22,B23)/1000)))*0.13)+Z24) -> 0.07229166667 | AE14: =AD14*0.75 -> 0.05421875 | AF14: ISXFR Solid | AG14: 6
D15: Colour of triangles | E15: ISX Solid | X15: Dims in m | Z15: Vertical overlaped | AA15: =IF(E4=AA2,((AA27+(0.07/(IF(B22>B23,B22,B23)/1000)))*0.13)+Z24,((AA27+(0.07/(IF(B22>B23,B22,B23)/1000)))*0.13)+Z24) -> 0.07229166667 | AB15: =AA15*0.75 -> 0.05421875 | AC15: Vertical overlaped | AD15: =IF(E4=AA2,((AC27+(0.07/(IF(B22>B23,B22,B23)/1000)))*0.13)+Z24,((AC27+(0.07/(IF(B22>B23,B22,B23)/1000)))*0.13)+Z24) -> 0.07229166667 | AE15: =AD15*0.75 -> 0.05421875 | AF15: ISXFR White
D16: Colour of fittings | E16: Stainless steel | W16: h1 | X16: =B24/IF(B22>B23,B22,B23) -> 0.4166666667 | Z16: Mid | AA16: Mid | AB16: Quarters | AF16: ISXFR Solid Ivory
D17: Number of window vents | E17: 0 | I17: Plan view - looking from above | W17: h2 | X17: =B25/IF(B22>B23,B22,B23) -> 0.6770833333 | Z17: Horizontal | AA17: =((Z29+(0.07/(IF(B22>B23,B22,B23)/1000)))*0.13)+Z24 -> 0.08447916667 | AB17: =(AA17)*0.75 -> 0.063359375 | AF17: ISXFR Solid Oyster
H18: =IF(OR(E10>0,E11>0,E12>0),"Mark additional features (fittings/tie-bar loops/straight edges) on sketch","") ->  | W18: x1 | X18: =B22/IF(B22>B23,B22,B23) -> 1 | Z18: Vertical | AA18: =((Z30+(0.07/(IF(B22>B23,B22,B23)/1000)))*0.13)+Z24 -> 0.050625 | AB18: =AA18*0.75 -> 0.03796875 | AF18: ISXFR Duplex | AG18: 7.2
D19: Max length of sail | E19: =(MAX(Z32:AB32))*1000 -> 3112.073264 | W19: y1 | X19: =B23/IF(B22>B23,B22,B23) -> 0.59375 | Z19: Vertical overlaped | AA19: =((AVERAGE(Z30:AB30)+(0.07/(IF(B22>B23,B22,B23)/1000)))*0.13)+Z24 -> 0.050625 | AB19: =AA19*0.75 -> 0.03796875 | AF19: ISXFR Duplex Ocean
D20: Max width of sail | E20: =(MAX(Z33:AB33))*1000 -> 2400 | W20: r1 | X20: =B26/IF(B22>B23,B22,B23) -> 0.3333333333 | Z20: front | AA20: mid | AB20: tri front | AC20: tri mid | AF20: ISXFR Duplex Forest
B21: All dims in mm | H21: Total budget cost incl. Installation+VAT+Delivery | K21: =(((12.15+(E17*50*VAT!V1)+Z35+AA35+AB35+IF(E5=AB6,AC35,)+IF(AND(E4=AA4,E6=AB6),AC35,))+(25.5*E10)+IF(E16<>AH2,E10*2,0)))+(E11*75*VAT!V1)+(E12*100*VAT!V1) -> 1881.680942 | Y21: Sail perimeter | Z21: =((AA26+0.07)*2)+((AA27+0.07)*2) -> 2.409166667 | AA21: =((Z29+0.07)*2)+AA30+0.07+Z30+0.07 -> 2.075833333 | AB21: =((AD26+0.07)*2)+AD27+0.07 -> 0.21 | AC21: =((AC29+0.07)*2)+AC30+0.07 -> 1.921166211 | AF21: ISXFR Duplex Sand
A22: X1 | B22: 4800 | D22: Please note that sails larger than 2100mm in both directions, will require a colour matched seam. | K22: =' '!P3 -> 2163.933083 | Y22: Roof area (m^2) | Z22: =Z23*X18 -> 0.6483485966 | AA22: Tri | AB22: Mid | AC22: Quarters | AF22: ISXFR Duplex Stone
A23: Y1 | B23: 2850 | G23: =' '!A9 -> 0 | Y23: Glazing bar length | Z23: =SQRT((X17-X16)^2+(X19^2)) -> 0.6483485966 | AA23: Vertical Back | AB23: =((AC30+(0.07/(B22/1000)))*0.13)+Z24 -> 0.06686013896 | AC23: =AB23*0.75 -> 0.05014510422 | AF23: ISXFR Duplex Slate
A24: H1 | B24: 2000 | Y24: 50mm links | Z24: =(0.035/(IF(B22>B23,B22,B23)/1000)) -> 0.007291666667 | AA24: Vertical Front | AB24: =((AD27+(0.07/(B22/1000)))*0.13)+Z24 -> 0.0091875 | AC24: =AB24*0.75 -> 0.006890625 | AF24: ISXFR Duplex Graphite
A25: H2 | B25: 3250 | D25: =IF(((MAX(AA12,AA17,AD12)*(B22/1000))*2)>(MIN(AB3:AC3)*AA10),AD5,IF(((MAX(AA14,AA18,AD14)*(B22/1000)*2)>(MIN(AB2:AC2)*AA10)),AD4,IF(AND((X20*(B22/1000))<0.75,E4=AA4),AD8,IF(AND(AB3>4,AB2>4),AD6,"")))) ->  | Z25: front + overlaped | AB25: back + overlaped
A26: R1 | B26: 1600 | G26: =' '!A12 -> 0 | Y26: Sail length | Z26: =X19-(0.07/(IF(B22>B23,B22,B23)/1000)) -> 0.5791666667 | AA26: =Z26 -> 0.5791666667 | AB26: =X19-(0.07/(IF(B22>B23,B22,B23)/1000)) -> 0.5791666667 | AC26: =AB26 -> 0.5791666667
Y27: Sail width | Z27: =IF(E4=AA2,O65-(0.07/(IF(B22>B23,B22,B23)/1000)),IF(E4=AA3,O69-(X20/2)-(0.07/(IF(B22>B23,B22,B23)/1000)),O68-(0.07/(IF(B22>B23,B22,B23)/1000)))) -> 0.4854166667 | AA27: =Z27+X10 -> 0.4854166667 | AB27: =IF(E4=AA2,O65-(0.07/(IF(B22>B23,B22,B23)/1000)),IF(E4=AA3,O69-(X20/2)-(0.07/(IF(B22>B23,B22,B23)/1000)),O68-(0.07/(IF(B22>B23,B22,B23)/1000)))) -> 0.4854166667 | AC27: =AB27+X14 -> 0.4854166667
Z28: mid + overlaped | AC28: tri mid
Y29: Sail length | Z29: =Z26 -> 0.5791666667 | AA29: <- | AB29: -> | AC29: =Z23-(0.07/(IF(B22>B23,B22,B23)/1000)) -> 0.6337652633
Y30: Sail width | Z30: =O69-O68-(0.07/(IF(B22>B23,B22,B23)/1000)) -> 0.31875 | AA30: =Z30+X10 -> 0.31875 | AB30: =Z30+X14 -> 0.31875 | AC30: =AC29*0.7 -> 0.4436356843
Y31: Costs | Z31: front | AA31: mid | AB31: back | AC31: tri mid left/right
Y32: length | Z32: =(Z23*(IF(B22>B23,B22,B23)/1000)) -> 3.112073264 | AA32: =(Z23*(IF(B22>B23,B22,B23)/1000)) -> 3.112073264 | AB32: =(Z23*(IF(B22>B23,B22,B23)/1000)) -> 3.112073264 | AC32: =(Z23*(IF(B22>B23,B22,B23)/1000)) -> 3.112073264
Y33: width | Z33: =IF((((E67-E63)*(IF(B22>B23,B22,B23)/1000))+0.07)>((SQRT(((B22-B26)/2)^2+(B25-B24)^2)))/1000,(((E67-E63)*(IF(B22>B23,B22,B23)/1000))+0.07),(SQRT(((B22-B26)/2)^2+(B25-B24)^2))/1000) -> 2.4 | AA33: =IF(E4<>AA4,Z30*(IF(B22>B23,B22,B23)/1000),((G67-G63)*(IF(B22>B23,B22,B23)/1000))+0.07) -> 1.53 | AB33: =IF((((I67-I63)*(IF(B22>B23,B22,B23)/1000))+0.07)>((SQRT(((B22-B26)/2)^2+(B25-B24)^2)))/1000,(((I67-I63)*(IF(B22>B23,B22,B23)/1000))+0.07),(SQRT(((B22-B26)/2)^2+(B25-B24)^2))/1000) -> 2.4 | AC33: =(AC30*(IF(B22>B23,B22,B23)/1000))+0.07 -> 2.199451285
Y34: perimeter | Z34: =(Z32+Z33+((Z23*(IF(B22>B23,B22,B23)/1000))+0.07)+((Z27*(IF(B22>B23,B22,B23)/1000))+0.07))*1.05 -> 11.64885385 | AA34: =((AA32*2)+((Z30*(IF(B22>B23,B22,B23)/1000)+0.07))+AA33)*1.05 -> 9.821853854 | AB34: =(AB32+AB33+((Z23*(IF(B22>B23,B22,B23)/1000))+0.07)+((AB27*(IF(B22>B23,B22,B23)/1000))+0.07))*1.05 -> 11.64885385 | AC34: =((AC32*2)+AC33)*1.05 -> 8.844777703
Z35: =((((1.05*(X1*((X6*Z32*Z33*Z1)+(Z34*Z2)+(AA8*Z3)+Z4))+7.2*AA8)))+IF(E16<>AH2,8*VAT!V1,0))/1.2*VAT!V1 -> 710.7488043 | AA35: =IF(E4=AA4,(IF(E4<>AA4,0,(((1.05*(X1*((X6*AA32*AA33*Z1)+(AA34*Z2)+(AA8*Z3)+Z4))+7.2*AA8))))+IF(E16<>AH2,8*VAT!V1,0))/1.2*VAT!V1,0) -> 0 | AB35: =IF(E4=AA2,0,((((1.05*(X1*((X6*AB32*AB33*Z1)+(AB34*Z2)+(AA8*Z3)+Z4))+7.2*AA8)))+IF(E16<>AH2,8*VAT!V1,0))/1.2*VAT!V1) -> 710.7488043 | AC35: =(IF(OR(E5=AB6,E6=AB6),(1.05*(X2*((X7*AC32*AC33*Z1)+(AC34*Z2)+(3*Z3)+Z4))+7.2*3),)+IF(E16<>AH2,6*VAT!V1,0))/1.2*VAT!V1 -> 448.0333335
E61: x | F61: y | G61: x | H61: y | I61: x | J61: y | K61: x | L61: y | M61: x | N61: y | O61: Roof plan
E62: down front | G62: down mid | I62: down left | K62: left tri 1 | M62: right tri 2 | O62: x-axis | P62: y-axis
E63: =Z24 -> 0.007291666667 | F63: =Z24 -> 0.007291666667 | G63: =IF(E4=AA4,X18/2-(AA30/2),) -> 0 | H63: =IF(E4=AA4,Z24,) -> 0 | I63: =IF(E4<>AA2,I67-AC27,) -> 0.5072916667 | J63: =IF(E4<>AA2,Z24,) -> 0.007291666667 | K63: =IF(E4=AA2,0,IF(E5=AB6,K65-(AC30/2),)) -> 0.2781821578 | L63: =IF(E4=AA2,0,IF(E5=AB6,Z24,)) -> 0.007291666667 | M63: =IF(E4<>AA4,0,IF(E6=AB6,M65-(AC30/2),)) -> 0 | N63: =IF(E4<>AA4,0,IF(E6=AB6,Z24,)) -> 0 | O63: 0 | P63: 0
E64: =IF(E4=AA2,E63+(AA27/4),E63+(AA27/4)) -> 0.1286458333 | F64: =F65*0.75 -> 0.05421875 | G64: =IF(E4=AA4,G63+(MAX(AA30:AB30)/4),) -> 0 | H64: =IF(E4=AA4,AB19,) -> 0 | I64: =IF(E4<>AA2,I63+(AC27/4),0) -> 0.6286458333 | J64: =IF(E4<>AA2,AE15,) -> 0.05421875 | K64: =IF(E4=AA2,0,IF(E5=AB6,K65-(AC30/4),)) -> 0.3890910789 | L64: =IF(E4=AA2,0,IF(E5=AB6,AC23,)) -> 0.05014510422 | M64: =IF(E4<>AA4,0,IF(E6=AB6,M65-(AC30/4),)) -> 0 | N64: =IF(E4<>AA4,0,IF(E6=AB6,AC23,)) -> 0 | O64: =X18 -> 1 | P64: 0
E65: =IF(E4=AA2,E63+(AA27/2),E63+(AA27/2)) -> 0.25 | F65: =AA15 -> 0.07229166667 | G65: =IF(E4=AA4,G67-(G67-G63)/2,) -> 0 | H65: =IF(E4=AA4,AA19,) -> 0 | I65: =IF(E4<>AA2,I63+(AC27/2),0) -> 0.75 | J65: =IF(E4<>AA2,AD15,) -> 0.07229166667 | K65: =IF(E4=AA2,0,IF(E5=AB6,K71,)) -> 0.5 | L65: =IF(E4=AA2,0,IF(E5=AB6,AB23,)) -> 0.06686013896 | M65: =IF(E4<>AA4,0,IF(E6=AB6,M71,)) -> 0 | N65: =IF(E4<>AA4,0,IF(E6=AB6,AB23,)) -> 0 | O65: =X18 -> 1 | P65: =X19 -> 0.59375
E66: =IF(E4=AA2,E65+(AA27/4),E65+(AA27/4)) -> 0.3713541667 | F66: =F64 -> 0.05421875 | G66: =IF(E4=AA4,G67-(MAX(AA30:AB30)/4),) -> 0 | H66: =IF(E4=AA4,H64,) -> 0 | I66: =IF(E4<>AA2,I65+(AC27/4),0) -> 0.8713541667 | J66: =IF(E4<>AA2,J64,) -> 0.05421875 | K66: =IF(E4=AA2,0,IF(E5=AB6,K65+(AC30/4),)) -> 0.6109089211 | L66: =IF(E4=AA2,0,IF(E5=AB6,AC23,)) -> 0.05014510422 | M66: =IF(E4<>AA4,0,IF(E6=AB6,M65+(AC30/4),)) -> 0 | N66: =IF(E4<>AA4,0,IF(E6=AB6,AC23,)) -> 0 | O66: 0 | P66: =X19 -> 0.59375
E67: =IF(E4=AA2,E63+AA27,E63+AA27) -> 0.4927083333 | F67: =Z24 -> 0.007291666667 | G67: =IF(E4=AA4,X18/2+(AB30/2),) -> 0 | H67: =IF(E4=AA4,Z24,) -> 0 | I67: =IF(E4<>AA2,X18-Z24,0) -> 0.9927083333 | J67: =J63 -> 0.007291666667 | K67: =IF(E4=AA2,0,IF(E5=AB6,K65+(AC30/2),)) -> 0.7218178422 | L67: =L63 -> 0.007291666667 | M67: =IF(E4<>AA4,0,IF(E6=AB6,M65+(AC30/2),)) -> 0 | N67: =IF(E4<>AA4,0,IF(E6=AB6,N63,)) -> 0 | O67: 0 | P67: 0
E68: =E67-AB12-(X10/2.75) -> 0.4293489583 | F68: =IF(E4=AA2,F78,Z26/4) -> 0.1447916667 | G68: =IF(E4=AA4,G67-AB17-(X14/8),) -> 0 | H68: =IF(E4=AA4,F68,) -> 0 | I68: =IF(E4<>AA2,I67-AE13,) -> 0.9293489583 | J68: =IF(E4<>AA2,J69-(AC26/4),) -> 0.1520833333 | K68: =IF(E4=AA2,0,IF(E5=AB6,K67-((K67-K71)/1.8),)) -> 0.5985857076 | L68: =IF(E4=AA2,0,IF(E5=AB6,L69-(AC29/4),)) -> 0.1384336842 | M68: =IF(E4<>AA4,0,IF(E6=AB6,M67-((M67-M71)/1.8),)) -> 0 | N68: =IF(E4<>AA4,0,IF(E6=AB6,N69-(AC29/4),)) -> 0 | O68: =(X18/2)-(X20/2) -> 0.3333333333 | P68: =X19 -> 0.59375
E69: =E67-AA12-(X10/1.6) -> 0.4082291667 | F69: =IF(E4=AA2,F77,X19/2) -> 0.296875 | G69: =IF(E4=AA4,G67-AA17-(X14/4),) -> 0 | H69: =IF(E4=AA4,F69,) -> 0 | I69: =IF(E4<>AA2,I67-AD13,) -> 0.9082291667 | J69: =IF(E4<>AA2,J70-(AC26/4),) -> 0.296875 | K69: =IF(E4=AA2,0,IF(E5=AB6,K67-((K67-K71)*0.85),)) -> 0.5332726763 | L69: =IF(E4=AA2,0,IF(E5=AB6,X19-(X19/2),)) -> 0.296875 | M69: =IF(E4<>AA4,0,IF(E6=AB6,M67-((M67-M71)*0.85),)) -> 0 | N69: =IF(E4<>AA4,0,IF(E6=AB6,X19-(X19/2),)) -> 0 | O69: =(X18/2)+(X20/2) -> 0.6666666667 | P69: =P68 -> 0.59375
E70: =E71-AB12+(X10/5.5) -> 0.4293489583 | F70: =IF(E4=AA2,F76,Z26*0.75) -> 0.434375 | G70: =IF(E4=AA4,G71-AB17+(X14/6),) -> 0 | H70: =IF(E4=AA4,F70,) -> 0 | I70: =IF(E4<>AA2,I67-AE13,) -> 0.9293489583 | J70: =IF(E4<>AA2,J71-(AC26/4),) -> 0.4416666667 | K70: =IF(E4=AA2,0,IF(E5=AB6,K71+((K67-K71)*0.05),)) -> 0.5110908921 | L70: =IF(E4=AA2,0,IF(E5=AB6,L69+(AC29/4),)) -> 0.4553163158 | M70: =IF(E4<>AA4,0,IF(E6=AB6,M71+((M67-M71)*0.05),)) -> 0 | N70: =IF(E4<>AA4,0,IF(E6=AB6,N69+(AC29/4),)) -> 0 | O70: =X18 -> 1 | P70: 0
E71: =IF(E4=AA2,E63+AA27,E63+Z27) -> 0.4927083333 | F71: =IF(E4=AA2,F75,X19-Z24) -> 0.5864583333 | G71: =IF(E4=AA4,O69-Z24,) -> 0 | H71: =IF(E4=AA4,X19-Z24,) -> 0 | I71: =IF(E4<>AA2,I67,0) -> 0.9927083333 | J71: =IF(E4<>AA2,J67+AC26,) -> 0.5864583333 | K71: =IF(E4=AA2,0,IF(E5=AB6,O68+IF(E4=AA3,X20/2,),)) -> 0.5 | L71: =IF(E4=AA2,0,IF(E5=AB6,P68-Z24,)) -> 0.5864583333 | M71: =IF(E4<>AA4,0,IF(E6=AB6,X20+O68,)) -> 0 | N71: =IF(E4<>AA4,0,IF(E6=AB6,P68-Z24,)) -> 0
E72: =IF(E4=AA2,E65+(AA27/4),E71-(Z27/4)) -> 0.3713541667 | F72: =IF(E4=AA2,F74,F71-AB14) -> 0.5322395833 | G72: =IF(E4=AA4,G71-(Z30/4),) -> 0 | H72: =IF(E4=AA4,X19-AB18,) -> 0 | I72: =IF(E4<>AA2,I71-(Z27/4),) -> 0.8713541667 | J72: =IF(E4<>AA2,J71-AE14,) -> 0.5322395833 | K72: =IF(E5=AB6,K71-((K67-K71)*0.05),) -> 0.4889091079 | L72: =L70 -> 0.4553163158 | M72: =IF(E4<>AA4,0,IF(E6=AB6,M71-((M67-M71)*0.05),)) -> 0 | N72: =IF(E4<>AA4,0,IF(E6=AB6,N70,)) -> 0
E73: =IF(E4=AA2,E63+(AA27/2),E72-(Z27/4)) -> 0.25 | F73: =F75-AA14 -> 0.5141666667 | G73: =IF(E4=AA4,X18/2,) -> 0 | H73: =IF(E4=AA4,X19-AA18,) -> 0 | I73: =IF(E4<>AA2,I71-(Z27/2),0) -> 0.75 | J73: =IF(E4<>AA2,J71-AD14,) -> 0.5141666667 | K73: =IF(E5=AB6,K75+((K71-K75)*0.85),) -> 0.4667273237 | L73: =L69 -> 0.296875 | M73: =IF(E4<>AA4,0,IF(E6=AB6,M75+((M71-M75)*0.85),)) -> 0 | N73: =IF(E4<>AA4,0,IF(E6=AB6,N69,)) -> 0
E74: =IF(E4=AA2,E63+(AA27/4),E73-(Z27/4)) -> 0.1286458333 | F74: =F75-AB14 -> 0.5322395833 | G74: =IF(E4=AA4,G73-(Z30/4),) -> 0 | H74: =IF(E4=AA4,X19-AB18,) -> 0 | I74: =IF(E4<>AA2,I75+(Z27/4),0) -> 0.6286458333 | J74: =IF(E4<>AA2,J71-AE14,) -> 0.5322395833 | K74: =K75+((K71-K75)/1.8) -> 0.4014142924 | L74: =L68 -> 0.1384336842 | M74: =IF(E4<>AA4,0,IF(E6=AB6,M75+((M71-M75)/1.8),)) -> 0 | N74: =IF(E4<>AA4,0,IF(E6=AB6,N68,)) -> 0
E75: =E63 -> 0.007291666667 | F75: =F63+AA26 -> 0.5864583333 | G75: =IF(E4=AA4,G71-Z30,) -> 0 | H75: =IF(E4=AA4,H71,) -> 0 | I75: =IF(E4=AA3,O68+(X20/2)+Z24,IF(E4<>AA2,O69+Z24,)) -> 0.5072916667 | J75: =IF(E4<>AA2,P69-Z24,) -> 0.5864583333 | K75: =K63 -> 0.2781821578 | L75: =L63 -> 0.007291666667 | M75: =IF(E4<>AA4,0,IF(E6=AB6,M63,)) -> 0 | N75: =IF(E4<>AA4,0,IF(E6=AB6,N63,)) -> 0
E76: =E63+AB13 -> 0.07065104167 | F76: =F75-(AA26/4) -> 0.4416666667 | G76: =IF(E4=AA4,G75+AB17-(X10/6),) -> 0 | H76: =H70 -> 0 | I76: =IF(E4<>AA2,I75+AB12-(X14/5.5),) -> 0.5706510417 | J76: =IF(E4<>AA2,(Z26*0.75),) -> 0.434375
E77: =E63+AA13 -> 0.09177083333 | F77: =F76-(AA26/4) -> 0.296875 | G77: =IF(E4=AA4,G79+AA17+(X10/4),) -> 0 | H77: =IF(E4=AA4,H69,) -> 0 | I77: =IF(E4<>AA2,I79+AA12+(X14/1.6),) -> 0.5917708333 | J77: =IF(E4<>AA2,X19/2,) -> 0.296875
E78: =E76 -> 0.07065104167 | F78: =F77-(AA26/4) -> 0.1520833333 | G78: =IF(E4=AA4,G79+AB17+(X10/8),) -> 0 | H78: =H68 -> 0 | I78: =IF(E4<>AA2,I79+AB12+(X14/2.75),) -> 0.5706510417 | J78: =IF(E4<>AA2,Z26/4,) -> 0.1447916667
E79: =E63 -> 0.007291666667 | F79: =Z24 -> 0.007291666667 | G79: =IF(E4=AA4,G63,) -> 0 | H79: =IF(E4=AA4,Z24,) -> 0 | I79: =I63 -> 0.5072916667 | J79: =J63 -> 0.007291666667

Sheet Georgian Gable
S1: Main material | T1: =IF(OR(E15=AA2,E15=AA3,E15=AA4,E15=AA5,E15=AA6,E15=AA7),5,IF(OR(E15=AA8,E15=AA9,E15=AA10,E15=AA11,E15=AA12,E15=AA13,E15=AA14,E15=AA15,E15=AA16,E15=AA17),6,IF(OR(E15=AA18,E15=AA19,E15=AA20,E15=AA21,E15=AA22,E15=AA23,E15=AA24),7.2,))) -> 5 | U1: Material cost | V1: 11.35 | W1: Sails | X1: Warning 1 | Y1: Warning: Sail too narrow, increase no. of sails, add additional fitting points or reduce gap size | Z1: Sails | AA1: Fabric Colour | AC1: Fittings Colours
S2: Tri material | T2: =IF(OR(E16=AA2,E16=AA3,E16=AA4,E16=AA5,E16=AA6,E16=AA7),5,IF(OR(E16=AA8,E16=AA9,E16=AA10,E16=AA11,E16=AA12,E16=AA13,E16=AA14,E16=AA15,E16=AA16,E16=AA17),6,IF(OR(E16=AA18,E16=AA19,E16=AA20,E16=AA21,E16=AA22,E16=AA23,E16=AA24),7.2,))) -> 5 | U2: PE | V2: 2.5 | W2: 1 - Front | X2: Warning 2 | Y2: Warning: Sail too narrow, decrease no. of sails, add additional fitting points gap size | Z2: =IF(E5=W2,2,IF(E5=W3,1,E5)) -> 3 | AA2: ISX Solid | AB2: 5 | AC2: Stainless steel
U3: PN | V3: 3.5 | W3: 1 - Full | X3: Warning 3 | Y3: Warning: Sail too wide for standard fabric, please add more sails or increase gap size | AA3: ISX White | AC3: White
D4: Select coverage | E4: Cover both sides | U4: IP | V4: 2 | W4: 2 | X4: Warning 4 | Y4: Warning: Conservatory too long for standard fabric, contact office for more detailed price | AA4: ISX Solid Ivory | AC4: Gold
D5: Number of sails per side | E5: 3 | U5: No. of vents | W5: 3 | AA5: ISX Solid Oyster
D6: Left triangle sail | E6: No | S6: Shape | T6: =IF(W10=S7,T7,IF(W10=S8,T8,IF(W10=S9,T9))) -> 1 | U6: 0 | AA6: ISX Solid Sand
D7: Right triangle sail | E7: No | S7: Triangle | T7: 0.6 | U7: 1 | Y7: Dims in m | AA7: ISX Solid Stone
S8: Diamond | T8: 0.6 | U8: 2 | X8: h1 | Y8: =B26/IF(B24>B25,B24,B25) -> 0.5375 | AA8: ISX Duplex | AB8: 6
D9: Reduce left gap size | E9: 1 | S9: Other | T9: 1 | U9: 3 | V9: No. of corners | W9: 4 | X9: h2 | Y9: =B27/IF(B24>B25,B24,B25) -> 0.7625 | AA9: ISX Duplex Ocean
D10: Reduce right gap size | E10: 1 | S10: Overlap left | T10: =IF(E9=S11,T11,IF(E9=S12,T12,IF(E9=S13,T13,))) -> 0.107575 | U10: 4 | V10: Shape | W10: Other | X10: y1 | Y10: =B25/IF(B24>B25,B24,B25) -> 0.8625 | AA10: ISX Duplex Forest
D11: Total additional fittings | E11: 0 | S11: Standard | T11: 0 | V11: Curve allowance | W11: 0.5 | X11: x1 | Y11: =B24/IF(B24>B25,B24,B25) -> 1 | AA11: ISX Duplex Stone
D12: Total tie-bar loops | E12: 0 | S12: 0.5 | T12: =IF(E5=W3,0,IF(OR(E5=W4,E5=W2),(U16/2)+(0.035/(IF(B24>B25,B24,B25)/1000)),IF(E5=W5,(U16*0.67)+Y23))) -> 0.0581625 | AA12: ISX Duplex Slate
D13: Total straight edges | E13: 0 | S13: 1 | T13: =IF(E5=W3,0,IF(OR(E5=W4,E5=W2),U16+(0.035/(IF(B24>B25,B24,B25)/1000)),IF(E5=W5,(U16*1.34)+(0.035/(IF(B24>B25,B24,B25)/1000))))) -> 0.107575 | U13: tri width | V13: tri length | W13: tri mid | X13: tri quarter | Y13: tri perimeter | AA13: ISX Duplex Graphite
S14: Overlap right | T14: =IF(E5=W4,T10,IF(E10=S11,T11,IF(E10=S12,T12,IF(E10=S13,T13)))) -> 0.107575 | U14: =V14*0.7 -> 0.33775 | V14: =R65-(0.07/(IF(B24>B25,B24,B25)/1000)) -> 0.4825 | W14: =U14*0.13 -> 0.0439075 | X14: =W14*0.75 -> 0.032930625 | Y14: =(U14+(0.07/(IF(B24>B25,B24,B25)/1000)))+((V14+(0.07/(IF(B24>B25,B24,B25)/1000)))*2) -> 1.35525 | AA14: ISXFR Solid | AB14: 6
D15: Colour of main sails | E15: ISX Solid | T15: Warnings | U15: Mid | V15: Quarters | W15: Coverage | X15: Roof area (m^2) | Y15: =Y18*Y10 -> 0.4729025443 | AA15: ISXFR White
D16: Colour of triangles | E16: ISX Solid | S16: Width | T16: =(IF(OR(E5=W2,E5=W3),T23,IF(OR(E5=W4,E5=W5),MIN(T23:V23),))) -> 1.5803 | U16: =((Y19+(0.07/(IF(B24>B25,B24,B25)/1000)))*0.13)+Y23 -> 0.07375 | V16: =(U16)*0.75 -> 0.0553125 | W16: Cover one side | X16: Area of each sail | Y16: =Y15/Z2 -> 0.1576341814 | AA16: ISXFR Solid Ivory
D17: Colour of fittings | E17: Stainless steel | H17: Plan view - looking from above | S17: Length | T17: =(Y19*(IF(B24>B25,B24,B25)/1000))+0.07 -> 2 | U17: - | V17: - | W17: Cover both sides | X17: Sail perimeter | Y17: =((Y19+0.07)*2)+((Y20+0.07)*2) -> 2.00015 | AA17: ISXFR Solid Oyster
D18: Number of window vents | E18: 0 | G18: =IF(OR(E11>0,E12>0,E13>0),"Mark additional features (fittings/tie-bar loops/straight edges) on sketch","") ->  | S18: Vertical left | T18: =((Y20+(0.07/(IF(B24>B25,B24,B25)/1000)))*0.13)+Y23 -> 0.06010975 | U18: =T18*0.75 -> 0.0450823125 | W18: triangles | X18: Glazing bar length | Y18: =SQRT((Y9-Y8)^2+(Y11/2)^2) -> 0.548292805 | AA18: ISXFR Duplex | AB18: 7.2
S19: Vertical mid | T19: =((AVERAGE(Y21:Z21)+(0.07/(IF(B24>B25,B24,B25)/1000)))*0.13)+Y23 -> 0.06010975 | U19: =T19*0.75 -> 0.0450823125 | W19: No | X19: Length of sail | Y19: =(Y11/2)-(0.07/(IF(B24>B25,B24,B25)/1000)) -> 0.4825 | AA19: ISXFR Duplex Ocean
D20: Max length of sail | E20: =(MAX(T22:V22))*1000 -> 2193.17122 | S20: Vertical right | T20: =((Y22+(0.07/(IF(B24>B25,B24,B25)/1000)))*0.13)+Y23 -> 0.06010975 | U20: =T20*0.75 -> 0.0450823125 | W20: Yes | X20: Width left | Y20: =(Y10/Z2)-(0.07/(IF(B24>B25,B24,B25)/1000))+T10 -> 0.377575 | Z20: -> | AA20: ISXFR Duplex Forest
D21: Max width of sail | E21: =T16*1000 -> 1580.3 | H21: Total budget cost incl. Installation+VAT+Delivery | K21: =(((T25+U25+V25+12.15+(E18*50*VAT!V1)+IF(AND(E6=W20,E5<>W3),W25,)+IF(AND(E7=W20,E5=W5),W25,))+(25.5*E11)+IF(E17<>AC2,E11*2,0)))+(E12*75*VAT!V1)+(E13*100*VAT!V1) -> 2552.122431 | S21: Costs | T21: left | U21: mid | V21: right | W21: tri | X21: Width middle | Y21: =(Y10/Z2)-(0.07/(IF(B24>B25,B24,B25)/1000))+T10 -> 0.377575 | Z21: =(Y10/Z2)-(0.07/(IF(B24>B25,B24,B25)/1000))+T14 -> 0.377575 | AA21: ISXFR Duplex Sand
K22: =' '!P4 -> 2934.940796 | S22: length | T22: =(Y18*(IF(B24>B25,B24,B25)/1000)) -> 2.19317122 | U22: =T22 -> 2.19317122 | V22: =U22 -> 2.19317122 | W22: =V22 -> 2.19317122 | X22: Width right | Y22: =(Y10/Z2)-(0.07/(IF(B24>B25,B24,B25)/1000))+T14 -> 0.377575 | AA22: ISXFR Duplex Stone
B23: All dims in mm | D23: Please note that sails larger than 2100mm in both directions, will require a colour matched seam. | G23: =' '!A9 -> 0 | S23: width | T23: =((D68-D64)*(IF(B24>B25,B24,B25)/1000))+0.07 -> 1.5803 | U23: =IF(E5<>W5,MIN(T23,V23),((H68-H64)*(IF(B24>B25,B24,B25)/1000))+0.07) -> 1.5803 | V23: =((F68-F64)*(IF(B24>B25,B24,B25)/1000))+0.07*IF(E5<>W3,1,1000) -> 1.5803 | W23: =(U14*(IF(B24>B25,B24,B25)/1000))+0.07 -> 1.421 | X23: 50mm links | Y23: =0.035/(IF(B24>B25,B24,B25)/1000) -> 0.00875 | AA23: ISXFR Duplex Slate
A24: X1 | B24: 4000 | S24: perimeter | T24: =((T22*2)+(T23*2))*1.05 -> 7.924289562 | U24: =((U22*2)+(U23*2))*1.05 -> 7.924289562 | V24: =((V22*2)+(V23*2))*1.05 -> 7.924289562 | W24: =((W22*2)+W23)*1.05 -> 6.097709562 | AA24: ISXFR Duplex Graphite
A25: Y1 | B25: 3450 | T25: =(IF(E4=W17,2,1)*((((1.05*(T1*((T6*T22*T23*V1)+(T24*V2)+(W9*V3)+V4))+7.2*W9)))+IF(E17<>AC2,8*VAT!V1,0)))/1.2*VAT!V1 -> 846.657477 | U25: =IF(E5<>W5,0,(IF(E4=W17,2,1)*(IF(E5=W5,((1.05*(T1*((T6*U23*U22*V1)+(U24*V2)+(W9*V3)+V4))+7.2*W9)),)+IF(E17<>AC2,8*VAT!V1,0)))/1.2*VAT!V1) -> 846.657477 | V25: =IF(OR(E5=W2,E5=W3),0,(IF(E4=W17,2,1)*(IF(OR(E5=W4,E5=W5),((1.05*(T1*((T6*V22*V23*V1)+(V24*V2)+(W9*V3)+V4))+7.2*W9)),0)+IF(E17<>AC2,8*VAT!V1,0)))/1.2*VAT!V1) -> 846.657477 | W25: =((IF(AND(E5<>W3,OR(E6=W20,AND(E7=W20,E5<>W4))),((1.05*(T2*((T7*W23*W22*V1)+(W24*V2)+(3*V3)+V4))+7.2*3)),)+IF(E17<>AC2,6*VAT!V1,0))*IF(E4=W17,2,1))/1.2*VAT!V1 -> 0
A26: H1 | B26: 2150 | D26: =IF(((T18*(IF(B24>B25,B24,B25)/1000))*2)>(T17*W11),Y1,IF(((U16*(IF(B24>B25,B24,B25)/1000))*2)>(T16*W11),Y2,IF(AND(T16>4,T17>4),Y3,""))) ->  | G26: =' '!A12 -> 0
A27: H2 | B27: 3050
D42: x | E42: y | F42: x | G42: y | H42: x | I42: y | K42: triangles
D43: Left up | F43: Right up | H43: Mid up | K43: x | L43: y | M43: x | N43: y | O43: x | P43: y | Q43: x | R43: y
D44: =IF(E4=W16,0,Y23) -> 0.00875 | E44: =IF(E4=W16,0,Y23+(Y11/2)) -> 0.50875 | F44: =IF(E4=W16,0,IF(E5=W3,0,IF(E5=W4,F48-Y22,IF(E5=W5,(F48-Y22))))) -> 0.476175 | G44: =IF(E5=W3,0,IF(E5=W4,E44,IF(E5=W5,E44))) -> 0.50875 | H44: =IF(E4=W16,0,IF(OR(E5=W2,E5=W3),0,IF(E5=W4,0,IF(E5=W5,(Y10/2)-(Y21/2))))) -> 0.2424625 | I44: =IF(OR(E5=W2,E5=W3),0,IF(E5=W4,0,IF(E5=W5,E44))) -> 0.50875 | K44: down left | M44: down right | O44: up left | Q44: up right
D45: =IF(E4=W16,0,D64+(Y20/4)) -> 0.10314375 | E45: =IF(E4=W16,0,(E66*0.75)+(Y11/2)) -> 0.5450823125 | F45: =IF(E4=W16,0,IF(E5=W3,0,IF(E5=W4,F46-(Y22/4),IF(E5=W5,F46-Y23-(Y22/4))))) -> 0.55306875 | G45: =IF(E4=W16,0,IF(E5=W3,0,IF(E5=W4,(Y11/2)+U20,IF(E5=W5,(Y11/2)+U20)))) -> 0.5450823125 | H45: =IF(E4=W16,0,IF(OR(E5=W2,E5=W3),0,IF(E5=W4,0,IF(E5=W5,H44+(MAX(Y21:Z21)/4))))) -> 0.33685625 | I45: =IF(E4=W16,0,IF(OR(E5=W2,E5=W3),0,IF(E5=W4,0,IF(E5=W5,(Y11/2)+U19)))) -> 0.5450823125 | K45: =IF(E6=W20,IF(E5<>W3,K47-(U14/2),),) -> 0 | L45: =IF(E6=W20,IF(E5<>W3,Y23,),) -> 0 | M45: =IF(E7=W20,IF(E5=W5,M47-(U14/2),),) -> 0 | N45: =IF(E7=W20,IF(E5=W5,Y23,),) -> 0 | O45: =IF(E4=W16,0,IF(E6=W20,IF(E5<>W3,K47-(U14/2),),)) -> 0 | P45: =IF(E4=W16,0,IF(E6=W20,IF(E5<>W3,R63-Y23,),)) -> 0 | Q45: =IF(E4=W16,0,IF(E7=W20,IF(E5=W5,M47-(U14/2),),)) -> 0 | R45: =IF(E7=W20,IF(E5=W5,R63-Y23,),) -> 0
D46: =IF(E4=W16,0,IF(E5=W3,(Y10/2),IF(OR(E5=W2,E5=W4),D68-(Y20/2),IF(E5=W5,D68-(Y20/2))))) -> 0.1975375 | E46: =IF(E4=W16,0,T18+(Y11/2)) -> 0.56010975 | F46: =IF(E4=W16,0,IF(E5=W3,0,IF(E5=W4,F48-(Y22/2),IF(E5=W5,F48-Y23-(Y22/2))))) -> 0.6562125 | G46: =IF(E4=W16,0,IF(E5=W3,0,IF(E5=W4,(Y11/2)+T20,IF(E5=W5,(Y11/2)+T20)))) -> 0.56010975 | H46: =IF(E4=W16,0,IF(OR(E5=W2,E5=W3),0,IF(E5=W4,0,IF(E5=W5,H48-((H48-H44)/2))))) -> 0.43125 | I46: =IF(E4=W16,0,IF(OR(E5=W2,E5=W3),0,IF(E5=W4,0,IF(E5=W5,(Y11/2)+T19)))) -> 0.56010975 | K46: =IF(E6=W20,IF(E5<>W3,K45+(U14/4),),) -> 0 | L46: =IF(E6=W20,IF(E5<>W3,X14,),) -> 0 | M46: =IF(E7=W20,IF(E5=W5,M47-(U14/4),),) -> 0 | N46: =IF(E7=W20,IF(E5=W5,X14,),) -> 0 | O46: =IF(E4=W16,0,IF(E6=W20,IF(E5<>W3,K45+(U14/4),),)) -> 0 | P46: =IF(E4=W16,0,IF(E6=W20,IF(E5<>W3,R63-X14,),)) -> 0 | Q46: =IF(E4=W16,0,IF(E7=W20,IF(E5=W5,M47-(U14/4),),)) -> 0 | R46: =IF(E7=W20,IF(E5=W5,R63-X14,),) -> 0
D47: =IF(E4=W16,0,D68-(Y20/4)) -> 0.29193125 | E47: =IF(E4=W16,0,E65+(Y11/2)) -> 0.5450823125 | F47: =F46+Y23+(F46-F45) -> 0.76810625 | G47: =IF(E5=W3,0,IF(E5=W4,G45,IF(E5=W5,G45))) -> 0.5450823125 | H47: =IF(E4=W16,0,IF(OR(E5=W2,E5=W3),0,IF(E5=W4,0,IF(E5=W5,H48-(MAX(Y21:Z21)/4))))) -> 0.52564375 | I47: =I45 -> 0.5450823125 | K47: =IF(E6=W20,IF(OR(E5=W2,E5=W4),Y10/2,IF(E5=W5,Y10/3,)),) -> 0 | L47: =IF(E6=W20,IF(E5<>W3,W14,),) -> 0 | M47: =IF(E7=W20,IF(E5=W5,Y10*(2/3),),) -> 0 | N47: =IF(E7=W20,IF(E5=W5,W14,),) -> 0 | O47: =IF(E4=W16,0,IF(E6=W20,IF(OR(E5=W2,E5=W4),Y10/2,IF(E5=W5,Y10/3)),)) -> 0 | P47: =IF(E4=W16,0,IF(E6=W20,IF(E5<>W3,R63-W14,),)) -> 0 | Q47: =IF(E4=W16,0,IF(E7=W20,IF(E5=W5,Y10*(2/3),),)) -> 0 | R47: =IF(E7=W20,IF(E5=W5,R63-W14,),) -> 0
D48: =IF(E4=W16,0,IF(E5=W3,D64+Y20,IF(OR(E5=W2,E5=W4),Y20+D64,IF(E5=W5,D64+Y20)))) -> 0.386325 | E48: =IF(E4=W16,0,E44) -> 0.50875 | F48: =IF(E4=W16,0,IF(E5=W3,0,IF(E5=W4,Y10-Y23,IF(E5=W5,Y10-Y23)))) -> 0.85375 | G48: =IF(E5=W3,0,IF(E5=W4,E44,IF(E5=W5,E44))) -> 0.50875 | H48: =IF(E4=W16,0,IF(OR(E5=W2,E5=W3),0,IF(E5=W4,0,IF(E5=W5,(Y10/2)+(Z21/2))))) -> 0.6200375 | I48: =IF(OR(E5=W2,E5=W3),0,IF(E5=W4,0,IF(E5=W5,E44))) -> 0.50875 | K48: =IF(E6=W20,IF(E5<>W3,K47+(U14/4),),) -> 0 | L48: =IF(E6=W20,IF(E5<>W3,X14,),) -> 0 | M48: =IF(E7=W20,IF(E5=W5,M47+(U14/4),),) -> 0 | N48: =IF(E7=W20,IF(E5=W5,X14,),) -> 0 | O48: =IF(E4=W16,0,IF(E6=W20,IF(E5<>W3,K47+(U14/4),),)) -> 0 | P48: =IF(E4=W16,0,IF(E6=W20,IF(E5<>W3,R63-X14,),)) -> 0 | Q48: =IF(E4=W16,0,IF(E7=W20,IF(E5=W5,M47+(U14/4),),)) -> 0 | R48: =IF(E7=W20,IF(E5=W5,R46,),) -> 0
D49: =IF(E4=W16,0,D68-V16) -> 0.3310125 | E49: =IF(E4=W16,0,(Y19/4)+(Y11/2)) -> 0.620625 | F49: =IF(E4=W16,0,IF(E5=W3,0,IF(E5=W4,F48-V16,IF(E5=W5,(F48-V16))))) -> 0.7984375 | G49: =IF(E5=W3,0,IF(E5=W4,E59,IF(E5=W5,E59))) -> 0.620625 | H49: =IF(E4=W16,0,IF(OR(E5=W2,E5=W3),0,IF(E5=W4,0,IF(E5=W5,H48-V16)))) -> 0.564725 | I49: =IF(OR(E5=W2,E5=W3),0,IF(E5=W4,0,IF(E5=W5,G49))) -> 0.620625 | K49: =IF(E6=W20,IF(E5<>W3,K47+(U14/2),),) -> 0 | L49: =IF(E6=W20,IF(E5<>W3,Y23,),) -> 0 | M49: =IF(E7=W20,IF(E5=W5,M47+(U14/2),),) -> 0 | N49: =IF(E7=W20,IF(E5=W5,N45,),) -> 0 | O49: =IF(E4=W16,0,IF(E6=W20,IF(E5<>W3,K47+(U14/2),),)) -> 0 | P49: =IF(E4=W16,0,IF(E6=W20,IF(E5<>W3,R63-Y23,),)) -> 0 | Q49: =IF(E4=W16,0,IF(E7=W20,IF(E5=W5,M47+(U14/2),),)) -> 0 | R49: =IF(E7=W20,IF(E5=W5,R45,),) -> 0
D50: =IF(E4=W16,0,D68-U16) -> 0.312575 | E50: =IF(E4=W16,0,((Y11/2)/2)+(Y11/2)) -> 0.75 | F50: =IF(E4=W16,0,IF(E5=W3,0,IF(E5=W4,F48-U16,IF(E5=W5,(F48-U16))))) -> 0.78 | G50: =IF(E5=W3,0,IF(E5=W4,E50,IF(E5=W5,E50))) -> 0.75 | H50: =IF(E4=W16,0,IF(OR(E5=W2,E5=W3),0,IF(E5=W4,0,IF(E5=W5,H48-U16)))) -> 0.5462875 | I50: =IF(OR(E5=W2,E5=W3),0,IF(E5=W4,0,IF(E5=W5,E50))) -> 0.75 | K50: =IF(E6=W20,IF(E5<>W3,K49-((K49-K53)/1.8),),) -> 0 | L50: =IF(E6=W20,IF(E5<>W3,R65/4,),) -> 0 | M50: =IF(E7=W20,IF(E5=W5,M49-((M49-M53)/1.8),),) -> 0 | N50: =IF(E7=W20,IF(E5=W5,R65/4,),) -> 0 | O50: =IF(E4=W16,0,IF(E6=W20,IF(E5<>W3,K49-((K49-K53)/1.8),),)) -> 0 | P50: =IF(E4=W16,0,IF(E6=W20,IF(E5<>W3,R65+R65*0.75,),)) -> 0 | Q50: =IF(E4=W16,0,IF(E7=W20,IF(E5=W5,M49-((M49-M53)/1.8),),)) -> 0 | R50: =IF(E7=W20,IF(E5=W5,R65+R65*0.75,),) -> 0
D51: =IF(E4=W16,0,D69) -> 0.3310125 | E51: =IF(E4=W16,0,(Y19*0.75)+(Y11/2)) -> 0.861875 | F51: =F49 -> 0.7984375 | G51: =IF(E5=W3,0,IF(E5=W4,E57,IF(E5=W5,E57))) -> 0.861875 | H51: =H49 -> 0.564725 | I51: =IF(OR(E5=W2,E5=W3),0,IF(E5=W4,0,IF(E5=W5,G51))) -> 0.861875 | K51: =IF(E6=W20,IF(E5<>W3,K49-((K49-K53)*0.85),),) -> 0 | L51: =IF(E6=W20,IF(E5<>W3,R65/2,),) -> 0 | M51: =IF(E7=W20,IF(E5=W5,M49-((M49-M53)*0.85),),) -> 0 | N51: =IF(E7=W20,IF(E5=W5,R65/2,),) -> 0 | O51: =IF(E4=W16,0,IF(E6=W20,IF(E5<>W3,K49-((K49-K53)*0.85),),)) -> 0 | P51: =IF(E4=W16,0,IF(E6=W20,IF(E5<>W3,R65+R65/2,),)) -> 0 | Q51: =IF(E4=W16,0,IF(E7=W20,IF(E5=W5,M49-((M49-M53)*0.85),),)) -> 0 | R51: =IF(E7=W20,IF(E5=W5,R65+R65/2,),) -> 0
D52: =IF(E4=W16,0,D68) -> 0.386325 | E52: =IF(E4=W16,0,((Y11/2)*2)-Y23) -> 0.99125 | F52: =IF(E5=W3,0,IF(E5=W4,F48,IF(E5=W5,F48))) -> 0.85375 | G52: =IF(E5=W3,0,IF(E5=W4,E56,IF(E5=W5,E52))) -> 0.99125 | H52: =IF(OR(E5=W2,E5=W3),0,IF(E5=W4,0,IF(E5=W5,H48))) -> 0.6200375 | I52: =IF(OR(E5=W2,E5=W3),0,IF(E5=W4,0,IF(E5=W5,G56))) -> 0.99125 | K52: =IF(E6=W20,IF(E5<>W3,K53+((K49-K53)*0.05),),) -> 0 | L52: =IF(E6=W20,IF(E5<>W3,R65*0.75,),) -> 0 | M52: =IF(E7=W20,IF(E5=W5,M53+((M49-M53)*0.05),),) -> 0 | N52: =IF(E7=W20,IF(E5=W5,R65*0.75,),) -> 0 | O52: =IF(E4=W16,0,IF(E6=W20,IF(E5<>W3,K53+((K49-K53)*0.05),),)) -> 0 | P52: =IF(E4=W16,0,IF(E6=W20,IF(E5<>W3,R65+R65/4,),)) -> 0 | Q52: =IF(E4=W16,0,IF(E7=W20,IF(E5=W5,M53+((M49-M53)*0.05),),)) -> 0 | R52: =IF(E7=W20,IF(E5=W5,R65+R65/4,),) -> 0
D53: =IF(E4=W16,0,D67) -> 0.29193125 | E53: =IF(E4=W16,0,((Y11/2)-E65)+(Y11/2)) -> 0.9549176875 | F53: =F47 -> 0.76810625 | G53: =IF(E4=W16,0,IF(E5=W3,0,IF(E5=W4,R63-U20,IF(E5=W5,R63-U20)))) -> 0.9549176875 | H53: =H47 -> 0.52564375 | I53: =IF(E4=W16,0,IF(OR(E5=W2,E5=W3),0,IF(E5=W4,0,IF(E5=W5,R63-U19)))) -> 0.9549176875 | K53: =IF(E6=W20,IF(E5<>W3,K47,),) -> 0 | L53: =IF(E6=W20,IF(E5<>W3,R65-Y23,),) -> 0 | M53: =IF(E7=W20,IF(E5=W5,M47,),) -> 0 | N53: =IF(E7=W20,IF(E5=W5,R65-Y23,),) -> 0 | O53: =IF(E4=W16,0,IF(E6=W20,IF(E5<>W3,K47,),)) -> 0 | P53: =IF(E4=W16,0,IF(E6=W20,IF(E5<>W3,R65+Y23,),)) -> 0 | Q53: =IF(E4=W16,0,IF(E7=W20,IF(E5=W5,M47,),)) -> 0 | R53: =IF(E7=W20,IF(E5=W5,R65+Y23,),) -> 0
D54: =IF(E4=W16,0,D66) -> 0.1975375 | E54: =IF(E4=W16,0,((Y11/2)-E66)+(Y11/2)) -> 0.93989025 | F54: =IF(E5=W3,0,IF(E5=W4,F46,IF(E5=W5,F46))) -> 0.6562125 | G54: =IF(E4=W16,0,IF(E5=W3,0,IF(E5=W4,R63-T20,IF(E5=W5,R63-T20)))) -> 0.93989025 | H54: =IF(OR(E5=W2,E5=W3),0,IF(E5=W4,0,IF(E5=W5,H46))) -> 0.43125 | I54: =IF(E4=W16,0,IF(OR(E5=W2,E5=W3),0,IF(E5=W4,0,IF(E5=W5,R63-T19)))) -> 0.93989025 | K54: =IF(E6=W20,IF(E5<>W3,K53-((K53-K57)*0.05),),) -> 0 | L54: =IF(E6=W20,IF(E5<>W3,L52,),) -> 0 | M54: =IF(E7=W20,IF(E5=W5,M53-((M53-M57)*0.05),),) -> 0 | N54: =IF(E7=W20,IF(E5=W5,N52,),) -> 0 | O54: =IF(E4=W16,0,IF(E6=W20,IF(E5<>W3,K53-((K53-K57)*0.05),),)) -> 0 | P54: =IF(E4=W16,0,IF(E6=W20,IF(E5<>W3,P52,),)) -> 0 | Q54: =IF(E4=W16,0,IF(E7=W20,IF(E5=W5,M53-((M53-M57)*0.05),),)) -> 0 | R54: =IF(E7=W20,IF(E5=W5,R52,),) -> 0
D55: =IF(E4=W16,0,D65) -> 0.11189375 | E55: =E53 -> 0.9549176875 | F55: =F45 -> 0.55306875 | G55: =IF(E5=W3,0,IF(E5=W4,G53,IF(E5=W5,G53))) -> 0.9549176875 | H55: =H45 -> 0.33685625 | I55: =I53 -> 0.9549176875 | K55: =IF(E6=W20,IF(E5<>W3,K57+((K53-K57)*0.85),),) -> 0 | L55: =IF(E6=W20,IF(E5<>W3,L51,),) -> 0 | M55: =IF(E7=W20,IF(E5=W5,M57+((M53-M57)*0.85),),) -> 0 | N55: =IF(E7=W20,IF(E5=W5,N51,),) -> 0 | O55: =IF(E4=W16,0,IF(E6=W20,IF(E5<>W3,K57+((K53-K57)*0.85),),)) -> 0 | P55: =IF(E6=W20,IF(E5<>W3,P51,),) -> 0 | Q55: =IF(E4=W16,0,IF(E7=W20,IF(E5=W5,M57+((M53-M57)*0.85),),)) -> 0 | R55: =IF(E7=W20,IF(E5=W5,R51,),) -> 0
D56: =IF(E4=W16,0,D64) -> 0.00875 | E56: =E52 -> 0.99125 | F56: =IF(E5=W3,0,IF(E5=W4,F44,IF(E5=W5,F44))) -> 0.476175 | G56: =IF(E5=W3,0,IF(E5=W4,G52,IF(E5=W5,G52))) -> 0.99125 | H56: =IF(OR(E5=W2,E5=W3),0,IF(E5=W4,0,IF(E5=W5,H44))) -> 0.2424625 | I56: =IF(OR(E5=W2,E5=W3),0,IF(E5=W4,0,IF(E5=W5,I52))) -> 0.99125 | K56: =IF(E6=W20,IF(E5<>W3,K57+((K53-K57)/1.8),),) -> 0 | L56: =IF(E6=W20,IF(E5<>W3,L50,),) -> 0 | M56: =IF(E7=W20,IF(E5=W5,M57+((M53-M57)/1.8),),) -> 0 | N56: =IF(E7=W20,IF(E5=W5,N50,),) -> 0 | O56: =IF(E4=W16,0,IF(E6=W20,IF(E5<>W3,K57+((K53-K57)/1.8),),)) -> 0 | P56: =IF(E6=W20,IF(E5<>W3,P50,),) -> 0 | Q56: =IF(E4=W16,0,IF(E7=W20,IF(E5=W5,M57+((M53-M57)/1.8),),)) -> 0 | R56: =IF(E7=W20,IF(E5=W5,R50,),) -> 0
D57: =IF(E4=W16,0,D64+V16) -> 0.0640625 | E57: =E51 -> 0.861875 | F57: =IF(E4=W16,0,IF(E5=W3,0,IF(E5=W4,F56+V16,IF(E5=W5,(F44+V16))))) -> 0.5314875 | G57: =G51 -> 0.861875 | H57: =IF(E4=W16,0,IF(OR(E5=W2,E5=W3),0,IF(E5=W4,0,IF(E5=W5,(H44+V16))))) -> 0.297775 | I57: =I51 -> 0.861875 | K57: =IF(E6=W20,IF(E5<>W3,K45,),) -> 0 | L57: =IF(E6=W20,IF(E5<>W3,L45,),) -> 0 | M57: =IF(E7=W20,IF(E5=W5,M45,),) -> 0 | N57: =IF(E7=W20,IF(E5=W5,N45,),) -> 0 | O57: =IF(E4=W16,0,IF(E6=W20,IF(E5<>W3,K45,),)) -> 0 | P57: =IF(E6=W20,IF(E5<>W3,P45,),) -> 0 | Q57: =IF(E4=W16,0,IF(E7=W20,IF(E5=W5,M45,),)) -> 0 | R57: =IF(E7=W20,IF(E5=W5,R49,),) -> 0
D58: =IF(E4=W16,0,D64+U16) -> 0.0825 | E58: =E50 -> 0.75 | F58: =IF(E4=W16,0,IF(E5=W3,0,IF(E5=W4,F56+U16,IF(E5=W5,(F44+U16))))) -> 0.549925 | G58: =IF(E5=W3,0,IF(E5=W4,G50,IF(E5=W5,G50))) -> 0.75 | H58: =IF(E4=W16,0,IF(OR(E5=W2,E5=W3),0,IF(E5=W4,0,IF(E5=W5,H44+U16)))) -> 0.3162125 | I58: =IF(OR(E5=W2,E5=W3),0,IF(E5=W4,0,IF(E5=W5,E50))) -> 0.75 | Q58: Roof plan
D59: =IF(E4=W16,0,D77) -> 0.0640625 | E59: =E49 -> 0.620625 | F59: =F57 -> 0.5314875 | G59: =G49 -> 0.620625 | H59: =H57 -> 0.297775 | I59: =I49 -> 0.620625 | Q59: x-axis | R59: y-axis
D60: =IF(E4=W16,0,D64) -> 0.00875 | E60: =E44 -> 0.50875 | F60: =IF(E5=W3,0,IF(E5=W4,F56,IF(E5=W5,F56))) -> 0.476175 | G60: =IF(E5=W3,0,IF(E5=W4,E44,IF(E5=W5,E44))) -> 0.50875 | H60: =IF(OR(E5=W2,E5=W3),0,IF(E5=W4,0,IF(E5=W5,H56))) -> 0.2424625 | I60: =IF(OR(E5=W2,E5=W3),0,IF(E5=W4,0,IF(E5=W5,E44))) -> 0.50875 | Q60: 0 | R60: 0
Q61: =Y10 -> 0.8625 | R61: 0
D62: x | E62: y | F62: x | G62: y | H62: x | I62: y | Q62: =Y10 -> 0.8625 | R62: =Y11 -> 1
D63: Left down | F63: Right down | H63: Mid down | Q63: 0 | R63: =Y11 -> 1
D64: =Y23 -> 0.00875 | E64: =Y23 -> 0.00875 | F64: =IF(E5=W3,0,IF(E5=W4,F68-Y22,IF(E5=W5,(F68-Y22)))) -> 0.476175 | G64: =IF(E5=W3,0,IF(E5=W4,Y23,IF(E5=W5,Y23))) -> 0.00875 | H64: =IF(OR(E5=W2,E5=W3),0,IF(E5=W4,0,IF(E5=W5,(Y10/2)-(Y21/2)))) -> 0.2424625 | I64: =IF(OR(E5=W2,E5=W3),0,IF(E5=W4,0,IF(E5=W5,Y23))) -> 0.00875 | Q64: 0 | R64: 0
D65: =D64+(Y20/4)+Y23 -> 0.11189375 | E65: =E66*0.75 -> 0.0450823125 | F65: =IF(E5=W3,0,IF(E5=W4,F66-(Y22/4),IF(E5=W5,F66-Y23-(Y22/4)))) -> 0.55306875 | G65: =IF(E5=W3,0,IF(E5=W4,U20,IF(E5=W5,U20))) -> 0.0450823125 | H65: =IF(OR(E5=W2,E5=W3),0,IF(E5=W4,0,IF(E5=W5,H64+(MAX(Y21:Z21)/4)))) -> 0.33685625 | I65: =IF(OR(E5=W2,E5=W3),0,IF(E5=W4,0,IF(E5=W5,U19))) -> 0.0450823125 | Q65: 0 | R65: =Y11/2 -> 0.5
D66: =IF(E5=W3,(Y10/2),IF(OR(E5=W2,E5=W4),D68-(Y20/2),IF(E5=W5,(D68-(Y20/2))))) -> 0.1975375 | E66: =T18 -> 0.06010975 | F66: =IF(E5=W3,0,IF(E5=W4,F68-(Y22/2),IF(E5=W5,F68-Y23-(Y22/2)))) -> 0.6562125 | G66: =IF(E5=W3,0,IF(E5=W4,T20,IF(E5=W5,T20))) -> 0.06010975 | H66: =IF(OR(E5=W2,E5=W3),0,IF(E5=W4,0,IF(E5=W5,H68-((H68-H64)/2)))) -> 0.43125 | I66: =IF(OR(E5=W2,E5=W3),0,IF(E5=W4,0,IF(E5=W5,T19))) -> 0.06010975 | Q66: =Q62 -> 0.8625 | R66: =R65 -> 0.5
D67: =D68-(Y20/4) -> 0.29193125 | E67: =E65 -> 0.0450823125 | F67: =F66+Y23+(F66-F65) -> 0.76810625 | G67: =IF(E5=W3,0,IF(E5=W4,U20,IF(E5=W5,U20))) -> 0.0450823125 | H67: =IF(OR(E5=W2,E5=W3),0,IF(E5=W4,0,IF(E5=W5,H68-(MAX(Y21:Z21)/4)))) -> 0.52564375 | I67: =I65 -> 0.0450823125
D68: =IF(E5=W3,D64+Y20,IF(OR(E5=W2,E5=W4),Y20+D64,IF(E5=W5,D64+Y20))) -> 0.386325 | E68: =Y23 -> 0.00875 | F68: =IF(E5=W3,0,IF(E5=W4,Y10-Y23,IF(E5=W5,Y10-Y23))) -> 0.85375 | G68: =IF(E5=W3,0,IF(E5=W4,Y23,IF(E5=W5,Y23))) -> 0.00875 | H68: =IF(OR(E5=W2,E5=W3),0,IF(E5=W4,0,IF(E5=W5,(Y10/2)+(Z21/2)))) -> 0.6200375 | I68: =IF(OR(E5=W2,E5=W3),0,IF(E5=W4,0,IF(E5=W5,Y23))) -> 0.00875
D69: =D68-V16 -> 0.3310125 | E69: =Y19/4 -> 0.120625 | F69: =IF(E5=W3,0,IF(E5=W4,F68-V16,IF(E5=W5,(F68-V16)))) -> 0.7984375 | G69: =IF(E5=W3,0,IF(E5=W4,E79,IF(E5=W5,E79))) -> 0.120625 | H69: =IF(OR(E5=W2,E5=W3),0,IF(E5=W4,0,IF(E5=W5,H68-V16))) -> 0.564725 | I69: =IF(OR(E5=W2,E5=W3),0,IF(E5=W4,0,IF(E5=W5,G69))) -> 0.120625
D70: =D68-U16 -> 0.312575 | E70: =(Y11/2)/2 -> 0.25 | F70: =IF(E5=W3,0,IF(E5=W4,F68-U16,IF(E5=W5,(F68-U16)))) -> 0.78 | G70: =IF(E5=W3,0,IF(E5=W4,E70,IF(E5=W5,E70))) -> 0.25 | H70: =IF(OR(E5=W2,E5=W3),0,IF(E5=W4,0,IF(E5=W5,H68-U16))) -> 0.5462875 | I70: =IF(OR(E5=W2,E5=W3),0,IF(E5=W4,0,IF(E5=W5,E70))) -> 0.25
D71: =D69 -> 0.3310125 | E71: =(Y19*0.75) -> 0.361875 | F71: =F69 -> 0.7984375 | G71: =IF(E5=W3,0,IF(E5=W4,E77,IF(E5=W5,E77))) -> 0.361875 | H71: =H69 -> 0.564725 | I71: =IF(OR(E5=W2,E5=W3),0,IF(E5=W4,0,IF(E5=W5,G71))) -> 0.361875
D72: =D68 -> 0.386325 | E72: =(Y11/2)-Y23 -> 0.49125 | F72: =IF(E5=W3,0,IF(E5=W4,F68,IF(E5=W5,F68))) -> 0.85375 | G72: =IF(E5=W3,0,IF(E5=W4,E76,IF(E5=W5,(Y11/2)-Y23))) -> 0.49125 | H72: =IF(OR(E5=W2,E5=W3),0,IF(E5=W4,0,IF(E5=W5,H68))) -> 0.6200375 | I72: =IF(OR(E5=W2,E5=W3),0,IF(E5=W4,0,IF(E5=W5,G76))) -> 0.49125
D73: =D67 -> 0.29193125 | E73: =(Y11/2)-E65 -> 0.4549176875 | F73: =F67 -> 0.76810625 | G73: =IF(E5=W3,0,IF(E5=W4,(Y11/2)-U20,IF(E5=W5,(Y11/2)-U20))) -> 0.4549176875 | H73: =H67 -> 0.52564375 | I73: =IF(OR(E5=W2,E5=W3),0,IF(E5=W4,0,IF(E5=W5,(Y11/2)-U19))) -> 0.4549176875
D74: =D66 -> 0.1975375 | E74: =(Y11/2)-E66 -> 0.43989025 | F74: =IF(E5=W3,0,IF(E5=W4,F66,IF(E5=W5,F66))) -> 0.6562125 | G74: =IF(E5=W3,0,IF(E5=W4,(Y11/2)-T20,IF(E5=W5,(Y11/2)-T20))) -> 0.43989025 | H74: =IF(OR(E5=W2,E5=W3),0,IF(E5=W4,0,IF(E5=W5,H66))) -> 0.43125 | I74: =IF(OR(E5=W2,E5=W3),0,IF(E5=W4,0,IF(E5=W5,(Y11/2)-T19))) -> 0.43989025
D75: =D65 -> 0.11189375 | E75: =E73 -> 0.4549176875 | F75: =F65 -> 0.55306875 | G75: =IF(E5=W3,0,IF(E5=W4,G73,IF(E5=W5,G73))) -> 0.4549176875 | H75: =H65 -> 0.33685625 | I75: =I73 -> 0.4549176875
D76: =D64 -> 0.00875 | E76: =E72 -> 0.49125 | F76: =IF(E5=W3,0,IF(E5=W4,F64,IF(E5=W5,F64))) -> 0.476175 | G76: =IF(E5=W3,0,IF(E5=W4,G72,IF(E5=W5,G72))) -> 0.49125 | H76: =IF(OR(E5=W2,E5=W3),0,IF(E5=W4,0,IF(E5=W5,H64))) -> 0.2424625 | I76: =IF(OR(E5=W2,E5=W3),0,IF(E5=W4,0,IF(E5=W5,I72))) -> 0.49125
D77: =D64+V16 -> 0.0640625 | E77: =E71 -> 0.361875 | F77: =IF(E5=W3,0,IF(E5=W4,F76+V16,IF(E5=W5,(F64+V16)))) -> 0.5314875 | G77: =G71 -> 0.361875 | H77: =IF(OR(E5=W2,E5=W3),0,IF(E5=W4,0,IF(E5=W5,(H64+V16)))) -> 0.297775 | I77: =I71 -> 0.361875
D78: =D64+U16 -> 0.0825 | E78: =E70 -> 0.25 | F78: =IF(E5=W3,0,IF(E5=W4,F76+U16,IF(E5=W5,(F64+U16)))) -> 0.549925 | G78: =IF(E5=W3,0,IF(E5=W4,G70,IF(E5=W5,G70))) -> 0.25 | H78: =IF(OR(E5=W2,E5=W3),0,IF(E5=W4,0,IF(E5=W5,H64+U16))) -> 0.3162125 | I78: =IF(OR(E5=W2,E5=W3),0,IF(E5=W4,0,IF(E5=W5,E70))) -> 0.25
D79: =D77 -> 0.0640625 | E79: =E69 -> 0.120625 | F79: =F77 -> 0.5314875 | G79: =G69 -> 0.120625 | H79: =H77 -> 0.297775 | I79: =I69 -> 0.120625
D80: =D64 -> 0.00875 | E80: =Y23 -> 0.00875 | F80: =IF(E5=W3,0,IF(E5=W4,F76,IF(E5=W5,F76))) -> 0.476175 | G80: =IF(E5=W3,0,IF(E5=W4,Y23,IF(E5=W5,Y23))) -> 0.00875 | H80: =IF(OR(E5=W2,E5=W3),0,IF(E5=W4,0,IF(E5=W5,H76))) -> 0.2424625 | I80: =IF(OR(E5=W2,E5=W3),0,IF(E5=W4,0,IF(E5=W5,Y23))) -> 0.00875

Sheet Georgian Hipped
T1: Main material | U1: =IF(OR(E17=AD2,E17=AD3,E17=AD4,E17=AD5,E17=AD6,E17=AD7),5,IF(OR(E17=AD8,E17=AD9,E17=AD10,E17=AD11,E17=AD12,E17=AD13,E17=AD14,E17=AD15,E17=AD16,E17=AD17),6,IF(OR(E17=AD18,E17=AD19,E17=AD20,E17=AD21,E17=AD22,E17=AD23,E17=AD24),7.2,))) -> 5 | V1: Material cost | W1: 11.35 | X1: Sails | Y1: Warning 1 | Z1: Warning: Sail too narrow, decrease no. of sails, add additional fitting points or increase gap size | AA1: Triangles | AD1: Fabric Colour | AF1: Fittings Colours
T2: Tri material | U2: =IF(OR(E18=AD2,E18=AD3,E18=AD4,E18=AD5,E18=AD6,E18=AD7),5,IF(OR(E18=AD8,E18=AD9,E18=AD10,E18=AD11,E18=AD12,E18=AD13,E18=AD14,E18=AD15,E18=AD16,E18=AD17),6,IF(OR(E18=AD18,E18=AD19,E18=AD20,E18=AD21,E18=AD22,E18=AD23,E18=AD24),7.2,))) -> 5 | V2: PE | W2: 2.5 | X2: 1 - Front | Y2: Warning 2 | Z2: Warning: Sail too narrow, increase no. of sails, add additional fitting points or reduce gap size | AA2: No | AD2: ISX Solid | AE2: 5 | AF2: Stainless steel
V3: PN | W3: 3.5 | X3: 1 - Full | Y3: Warning 3 | Z3: Warning: Sail too wide for standard fabric, please add more sails or increase gap size | AA3: Yes | AD3: ISX White | AF3: White
D4: Select coverage | E4: Cover both sides | V4: IP | W4: 2 | X4: 2 | Y4: Warning 4 | Z4: Warning: Conservatory too long for standard fabric, contact office for more detailed price | AA4: Coverage | AD4: ISX Solid Ivory | AF4: Gold
D5: Number of sails per side | E5: 2 | X5: 3 | Y5: Warning 5 | Z5: Warning: Ridge is too short for a 3 sails per side solution, reduce no. of sails | AA5: Cover one side | AD5: ISX Solid Oyster
D6: Front triangle sail | E6: Yes | T6: Shape | U6: =IF(X10=T7,U7,IF(X10=T8,U8,IF(X10=T9,U9))) -> 1 | V6: No. of vents | Y6: Warning 6 | Z6: Warning: Some triangular sails are too thin for this conservatory | AA6: Cover both sides | AD6: ISX Solid Sand
D7: Middle triangle sails | E7: Yes | T7: Triangle | U7: 0.6 | V7: 0 | AD7: ISX Solid Stone
D8: Back triangle sails | E8: Yes | T8: Diamond | U8: 0.6 | V8: 1 | Y8: Warnings front | Z8: Warnings mid | AA8: Warnings back | AB8: Warnings front tri | AC8: Warnings back tri | AD8: ISX Duplex | AE8: 6
T9: Other | U9: 1 | V9: 2 | W9: No. of corners | X9: 4 | Y9: =W30 -> 2.19317122 | Z9: =IF(OR(E5=X2,E5=X3),Y9,X30) -> 2.19317122 | AA9: =Y30 -> 2.19317122 | AB9: =IF(E6=AA2,0.001,1)*Z30 -> 2.238861318 | AC9: =IF(OR(E6=AA3,E7=AA3),1,0.0001)*AA30 -> 2.19317122 | AD9: ISX Duplex Ocean
D10: Reduce front gap size | E10: Standard | T10: Overlap front | U10: =IF(E10=T11,U11,IF(E10=T12,U12,IF(E10=T13,U13,))) -> 0 | V10: 3 | W10: Shape | X10: Other | Y10: =W31 -> 2.238861318 | Z10: =IF(OR(E5=X2,E5=X3),Y10,X31) -> 1.4 | AA10: =IF(E5<>X5,Y10,Y31) -> 2.238861318 | AB10: =Z31+IF(E5=X3,1000) -> 1.456 | AC10: =AA31 -> 1.421 | AD10: ISX Duplex Forest
D11: Reduce middle gap size | E11: Standard | T11: Point to point | U11: 0 | V11: 4 | W11: Curve allowance | X11: 0.5 | Y11: Tri | Z11: Mid | AA11: Quarters | AD11: ISX Duplex Stone
D12: Reduce back gap size | E12: Standard | T12: 0.5 | U12: =(W15*2)/2+(0.035/(IF(B24>B25,B24,B25)/1000)) -> 0.084125 | V12: Front | W12: Mid | X12: Quarters | Y12: Vertical Back | Z12: =((AA25+(0.07/(IF(B24>B25,B24,B25)/1000)))*0.13)+U30 -> 0.0549325 | AA12: =Z12*0.75 -> 0.041199375 | AD12: ISX Duplex Slate
D13: Total additional fittings | E13: 0 | T13: 1 | U13: =W15*2+(0.035/(IF(B24>B25,B24,B25)/1000)) -> 0.1595 | V13: Horizontal | W13: =((W24+(0.07/(IF(B24>B25,B24,B25)/1000)))*0.13)+U30 -> 0.07375 | X13: =(W13)*0.75 -> 0.0553125 | Y13: Vertical Middle | Z13: =((Z25+(0.07/(IF(B24>B25,B24,B25)/1000)))*0.13)+U30 -> 0.0549325 | AA13: =Z13*0.75 -> 0.041199375 | AD13: ISX Duplex Graphite
D14: Total tie-bar loops | E14: 0 | T14: Overlap middle | U14: =IF(E11=T15,U15,IF(E11=T16,U16,IF(E11=T17,U17,)))*IF(E5=X3,0,1) -> 0 | V14: Hotizontal overlaped | W14: =((X24+(0.07/(IF(B24>B25,B24,B25)/1000)))*0.13)+U30 -> 0.07375 | X14: =(W14)*0.75 -> 0.0553125 | Y14: Vertical Front | Z14: =((Y25+(0.07/(IF(B24>B25,B24,B25)/1000)))*0.13)+U30 -> 0.05607 | AA14: =Z14*0.75 -> 0.0420525 | AD14: ISXFR Solid | AE14: 6
D15: Total straight edges | E15: 0 | T15: Standard | U15: 0 | V15: Vertical | W15: =IF(E5=X2,((W25+(0.07/(IF(B24>B25,B24,B25)/1000)))*0.13)+U30,((W25+(0.07/(IF(B24>B25,B24,B25)/1000)))*0.13)+U30) -> 0.075375 | X15: =W15*0.75 -> 0.05653125 | Y15: Back | Z15: Mid | AA15: Quarters | AD15: ISXFR White
T16: 0.5 | U16: =(W18*2.5)/2+(0.035/(IF(B24>B25,B24,B25)/1000)) -> 0.1009375 | V16: Vertical overlaped | W16: =((X25+(0.07/(IF(B24>B25,B24,B25)/1000)))*0.13)+U30 -> 0.075375 | X16: =W16*0.75 -> 0.05653125 | Y16: Horizontal | Z16: =((Z27+(0.07/(IF(B24>B25,B24,B25)/1000)))*0.13)+U30 -> 0.07375 | AA16: =Z16*0.75 -> 0.0553125 | AD16: ISXFR Solid Ivory
D17: Colour of main sails | E17: ISX Solid | H17: Plan view - looking from above | T17: 1 | U17: =W18*2.5+(0.035/(IF(B24>B25,B24,B25)/1000)) -> 0.193125 | V17: Mid | W17: Mid | X17: Quarters | Y17: Vertical | Z17: =((Z28+(0.07/(IF(B24>B25,B24,B25)/1000)))*0.13)+U30 -> 0.0315 | AA17: =Z17*0.75 -> 0.023625 | AD17: ISXFR Solid Oyster
D18: Colour of triangles | E18: ISX Solid | H18: =IF(OR(E13>0,E14>0,E15>0),"Mark additional features (fittings/tie-bar loops/straight edges) on sketch","") ->  | T18: Overlap back | U18: =IF(E5<>X5,0,IF(E12=T15,U19,IF(E12=T16,U20,IF(E12=T17,U21,)))) -> 0 | V18: Horizontal | W18: =((W27+(0.07/(IF(B24>B25,B24,B25)/1000)))*0.13)+U30 -> 0.07375 | X18: =(W18)*0.75 -> 0.0553125 | AD18: ISXFR Duplex | AE18: 7.2
D19: Colour of fittings | E19: Stainless steel | T19: Standard | U19: 0 | V19: Vertical | W19: =((Y28+(0.07/(IF(B24>B25,B24,B25)/1000)))*0.13)+U30 -> 0.05425 | X19: =W19*0.75 -> 0.0406875 | AD19: ISXFR Duplex Ocean
D20: Number of window vents | E20: 0 | T20: 0.5 | U20: =IF(E5=X4,W18+(0.035/(IF(B24>B25,B24,B25)/1000)),IF(E5=X5,W18/2+(0.035/(IF(B24>B25,B24,B25)/1000)),)) -> 0.0825 | V20: Vertical overlaped | W20: =((AVERAGE(W28:Y28)+(0.07/(IF(B24>B25,B24,B25)/1000)))*0.13)+U30 -> 0.05425 | X20: =W20*0.75 -> 0.0406875 | AD20: ISXFR Duplex Forest
T21: 1 | U21: =IF(E5=X4,W18*2+(0.035/(IF(B24>B25,B24,B25)/1000)),IF(E5=X5,W18+(0.035/(IF(B24>B25,B24,B25)/1000)),)) -> 0.15625 | W21: front | X21: mid | Y21: back | Z21: tri front | AA21: tri mid/back | AD21: ISXFR Duplex Sand
D22: Max length of sail | E22: =(MAX(W30:Y30))*1000 -> 2193.17122 | U22: Dims in m | V22: Sail perimeter | W22: =((X24+0.07)*2)+((X25+0.07)*2) -> 2.235 | X22: =((W27+0.07)*2)+X28+0.07+W28+0.07 -> 1.91 | Y22: =((Z27+0.07)*2)+((Z28+0.07)*2) -> 1.56 | Z22: =((Y24+0.07)*2)+Y25+0.07 -> 1.5465 | AA22: =((Z24+0.07)*2)+Z25+0.07 -> 1.51275 | AD22: ISXFR Duplex Stone
B23: All dims in mm | D23: Max width of sail | E23: =(MAX(W31:Y31))*1000 -> 2238.861318 | H23: Total budget cost incl. Installation+VAT+Delivery | K23: =(((12.15+(E20*50*VAT!V1)+W33+X33+Y33+Z33+IF(E7=AA3,AA33,)+IF(AND(E5=X5,E8=AA3),AA33,))+(25.5*E13)+IF(E19<>AF2,E13*2,0)))+(E14*75*VAT!V1)+(E15*100*VAT!V1) -> 2689.20748 | T23: h1 | U23: =B26/IF(B24>B25,B24,B25) -> 0.5375 | W23: front + overlaped | Y23: tri front | Z23: tri mid | AA23: tri back | AD23: ISXFR Duplex Slate
A24: X1 | B24: 4000 | K24: =' '!P5 -> 3092.588602 | T24: h2 | U24: =B27/IF(B24>B25,B24,B25) -> 0.7625 | V24: Sail length | W24: =(U26/2)-(0.07/(IF(B24>B25,B24,B25)/1000)) -> 0.4825 | X24: =W24+U10 -> 0.4825 | Y24: =N49-(0.07/(IF(B24>B25,B24,B25)/1000)) -> 0.495 | Z24: =(U26/2)-(0.07/(IF(B24>B25,B24,B25)/1000)) -> 0.4825 | AA24: =(U26/2)-(0.07/(IF(B24>B25,B24,B25)/1000)) -> 0.4825 | AD24: ISXFR Duplex Graphite
A25: Y1 | B25: 3450 | D25: Please note that sails larger than 2100mm in both directions, will require a colour matched seam. | G25: =' '!A9 -> 0 | T25: y1 | U25: =B25/IF(B24>B25,B24,B25) -> 0.8625 | V25: Sail width | W25: =IF(E5=X3,N46-(0.07/(IF(B24>B25,B24,B25)/1000)),N49-(0.07/(IF(B24>B25,B24,B25)/1000))) -> 0.495 | X25: =W25+U14 -> 0.495 | Y25: =Y24*0.7 -> 0.3465 | Z25: =Z24*0.7 -> 0.33775 | AA25: =AA24*0.7 -> 0.33775
A26: H1 | B26: 2150 | T26: x1 | U26: =B24/IF(B24>B25,B24,B25) -> 1 | W26: mid + overlaped | Z26: back
A27: H2 | B27: 3050 | T27: r1 | U27: =B28/IF(B24>B25,B24,B25) -> 0.35 | V27: Sail length | W27: =W24 -> 0.4825 | X27: <- | Y27: -> | Z27: =W27 -> 0.4825
A28: R1 | B28: 1400 | D28: =IF(((MAX(W13,W18,Z16)*(IF(B24>B25,B24,B25)/1000))*2)>((MIN(Y10:AA10))*X11),Z1,IF(((MAX(W15,W19,Z17)*(IF(B24>B25,B24,B25)/1000))*2)>((MIN(Y9:AA9))*X11),Z2,IF(AND(Y9>4,Y10>4),Z3,IF(AND((U27*(IF(B24>B25,B24,B25)/1000))<1.5,E5=X5),Z5,IF(AND(OR(E6=AA3,E7=AA3,E8=AA3),OR(Y25*2<Y24,Z25*2<Z24,AA25*2<AA24)),Z6,""))))) ->  | G28: =' '!A12 -> 0 | T28: Roof area (m^2) | U28: =U29*U25 -> 0.4729025443 | V28: Sail width | W28: =((U27/IF(E5=X4,1,2))-(0.07/(IF(B24>B25,B24,B25)/1000))) -> 0.3325 | X28: =W28+U14 -> 0.3325 | Y28: =W28+U18 -> 0.3325 | Z28: =((U27)/2)-(0.07/(IF(B24>B25,B24,B25)/1000))+U18 -> 0.1575
T29: Glazing bar length | U29: =SQRT((U24-U23)^2+(U26/2)^2) -> 0.548292805 | V29: Costs | W29: front | X29: mid | Y29: right | Z29: tri front | AA29: tri mid/back
T30: 50mm links | U30: =(0.035/(IF(B24>B25,B24,B25)/1000)) -> 0.00875 | V30: length | W30: =(IF((I72-I76)<U29,U29,(I72-I76))*(IF(B24>B25,B24,B25)/1000)) -> 2.19317122 | X30: =(IF(W27<U29,U29,W27)*(IF(B24>B25,B24,B25)/1000)) -> 2.19317122 | Y30: =X30 -> 2.19317122 | Z30: =(SQRT(((B25-B28)^2)+((B27-B26)^2)))/1000 -> 2.238861318 | AA30: =Y30 -> 2.19317122
V31: width | W31: =IF(E5<>X3,IF((((H64-H60)*(IF(B24>B25,B24,B25)/1000))+0.07)>((SQRT(((B25-B28)^2)+((B27-B26)^2)))/1000),(((H64-H60)*(IF(B24>B25,B24,B25)/1000))+0.07),((SQRT(((B25-B28)^2)+((B27-B26)^2)))/1000)),(SQRT((B25^2)+((B27-B26)^2)))/1000) -> 2.238861318 | X31: =((J64-J60)*(IF(B24>B25,B24,B25)/1000))+0.07 -> 1.4 | Y31: =IF(E5<>X5,MIN(W31,X31),((L64-L60)*(IF(B24>B25,B24,B25)/1000))+0.07) -> 1.4 | Z31: =((E44-E48)*(IF(B24>B25,B24,B25)/1000))+0.07 -> 1.456 | AA31: =(Z25*(IF(B24>B25,B24,B25)/1000))+0.07 -> 1.421
V32: perimeter | W32: =(W30+W31+((W24*(IF(B24>B25,B24,B25)/1000))+0.07)+((W25*(IF(B24>B25,B24,B25)/1000))+0.07))*1.05 -> 8.906134165 | X32: =((X30*2)+X31+(((J68-J72)*(IF(B24>B25,B24,B25)/1000))+0.07))*1.05 -> 7.545659562 | Y32: =((Y30*2)+(Y31*2))*1.05 -> 7.545659562 | Z32: =((Z30*2)+Z31)*1.05 -> 6.230408767 | AA32: =((AA30*2)+AA31)*1.05 -> 6.097709562
W33: =(IF(E4=AA6,2,1)*((((1.05*(U1*((U6*W30*W31*W1)+(W32*W2)+(X9*W3)+W4))+7.2*X9))))+IF(E19<>AF2,8*VAT!V1,0))/1.2*VAT!V1 -> 1044.559847 | X33: =(IF(OR(E5=X2,E5=X3),0,IF(E4=AA6,2,1)*((((1.05*(U1*((U6*X30*X31*W1)+(X32*W2)+(X9*W3)+W4))+7.2*X9)))+IF(E19<>AF2,8*VAT!V1,0))))/1.2*VAT!V1 -> 789.5932157 | Y33: =(IF(E5<>X5,0,IF(E4=AA6,2,1)*(((1.05*(U1*((U6*Y30*Y31*W1)+(Y32*W2)+(X9*W3)+W4))+7.2*X9))+IF(E19<>AF2,8*VAT!V1,0))))/1.2*VAT!V1 -> 0 | Z33: =IF(E6=AA2,0,(IF(E6=AA3,(1.05*(U2*((U7*Z30*Z31*W1)+(Z32*W2)+(3*W3)+W4))+7.2*3),)+IF(E19<>AF2,6*VAT!V1,0))/1.2*VAT!V1) -> 285.5444738 | AA33: =IF(OR(E5=X3,AND(E5=X2,E7=AA2)),0,((IF(E5=X3,0,IF(OR(E7=AA3,E8=AA3),(1.05*(U2*((U7*AA30*AA31*W1)+(AA32*W2)+(3*W3)+W4))+7.2*3),))+IF(E19<>AF2,6*VAT!V1,0))*IF(E4=AA6,2,1))/1.2*VAT!V1) -> 557.3599442
D42: x | E42: y | F42: x | G42: y | H42: x | I42: y | J42: x | K42: y | L42: x | M42: y | N42: Roof plan
D43: f tri 3 | F43: m tri 1 | H43: m tri 2 | J43: b tri 4 | L43: b tri 5 | N43: x-axis | O43: y-axis
D44: =IF(E6=AA3,U30,) -> 0.00875 | E44: =IF(E6=AA3,O49+(Y25/2),) -> 0.67325 | F44: =IF(AND(E5<>X3,E7=AA3),F46-(Z25/2),) -> 0.343625 | G44: =IF(AND(E5<>X3,E7=AA3),U30,) -> 0.00875 | H44: =IF(AND(E5<>X3,E7=AA3,E4<>AA5),F46-(Z25/2),) -> 0.343625 | I44: =IF(AND(E5<>X3,E7=AA3,E4<>AA5),O46-U30,) -> 0.99125 | J44: =IF(AND(E5=X5,E8=AA3),J46-(AA25/2),) -> 0 | K44: =IF(AND(E5=X5,E8=AA3),U30,) -> 0 | L44: =IF(AND(E5=X5,E8=AA3,E4<>AA5),J46-(AA25/2),) -> 0 | M44: =IF(AND(E5=X5,E8=AA3,E4<>AA5),O46-U30,) -> 0 | N44: 0 | O44: 0
D45: =IF(E6=AA3,AA14,) -> 0.0420525 | E45: =IF(E6=AA3,E44-(Y25/4),) -> 0.586625 | F45: =IF(AND(E5<>X3,E7=AA3),F46-(Z25/4),) -> 0.4280625 | G45: =IF(AND(E5<>X3,E7=AA3),AA13,) -> 0.041199375 | H45: =IF(AND(E5<>X3,E7=AA3,E4<>AA5),F46-(Z25/4),) -> 0.4280625 | I45: =IF(AND(E5<>X3,E7=AA3,E4<>AA5),O46-AA13,) -> 0.958800625 | J45: =IF(AND(E5=X5,E8=AA3),J46-(AA25/4),) -> 0 | K45: =IF(AND(E5=X5,E8=AA3),AA12,) -> 0 | L45: =IF(AND(E5=X5,E8=AA3,E4<>AA5),J46-(AA25/4),) -> 0 | M45: =IF(AND(E5=X5,E8=AA3,E4<>AA5),O46-AA12,) -> 0 | N45: =U25 -> 0.8625 | O45: 0
D46: =IF(E6=AA3,Z14,) -> 0.05607 | E46: =IF(E6=AA3,E45-(Y25/4),) -> 0.5 | F46: =IF(AND(E5<>X3,E7=AA3),F52,) -> 0.5125 | G46: =IF(AND(E5<>X3,E7=AA3),Z13,) -> 0.0549325 | H46: =IF(AND(E5<>X3,E7=AA3,E4<>AA5),F52,) -> 0.5125 | I46: =IF(AND(E5<>X3,E7=AA3,E4<>AA5),O47-Z13,) -> 0.9450675 | J46: =IF(AND(E5=X5,E8=AA3),J52,) -> 0 | K46: =IF(AND(E5=X5,E8=AA3),Z12,) -> 0 | L46: =IF(AND(E5=X5,E8=AA3,E4<>AA5),J52,) -> 0 | M46: =IF(AND(E5=X5,E8=AA3,E4<>AA5),O47-Z12,) -> 0 | N46: =U25 -> 0.8625 | O46: =U26 -> 1
D47: =IF(E6=AA3,D45,) -> 0.0420525 | E47: =IF(E6=AA3,E46-(Y25/4),) -> 0.413375 | F47: =IF(AND(E5<>X3,E7=AA3),F46+(Z25/4),) -> 0.5969375 | G47: =IF(AND(E5<>X3,E7=AA3),AA13,) -> 0.041199375 | H47: =IF(AND(E5<>X3,E7=AA3,E4<>AA5),F46+(Z25/4),) -> 0.5969375 | I47: =IF(AND(E5<>X3,E7=AA3,E4<>AA5),O47-AA13,) -> 0.958800625 | J47: =IF(AND(E5=X5,E8=AA3),J46+(AA25/4),) -> 0 | K47: =IF(AND(E5=X5,E8=AA3),AA12,) -> 0 | L47: =IF(AND(E5=X5,E8=AA3,E4<>AA5),J46+(AA25/4),) -> 0 | M47: =IF(AND(E5=X5,E8=AA3,E4<>AA5),O47-AA12,) -> 0 | N47: 0 | O47: =U26 -> 1
D48: =D44 -> 0.00875 | E48: =IF(E6=AA3,O49-(Y25/2),) -> 0.32675 | F48: =IF(AND(E5<>X3,E7=AA3),F46+(Z25/2),) -> 0.681375 | G48: =G44 -> 0.00875 | H48: =IF(AND(E5<>X3,E7=AA3,E4<>AA5),F46+(Z25/2),) -> 0.681375 | I48: =IF(AND(E5<>X3,E7=AA3,E4<>AA5),O46-G44,) -> 0.99125 | J48: =IF(AND(E5=X5,E8=AA3),J46+(AA25/2),) -> 0 | K48: =K44 -> 0 | L48: =IF(AND(E5=X5,E8=AA3,E4<>AA5),J46+(AA25/2),) -> 0 | M48: =IF(AND(E5=X5,E8=AA3,E4<>AA5),O46-G44,) -> 0 | N48: 0 | O48: 0
D49: =IF(E6=AA3,D50-(Y24/4),) -> 0.1325 | E49: =IF(E6=AA3,E48+((E52-E48)/1.8),) -> 0.423 | F49: =IF(AND(E5<>X3,E7=AA3),F48-((F48-F52)/1.8),) -> 0.5875555556 | G49: =IF(AND(E5<>X3,E7=AA3),G50-(Z24/4),) -> 0.129375 | H49: =IF(AND(E7=AA3,E4<>AA5),F48-((F48-F52)/1.8),) -> 0.5875555556 | I49: =IF(AND(E5<>X3,E7=AA3,E4<>AA5),I50+(Z24/4),) -> 0.870625 | J49: =IF(AND(E5=X5,E8=AA3),J48-((J48-J52)/1.8),) -> 0 | K49: =IF(AND(E5=X5,E8=AA3),K50-(Z24/4),) -> 0 | L49: =IF(AND(E8=AA3,E4<>AA5),J48-((J48-J52)/1.8),) -> 0 | M49: =IF(AND(E5=X5,E8=AA3,E4<>AA5),M50+(Z24/4),) -> 0 | N49: =U25-U27 -> 0.5125 | O49: =U26/2 -> 0.5
D50: =IF(E6=AA3,D51-(Y24/4),) -> 0.25625 | E50: =IF(E6=AA3,E48+((E52-E48)*0.85),) -> 0.4740125 | F50: =IF(AND(E5<>X3,E7=AA3),F48-((F48-F52)*0.85),) -> 0.53783125 | G50: =IF(AND(E5<>X3,E7=AA3),(U26/2)-(U26/4),) -> 0.25 | H50: =IF(AND(E7=AA3,E4<>AA5),F48-((F48-F52)*0.85),) -> 0.53783125 | I50: =IF(AND(E5<>X3,E7=AA3,E4<>AA5),O46-(U26/4),) -> 0.75 | J50: =IF(AND(E5=X5,E8=AA3),J48-((J48-J52)*0.85),) -> 0 | K50: =IF(AND(E5=X5,E8=AA3),(U26/2)-(U26/4),) -> 0 | L50: =IF(AND(E8=AA3,E4<>AA5),J48-((J48-J52)*0.85),) -> 0 | M50: =IF(AND(E5=X5,E8=AA3,E4<>AA5),O46-(U26/4),) -> 0 | N50: =N46 -> 0.8625 | O50: =O49 -> 0.5
D51: =IF(E6=AA3,D52-(Y24/4),) -> 0.38 | E51: =IF(E6=AA3,E52-((E52-E48)*0.05),) -> 0.4913375 | F51: =IF(AND(E5<>X3,E7=AA3),F52+((F48-F52)*0.05),) -> 0.52094375 | G51: =IF(AND(E5<>X3,E7=AA3),G50+(Z24/4),) -> 0.370625 | H51: =IF(AND(E7=AA3,E4<>AA5),F52+((F48-F52)*0.05),) -> 0.52094375 | I51: =IF(AND(E5<>X3,E7=AA3,E4<>AA5),I50-(Z24/4),) -> 0.629375 | J51: =IF(AND(E5=X5,E8=AA3),J52+((J48-J52)*0.05),) -> 0 | K51: =IF(AND(E5=X5,E8=AA3),K50+(Z24/4),) -> 0 | L51: =IF(AND(E8=AA3,E4<>AA5),J52+((J48-J52)*0.05),) -> 0 | M51: =IF(AND(E5=X5,E8=AA3,E4<>AA5),M50-(Z24/4),) -> 0 | N51: 0 | O51: 0
D52: =IF(E6=AA3,N49-U30,) -> 0.50375 | E52: =IF(E6=AA3,O49,) -> 0.5 | F52: =IF(AND(E5<>X3,E7=AA3),N49,) -> 0.5125 | G52: =IF(AND(E5<>X3,E7=AA3),O49-U30,) -> 0.49125 | H52: =IF(AND(E5<>X3,E7=AA3,E4<>AA5),N49,) -> 0.5125 | I52: =IF(AND(E5<>X3,E7=AA3,E4<>AA5),O49+U30,) -> 0.50875 | J52: =IF(AND(E5=X5,E8=AA3),N49+(U27/2),) -> 0 | K52: =IF(AND(E5=X5,E8=AA3),O49-U30,) -> 0 | L52: =IF(AND(E5=X5,E8=AA3,E4<>AA5),J52,) -> 0 | M52: =IF(AND(E5=X5,E8=AA3,E4<>AA5),O49+U30,) -> 0 | N52: =U25-U27 -> 0.5125 | O52: =O50 -> 0.5
D53: =D51 -> 0.38 | E53: =E52+((E52-E48)*0.05) -> 0.5086625 | F53: =IF(AND(E5<>X3,E7=AA3),F52-((F48-F52)*0.05),) -> 0.50405625 | G53: =G51 -> 0.370625 | H53: =IF(AND(E7=AA3,E4<>AA5),F52-((F48-F52)*0.05),) -> 0.50405625 | I53: =I51 -> 0.629375 | J53: =IF(AND(E5=X5,E8=AA3),J52-((J48-J52)*0.05),) -> 0 | K53: =K51 -> 0 | L53: =IF(AND(E8=AA3,E4<>AA5),J52-((J48-J52)*0.05),) -> 0 | M53: =M51 -> 0 | N53: 0 | O53: =O47 -> 1
D54: =D50 -> 0.25625 | E54: =E56-((E52-E48)*0.85) -> 0.5259875 | F54: =IF(AND(E5<>X3,E7=AA3),F56+((F52-F56)*0.85),) -> 0.48716875 | G54: =G50 -> 0.25 | H54: =IF(AND(E7=AA3,E4<>AA5),F56+((F52-F56)*0.85),) -> 0.48716875 | I54: =I50 -> 0.75 | J54: =IF(AND(E5=X5,E8=AA3),J56+((J52-J56)*0.85),) -> 0 | K54: =K50 -> 0 | L54: =IF(AND(E8=AA3,E4<>AA5),J56+((J52-J56)*0.85),) -> 0 | M54: =M50 -> 0
D55: =D49 -> 0.1325 | E55: =E56-((E52-E48)/1.8) -> 0.577 | F55: =F56+((F52-F56)/1.8) -> 0.4374444444 | G55: =G49 -> 0.129375 | H55: =IF(AND(E7=AA3,E4<>AA5),F56+((F52-F56)/1.8),) -> 0.4374444444 | I55: =I49 -> 0.870625 | J55: =J56+((J52-J56)/1.8) -> 0 | K55: =K49 -> 0 | L55: =IF(AND(E8=AA3,E4<>AA5),J56+((J52-J56)/1.8),) -> 0 | M55: =M49 -> 0
D56: =D44 -> 0.00875 | E56: =E44 -> 0.67325 | F56: =F44 -> 0.343625 | G56: =G44 -> 0.00875 | H56: =IF(AND(E7=AA3,E4<>AA5),F44,) -> 0.343625 | I56: =I48 -> 0.99125 | J56: =J44 -> 0 | K56: =K44 -> 0 | L56: =IF(AND(E8=AA3,E4<>AA5),J44,) -> 0 | M56: =M48 -> 0
H58: x | I58: y | J58: x | K58: y | L58: x | M58: y | N58: x | O58: y | P58: x | Q58: y | R58: x | S58: y
H59: down front | J59: down mid | L59: down right | N59: up front | P59: up mid | R59: up right
H60: =U30 -> 0.00875 | I60: =U30 -> 0.00875 | J60: =IF(OR(E5=X4,E5=X5),N52+U30-U14,) -> 0.52125 | K60: =IF(OR(E5=X4,E5=X5),U30,) -> 0.00875 | L60: =IF(E5=X5,L64-Z28,) -> 0 | M60: =M64 -> 0 | N60: =IF(E4=AA5,0,U30) -> 0.00875 | O60: =IF(E4=AA5,0,O46-X24-U30) -> 0.50875 | P60: =IF(AND(E4=AA6,OR(E5=X4,E5=X5)),J72,) -> 0.52125 | Q60: =IF(AND(E4=AA6,OR(E5=X4,E5=X5)),O64,) -> 0.50875 | R60: =IF(AND(E4=AA6,E5=X5),L64-Z28,) -> 0 | S60: =IF(AND(E4=AA6,E5=X5),(U26/2)+U30,) -> 0
H61: =IF(E5=X2,H60+(X25/4),H60+(X25/4)) -> 0.1325 | I61: =I62*0.75 -> 0.05653125 | J61: =IF(OR(E5=X4,E5=X5),J60+(MAX(X28:Y28)/4),) -> 0.604375 | K61: =IF(OR(E5=X4,E5=X5),X20,) -> 0.0406875 | L61: =IF(E5=X5,L62-(Z28/4),) -> 0 | M61: =IF(E5=X5,AA17,) -> 0 | N61: =IF(E4=AA5,0,H71) -> 0.1325 | O61: =IF(E4=AA5,0,O60+X15+(U10/4)) -> 0.56528125 | P61: =IF(AND(E4=AA6,OR(E5=X4,E5=X5)),J71,) -> 0.604375 | Q61: =IF(AND(E4=AA6,OR(E5=X4,E5=X5)),O49+X19,) -> 0.5406875 | R61: =IF(AND(E4=AA6,E5=X5),L62-(Z28/4),) -> 0 | S61: =IF(AND(E4=AA6,E5=X5),AA17+(U26/2),) -> 0
H62: =IF(E5=X2,H60+(X25/2),H60+(X25/2)) -> 0.25625 | I62: =W16 -> 0.075375 | J62: =IF(E5=X4,J64-(J64-J60)/2,IF(E5=X5,J64-(J64-J60)/2,)) -> 0.6875 | K62: =IF(OR(E5=X4,E5=X5),W20,) -> 0.05425 | L62: =IF(E5=X5,L63-(Z28/4),) -> 0 | M62: =IF(E5=X5,Z17,) -> 0 | N62: =IF(E4=AA5,0,H70) -> 0.25625 | O62: =IF(E4=AA5,0,O60+W15+(U10/2)) -> 0.584125 | P62: =IF(AND(E4=AA6,OR(E5=X4,E5=X5)),J70,) -> 0.6875 | Q62: =IF(AND(E4=AA6,OR(E5=X4,E5=X5)),O50+W19,) -> 0.55425 | R62: =IF(AND(E4=AA6,E5=X5),L63-(Z28/4),) -> 0 | S62: =IF(AND(E4=AA6,E5=X5),Z17+(U26/2),) -> 0
H63: =IF(E5=X2,H62+(X25/4),H62+(X25/4)) -> 0.38 | I63: =I61 -> 0.05653125 | J63: =IF(OR(E5=X4,E5=X5),J64-(MAX(X28:Y28)/4),) -> 0.770625 | K63: =IF(OR(E5=X4,E5=X5),K61,) -> 0.0406875 | L63: =IF(E5=X5,L64-(Z28/4),) -> 0 | M63: =IF(E5=X5,M61,) -> 0 | N63: =IF(E4=AA5,0,H69) -> 0.38 | O63: =IF(E4=AA5,0,O64+X15-(U10/4)) -> 0.56528125 | P63: =P62+(P62-P61) -> 0.770625 | Q63: =IF(AND(E4=AA6,OR(E5=X4,E5=X5)),Q61,) -> 0.5406875 | R63: =IF(AND(E4=AA6,E5=X5),L64-(Z28/4),) -> 0 | S63: =IF(AND(E4=AA6,E5=X5),M61+(U26/2),) -> 0
H64: =IF((H60+X25)>U25,U25,H60+X25) -> 0.50375 | I64: =U30 -> 0.00875 | J64: =IF(OR(E5=X4,E5=X5),J68,) -> 0.85375 | K64: =IF(OR(E5=X4,E5=X5),U30,) -> 0.00875 | L64: =IF(E5=X5,N50-U30,) -> 0 | M64: =IF(E5=X5,U30,) -> 0 | N64: =IF(E4=AA5,0,IF(E5=X3,H60+X25,W25+H60)) -> 0.50375 | O64: =IF(E4=AA5,0,O47-W24-U30) -> 0.50875 | P64: =IF(AND(E4=AA6,OR(E5=X4,E5=X5)),J68,) -> 0.85375 | Q64: =IF(AND(E4=AA6,OR(E5=X4,E5=X5)),Q60,) -> 0.50875 | R64: =IF(AND(E4=AA6,E5=X5),N50-U30,) -> 0 | S64: =IF(AND(E4=AA6,E5=X5),S60,) -> 0
H65: =H64-X13-(U14/IF(E5=X5,2.75,2.75)) -> 0.4484375 | I65: =W24/4 -> 0.120625 | J65: =IF(OR(E5=X4,E5=X5),J64-X18,) -> 0.7984375 | K65: =IF(OR(E5=X4,E5=X5),I65,) -> 0.120625 | L65: =IF(E5=X5,L64-AA16,) -> 0 | M65: =IF(E5=X5,K65,) -> 0 | N65: =IF(E4=AA5,0,H67) -> 0.4484375 | O65: =IF(E4=AA5,0,(W24/4)+(U26/2)) -> 0.620625 | P65: =IF(AND(E4=AA6,OR(E5=X4,E5=X5)),P64-X18,) -> 0.7984375 | Q65: =IF(AND(E4=AA6,OR(E5=X4,E5=X5)),O65,) -> 0.620625 | R65: =IF(AND(E4=AA6,E5=X5),L64-AA16,) -> 0 | S65: =IF(AND(E4=AA6,E5=X5),Q65,) -> 0
H66: =H64-W13-(U14/IF(E5=X5,1.6,1.6)) -> 0.43 | I66: =U26/4 -> 0.25 | J66: =IF(OR(E5=X4,E5=X5),J64-W18,) -> 0.78 | K66: =IF(OR(E5=X4,E5=X5),I66,) -> 0.25 | L66: =IF(E5=X5,L64-Z16,) -> 0 | M66: =IF(E5=X5,K66,) -> 0 | N66: =IF(E4=AA5,0,H66) -> 0.43 | O66: =IF(E4=AA5,0,(U26/4)+(U26/2)) -> 0.75 | P66: =IF(AND(E4=AA6,OR(E5=X4,E5=X5)),P64-W18,) -> 0.78 | Q66: =IF(OR(E5=X2,E5=X3),0,O66) -> 0.75 | R66: =IF(AND(E4=AA6,E5=X5),L64-Z16,) -> 0 | S66: =IF(AND(E4=AA6,E5=X5),Q66,) -> 0
H67: =H68-X13+(U14/5) -> 0.4484375 | I67: =(W24*0.75) -> 0.361875 | J67: =J65 -> 0.7984375 | K67: =IF(OR(E5=X4,E5=X5),I67,) -> 0.361875 | L67: =IF(E5=X5,L65,) -> 0 | M67: =IF(E5=X5,K67,) -> 0 | N67: =IF(E4=AA5,0,H65) -> 0.4484375 | O67: =IF(E4=AA5,0,(W24*0.75)+(U26/2)) -> 0.861875 | P67: =P65 -> 0.7984375 | Q67: =IF(OR(E5=X2,E5=X3),0,O67) -> 0.861875 | R67: =IF(AND(E4=AA6,E5=X5),L65,) -> 0 | S67: =IF(E5=X5,Q67,) -> 0
H68: =IF(E5=X3,H60+X25,H60+W25) -> 0.50375 | I68: =(U26/2)-U30 -> 0.49125 | J68: =IF(E5=X4,U25-U30,IF(E5=X5,N52+(U27/4)+(W28/2)+U18,)) -> 0.85375 | K68: =IF(OR(E5=X4,E5=X5),(U26/2)-U30,) -> 0.49125 | L68: =IF(E5=X5,L64,) -> 0 | M68: =IF(E5=X5,K68,) -> 0 | N68: =IF(E4=AA5,0,H64) -> 0.50375 | O68: =IF(E4=AA5,0,U26-U30) -> 0.99125 | P68: =IF(AND(E4=AA6,OR(E5=X4,E5=X5)),P64,) -> 0.85375 | Q68: =IF(OR(E5=X2,E5=X3),0,O72) -> 0.99125 | R68: =IF(AND(E4=AA6,E5=X5),L64,) -> 0 | S68: =IF(E5=X5,Q68,) -> 0
H69: =IF(E5=X3,H62+(X25/4),H68-(W25/4)) -> 0.38 | I69: =I68-X15+(U10/4) -> 0.43471875 | J69: =IF(OR(E5=X4,E5=X5),J68-(Y28/4),) -> 0.770625 | K69: =IF(OR(E5=X4,E5=X5),(U26/2)-X19,) -> 0.4593125 | L69: =IF(E5=X5,L63,) -> 0 | M69: =IF(E5=X5,(U26/2)-AA17,) -> 0 | N69: =IF(E4=AA5,0,H63) -> 0.38 | O69: =IF(E4=AA5,0,((U26/2)-I61)+(U26/2)) -> 0.94346875 | P69: =IF(AND(E4=AA6,OR(E5=X4,E5=X5)),J63,) -> 0.770625 | Q69: =IF(E4=AA5,0,IF(OR(E5=X2,E5=X3),0,O47-X20)) -> 0.9593125 | R69: =IF(AND(E4=AA6,E5=X5),L63,) -> 0 | S69: =IF(AND(E4=AA6,E5=X5),O47-AA17,) -> 0
H70: =IF(E5=X3,H60+(X25/2),H69-(W25/4)) -> 0.25625 | I70: =I72-W15-(U10/2) -> 0.415875 | J70: =IF(OR(E5=X4,E5=X5),J69-(Y28/4),) -> 0.6875 | K70: =IF(OR(E5=X4,E5=X5),(U26/2)-W19,) -> 0.44575 | L70: =IF(E5=X5,L62,) -> 0 | M70: =IF(E5=X5,(U26/2)-Z17,) -> 0 | N70: =IF(E4=AA5,0,H62) -> 0.25625 | O70: =IF(E4=AA5,0,((U26/2)-I62)+(U26/2)) -> 0.924625 | P70: =IF(AND(E4=AA6,OR(E5=X4,E5=X5)),J62,) -> 0.6875 | Q70: =IF(E4=AA5,0,IF(OR(E5=X2,E5=X3),0,O47-W20)) -> 0.94575 | R70: =IF(AND(E4=AA6,E5=X5),L62,) -> 0 | S70: =IF(AND(E4=AA6,E5=X5),O47-Z17,) -> 0
H71: =IF(E5=X3,H60+(X25/4),H70-(W25/4)) -> 0.1325 | I71: =I72-X15-(U10/4) -> 0.43471875 | J71: =IF(OR(E5=X4,E5=X5),J70-(Y28/4),) -> 0.604375 | K71: =IF(OR(E5=X4,E5=X5),(U26/2)-X19,) -> 0.4593125 | L71: =IF(E5=X5,L61,) -> 0 | M71: =IF(E5=X5,M69,) -> 0 | N71: =IF(E4=AA5,0,H61) -> 0.1325 | O71: =O69 -> 0.94346875 | P71: =IF(AND(E4=AA6,OR(E5=X4,E5=X5)),J61,) -> 0.604375 | Q71: =IF(OR(E5=X2,E5=X3),0,Q69) -> 0.9593125 | R71: =IF(AND(E4=AA6,E5=X5),L61,) -> 0 | S71: =IF(E5=X5,S69,) -> 0
H72: =H60 -> 0.00875 | I72: =I68+U10 -> 0.49125 | J72: =IF(OR(E5=X4,E5=X5),N49+U30,) -> 0.52125 | K72: =IF(OR(E5=X4,E5=X5),K68,) -> 0.49125 | L72: =IF(E5=X5,L60,) -> 0 | M72: =IF(E5=X5,M68,) -> 0 | N72: =IF(E4=AA5,0,H60) -> 0.00875 | O72: =O68 -> 0.99125 | P72: =IF(AND(E4=AA6,OR(E5=X4,E5=X5)),J76,) -> 0.52125 | Q72: =IF(OR(E5=X2,E5=X3),0,Q68) -> 0.99125 | R72: =IF(AND(E4=AA6,E5=X5),L60,) -> 0 | S72: =IF(E5=X5,S68,) -> 0
H73: =H60+X14 -> 0.0640625 | I73: =I72-(X24/4) -> 0.370625 | J73: =IF(OR(E5=X4,E5=X5),J72+X18-(U14/5),) -> 0.5765625 | K73: =K67 -> 0.361875 | L73: =IF(E5=X5,L72+AA16,) -> 0 | M73: =IF(E5=X5,M67,) -> 0 | N73: =IF(E4=AA5,0,H60+X14) -> 0.0640625 | O73: =IF(E4=AA5,0,O72-(X24/4)) -> 0.870625 | P73: =IF(AND(E4=AA6,OR(E5=X4,E5=X5)),J75,) -> 0.5765625 | Q73: =Q67 -> 0.861875 | R73: =IF(AND(E4=AA6,E5=X5),L72+AA16,) -> 0 | S73: =IF(E5=X5,Q73,) -> 0
H74: =H60+W14 -> 0.0825 | I74: =I73-(X24/4) -> 0.25 | J74: =IF(OR(E5=X4,E5=X5),J76+W18+(U14/1.6),) -> 0.595 | K74: =IF(OR(E5=X4,E5=X5),K66,) -> 0.25 | L74: =IF(E5=X5,L72+Z16,) -> 0 | M74: =IF(E5=X5,M66,) -> 0 | N74: =IF(E4=AA5,0,H60+W14) -> 0.0825 | O74: =IF(E4=AA5,0,O73-(X24/4)) -> 0.75 | P74: =IF(AND(E4=AA6,OR(E5=X4,E5=X5)),J74,) -> 0.595 | Q74: =IF(OR(E5=X2,E5=X3),0,Q66) -> 0.75 | R74: =IF(AND(E4=AA6,E5=X5),L72+Z16,) -> 0 | S74: =IF(E5=X5,Q74,) -> 0
H75: =H73 -> 0.0640625 | I75: =I74-(X24/4) -> 0.129375 | J75: =IF(OR(E5=X4,E5=X5),J76+X18+(U14/2.75),) -> 0.5765625 | K75: =K65 -> 0.120625 | L75: =IF(E5=X5,L73,) -> 0 | M75: =IF(E5=X5,M65,) -> 0 | N75: =IF(E4=AA5,0,N73) -> 0.0640625 | O75: =IF(E4=AA5,0,O74-(X24/4)) -> 0.629375 | P75: =IF(AND(E4=AA6,OR(E5=X4,E5=X5)),J73,) -> 0.5765625 | Q75: =Q65 -> 0.620625 | R75: =IF(AND(E4=AA6,E5=X5),L73,) -> 0 | S75: =IF(E5=X5,Q75,) -> 0
H76: =H60 -> 0.00875 | I76: =U30 -> 0.00875 | J76: =IF(OR(E5=X4,E5=X5),J60,) -> 0.52125 | K76: =IF(OR(E5=X4,E5=X5),U30,) -> 0.00875 | L76: =IF(E5=X5,L60,) -> 0 | M76: =IF(E5=X5,M64,) -> 0 | N76: =IF(E4=AA5,0,H60) -> 0.00875 | O76: =O60 -> 0.50875 | P76: =IF(AND(E4=AA6,OR(E5=X4,E5=X5)),P60,) -> 0.52125 | Q76: =IF(E5=X2,0,Q60) -> 0.50875 | R76: =IF(AND(E4=AA6,E5=X5),L60,) -> 0 | S76: =IF(E5=X5,S60,) -> 0

Sheet Georgian Double Hipped
T1: Main material | U1: =IF(OR(E20=AC2,E20=AC3,E20=AC4,E20=AC5,E20=AC6,E20=AC7),5,IF(OR(E20=AC8,E20=AC9,E20=AC10,E20=AC11,E20=AC12,E20=AC13,E20=AC14,E20=AC15,E20=AC16,E20=AC17),6,IF(OR(E20=AC18,E20=AC19,E20=AC20,E20=AC21,E20=AC22,E20=AC23,E20=AC24),7.2,))) -> 5 | V1: Material cost | W1: 11.35 | X1: Sails | Y1: Warnings front/back | Z1: Warnings mid | AA1: Warnings front/back tri | AB1: Warnings mid tri | AC1: Fabric Colour | AE1: Fittings Colours
T2: Tri material | U2: =IF(OR(E21=AC2,E21=AC3,E21=AC4,E21=AC5,E21=AC6,E21=AC7),5,IF(OR(E21=AC8,E21=AC9,E21=AC10,E21=AC11,E21=AC12,E21=AC13,E21=AC14,E21=AC15,E21=AC16,E21=AC17),6,IF(OR(E21=AC18,E21=AC19,E21=AC20,E21=AC21,E21=AC22,E21=AC23,E21=AC24),7.2,))) -> 5 | V2: PE | W2: 2.5 | X2: 1 | Y2: =MIN(W33,Z33) -> 2.069 | Z2: =X33 -> 1.726991604 | AA2: =IF(E6<>Y6,0.001,1)*AA33 -> 0.001543534904 | AB2: =IF(OR(E7=Y6,E8=Y6),1,0.00001)*AB33 -> 1.726991604e-05 | AC2: ISX Solid | AD2: 5 | AE2: Stainless steel
V3: PN | W3: 3.5 | X3: 2 | Y3: =IF(E5=X2,W34,MIN(W34,Z34)) -> 2.2855 | Z3: =X34+IF(OR(E5=X2,E5=X3),1000,1) -> 3.9855 | AA3: =AA34 -> 1.001 | AB3: =AB34 -> 1.141 | AC3: ISX White | AE3: White
D4: Select coverage | E4: Cover both sides | V4: IP | W4: 2 | X4: 3 | Y4: Tri sails | Z4: Warning 1 | AA4: Warning: Sail too narrow, increase no. of sails, add additional fitting points or reduce gap size | AC4: ISX Solid Ivory | AE4: Gold
D5: Number of sails per side | E5: 3 | V5: No. of vents | X5: 4 | Y5: No | Z5: Warning 2 | AA5: Warning: Sail too narrow, decrease no. of sails, add additional fitting points or increase gap size | AC5: ISX Solid Oyster
D6: Front triangle sail | E6: No | T6: Shape | U6: =IF(X9=T7,U7,IF(X9=T8,U8,IF(X9=T9,U9))) -> 1 | V6: 0 | Y6: Yes | Z6: Warning 3 | AA6: Warning: Sail too wide for standard fabric, please add more sails or increase gap size | AC6: ISX Solid Sand
D7: Middle left triangle sails | E7: No | T7: Triangle | U7: 0.6 | V7: 1 | Y7: Coverage | Z7: Warning 4 | AA7: Warning: Conservatory too long for standard fabric, contact office for more detailed price | AC7: ISX Solid Stone
D8: Middle right triangle sails | E8: No | T8: Diamond | U8: 0.6 | V8: 2 | W8: No. of corners | X8: 4 | Y8: Cover one side | Z8: Warning 5 | AA8: Warning: Some triangular sails are too thin for this conservatory | AC8: ISX Duplex | AD8: 6
D9: Back triangle sail | E9: No | T9: Other | U9: 1 | V9: 3 | W9: Shape | X9: Other | Y9: Cover both sides | Z9: Warning 6 | AA9: Warning: Ridge is too short for a 3 sails per side solution, reduce no. of sails | AC9: ISX Duplex Ocean
T10: Overlap front | U10: =IF(E11=T11,U11,IF(E11=T12,U12,IF(E11=T13,U13))) -> 0.09571428571 | V10: 4 | W10: Curve allowance | X10: 0.5 | AC10: ISX Duplex Forest
D11: Reduce front gap size | E11: 1 | T11: Standard | U11: 0 | V11: 5 | W11: Front | X11: Mid | Y11: Quarters | Z11: Back | AA11: Mid | AB11: Quarters | AC11: ISX Duplex Stone
D12: Reduce middle left gap size | E12: 1 | T12: 0.5 | U12: =(X14*2)/2+(0.035/(IF(B23>B24,B23,B24)/1000)) -> 0.05142857143 | V12: 6 | W12: Horizontal | X12: =((W27+(0.07/(IF(B23>B24,B23,B24)/1000)))*0.13)+W25 -> 0.04959183673 | Y12: =(X12)*0.75 -> 0.03719387755 | Z12: Horizontal | AA12: =((Z27+(0.07/(IF(B23>B24,B23,B24)/1000)))*0.13)+W25 -> 0.06203469388 | AB12: =(AA12)*0.75 -> 0.04652602041 | AC12: ISX Duplex Slate
D13: Reduce centre gap size | E13: 1 | T13: 1 | U13: =X14*2+(0.035/(IF(B23>B24,B23,B24)/1000)) -> 0.09571428571 | W13: Horizontal overlaped | X13: =((X27+(0.07/(IF(B23>B24,B23,B24)/1000)))*0.13)+W25 -> 0.06203469388 | Y13: =(X13)*0.75 -> 0.04652602041 | Z13: Horizontal overlaped | AA13: =((Z27+(0.07/(IF(B23>B24,B23,B24)/1000)))*0.13)+W25 -> 0.06203469388 | AB13: =(AA13)*0.75 -> 0.04652602041 | AC13: ISX Duplex Graphite
D14: Reduce middle right gap size | E14: 1 | T14: Overlap back | U14: =IF(E15=T15,U15,IF(E15=T16,U16,IF(E15=T17,U17))) -> 0.09571428571 | W14: Vertical | X14: =IF(E5=X2,((W28+(0.07/(IF(B23>B24,B23,B24)/1000)))*0.13)+W25,((W28+(0.07/(IF(B23>B24,B23,B24)/1000)))*0.13)+W25) -> 0.04428571429 | Y14: =X14*0.75 -> 0.03321428571 | Z14: Vertical | AA14: =IF(E5=X2,0,((Y28+(0.07/(IF(B23>B24,B23,B24)/1000)))*0.13)+W25) -> 0.04428571429 | AB14: =AA14*0.75 -> 0.03321428571 | AC14: ISXFR Solid | AD14: 6
D15: Reduce back gap size | E15: 1 | T15: Standard | U15: 0 | W15: Vertical overlaped | X15: =IF(E5=X2,((X28+(0.07/(IF(B23>B24,B23,B24)/1000)))*0.13)+W25,((X28+(0.07/(IF(B23>B24,B23,B24)/1000)))*0.13)+W25) -> 0.06777857143 | Y15: =X15*0.75 -> 0.05083392857 | Z15: Vertical overlaped | AA15: =IF(E5=X2,((Z28+(0.07/(IF(B23>B24,B23,B24)/1000)))*0.13)+W25,((Z28+(0.07/(IF(B23>B24,B23,B24)/1000)))*0.13)+W25) -> 0.06777857143 | AB15: =AA15*0.75 -> 0.05083392857 | AC15: ISXFR White
D16: Total additional fittings | E16: 0 | T16: 0.5 | U16: =(AA14*2)/2+(0.035/(IF(B23>B24,B23,B24)/1000)) -> 0.05142857143 | AC16: ISXFR Solid Ivory
D17: Total tie-bar loops | E17: 0 | T17: 1 | U17: =AA14*2+(0.035/(IF(B23>B24,B23,B24)/1000)) -> 0.09571428571 | W17: Mid left | X17: Mid | Y17: Quarters | Z17: Mid right | AA17: Mid | AB17: Quarters | AC17: ISXFR Solid Oyster
D18: Total straight edges | E18: 0 | T18: Overlap middle left | U18: =IF(E12=T19,U19,IF(E12=T20,U20,IF(E12=T21,U21))) -> 0.1807142857 | W18: Horizontal | X18: =((W30+(0.07/(IF(B23>B24,B23,B24)/1000)))*0.13)+W25 -> 0.04959183673 | Y18: =(X18)*0.75 -> 0.03719387755 | Z18: Horizontal | AA18: =((Z30+(0.07/(IF(B23>B24,B23,B24)/1000)))*0.13)+W25 -> 0.04959183673 | AB18: =(AA18)*0.75 -> 0.03719387755 | AC18: ISXFR Duplex | AD18: 7.2
T19: Standard | U19: 0 | W19: Vertical | X19: =((W31+(0.07/(IF(B23>B24,B23,B24)/1000)))*0.13)+W25 -> 0.06285714286 | Y19: =X19*0.75 -> 0.04714285714 | Z19: Vertical | AA19: =((Z31+(0.07/(IF(B23>B24,B23,B24)/1000)))*0.13)+W25 -> 0.009 | AB19: =AA19*0.75 -> 0.00675 | AC19: ISXFR Duplex Ocean
D20: Colour of main sails | E20: ISX Solid | H20: Plan view - looking from above | T20: 0.5 | U20: =((X12*3)/1.75)+(0.035/(IF(B23>B24,B23,B24)/1000)) -> 0.0921574344 | W20: Vertical overlaped | X20: =((AVERAGE(W31:Y31)+(0.07/(IF(B23>B24,B23,B24)/1000)))*0.13)+W25 -> 0.07851904762 | Y20: =X20*0.75 -> 0.05888928571 | Z20: Vertical overlaped | AA20: =((AVERAGE(Z31:AB31)+(0.07/(IF(B23>B24,B23,B24)/1000)))*0.13)+W25 -> 0.01897993197 | AB20: =AA20*0.75 -> 0.01423494898 | AC20: ISXFR Duplex Forest
D21: Colour of triangles | E21: ISX Solid | H21: =IF(OR(E16>0,E17>0,E18>0),"Mark additional features (fittings/tie-bar loops/straight edges) on sketch","") ->  | T21: 1 | U21: =(X12*3.5+(0.035/(IF(B23>B24,B23,B24)/1000)))*IF(E5=X5,0.8,1) -> 0.1807142857 | W21: front | X21: mid | Y21: tri front | Z21: tri mid | AC21: ISXFR Duplex Sand
B22: All dims in mm | D22: Colour of fittings | E22: Stainless steel | T22: Overlap middle right | U22: =IF(E5=X3,U18,IF(E14=T19,U19,IF(E14=T20,U20,IF(E14=T21,U21)))) -> 0.1807142857 | V22: Sail perimeter | W22: =((X27+0.07)*2)+((X28+0.07)*2) -> 2.000204082 | X22: =((W30+0.07)*2)+X31+0.07+W31+0.07 -> 1.91377551 | Y22: =((AD30+0.07)*2)+AD31+0.07 -> 0.9428571429 | Z22: =((AC30+0.07)*2)+AC31+0.07 -> 1.053061224 | AC22: ISXFR Duplex Stone
A23: X1 | B23: 4900 | D23: Number of window vents | E23: 0 | T23: centre | U23: =IF(E13=T24,U24,IF(E13=T25,U25,IF(E13=T26,U26))) -> 0.04959183673 | V23: Roof area (m^2) | W23: =U31/2*U30 -> 0.3265306122 | X23: Tri | Y23: Mid | Z23: Quarters | AC23: ISXFR Duplex Slate
A24: Y1 | B24: 3200 | T24: Standard | U24: 0 | V24: Glazing bar length | W24: =SQRT((U29-U28)^2+(U31/2)^2) -> 0.3524472661 | X24: Vertical mid | Y24: =((AC31+W25)*0.13)+W25 -> 0.03648571429 | Z24: =Y24*0.75 -> 0.02736428571 | AC24: ISXFR Duplex Graphite
A25: H1 | B25: 3200 | D25: Max length of sail | E25: =(MAX(W33:Z33))*1000 -> 2069 | H25: Total budget cost incl. Installation+VAT+Delivery | J25: =(((12.15+(E23*50*VAT!V1)+W36+X36+Y36+Z36+IF(E6=Y6,AA36,)+IF(AND(E9=Y6,E5<>X2),AA36,)+IF(E7=Y6,AB36,)+IF(AND(OR(E5=X4,E5=X5),E8=Y6),AB36,))+(25.5*E16)+IF(E22<>AE2,E16*2,0)))+(E17*75*VAT!V1)+(E18*100*VAT!V1) -> 3071.280211 | T25: 0.5 | U25: =(((Z30+(0.07/(IF(B23>B24,B23,B24)/1000)))*0.13)+W25)/2 -> 0.02479591837 | V25: 50mm links | W25: =(0.035/(IF(B23>B24,B23,B24)/1000)) -> 0.007142857143 | X25: Vertical Front/back | Y25: =((AD31+W25)*0.13)+W25 -> 0.03277142857 | Z25: =Y25*0.75 -> 0.02457857143
A26: H2 | B26: 3850 | D26: Max width of sail | E26: =(MAX(W34:Z34))*1000 -> 2985.5 | J26: =' '!P6 -> 3531.972243 | T26: 1 | U26: =((Z30+(0.07/(IF(B23>B24,B23,B24)/1000)))*0.13)+W25 -> 0.04959183673 | W26: front + overlaped | Y26: back + overlaped
A27: R1 | B27: 2100 | G27: =' '!A9 -> 0 | U27: Dims in m | V27: Sail length | W27: =U31/2-(0.07/(IF(B23>B24,B23,B24)/1000)) -> 0.312244898 | X27: =W27+U10 -> 0.4079591837 | Y27: =U31/2-(0.07/(IF(B23>B24,B23,B24)/1000)) -> 0.312244898 | Z27: =W27+U14 -> 0.4079591837
D28: Please note that sails larger than 2100mm in both directions, will require a colour matched seam. | T28: h1 | U28: =B25/IF(B23>B24,B23,B24) -> 0.6530612245 | V28: Sail width | W28: =IF(E5=X3,I57-(U32/2)-(0.07/(IF(B23>B24,B23,B24)/1000)),I51-(0.07/(IF(B23>B24,B23,B24)/1000))) -> 0.2714285714 | X28: =W28+U18 -> 0.4521428571 | Y28: =IF(E5=X2,I48-(0.07/(IF(B23>B24,B23,B24)/1000)),IF(E5=X3,I57-(U32/2)-(0.07/(IF(B23>B24,B23,B24)/1000)),I51-(0.07/(IF(B23>B24,B23,B24)/1000)))) -> 0.2714285714 | Z28: =Y28+U22 -> 0.4521428571
T29: h2 | U29: =B26/IF(B23>B24,B23,B24) -> 0.7857142857 | W29: mid left + overlaped | Z29: mid right + overlaped | AC29: tri mid | AD29: tri front/back
G30: =' '!A12 -> 0 | T30: x1 | U30: =B23/IF(B23>B24,B23,B24) -> 1 | V30: Sail length | W30: =W27 -> 0.312244898 | X30: <- | Y30: -> | Z30: =Y27 -> 0.312244898 | AA30: <- | AB30: -> | AC30: =U31/2-(0.07/(IF(B23>B24,B23,B24)/1000)) -> 0.312244898 | AD30: =I51-(0.07/(IF(B23>B24,B23,B24)/1000)) -> 0.2714285714
D31: =IF(((X18*(IF(B23>B24,B23,B24)/1000))*2)>(Z3*X10),AA5,IF(((X12*(IF(B23>B24,B23,B24)/1000))*2)>(Y3*X10),AA5,IF((((MAX(X14,X19,AA14))*(IF(B23>B24,B23,B24)/1000))*2)>(Y2*X10),AA4,IF(AND(Y3>4,Y2>4),AA6,IF(AND(OR(E6=Y6,E7=Y6,E8=Y6,E9=Y6),OR(AC31*2<AC30,AD31*2<AD30)),AA8,IF(AND((U32*(IF(B23>B24,B23,B24)/1000))<0.75,E5=X4),AA9,"")))))) ->  | T31: y1 | U31: =B24/IF(B23>B24,B23,B24) -> 0.6530612245 | V31: Sail width | W31: =IF(E5=X4,I52-I51-(0.07/(IF(B23>B24,B23,B24)/1000)),IF(E5=X5,U32/2)) -> 0.4142857143 | X31: =W31+U18 -> 0.595 | Y31: =W31+IF(E5=X5,U23,U22) -> 0.595 | Z31: =IF(E5=X5,U32/2,) -> 0 | AA31: =Z31+U23 -> 0.04959183673 | AB31: =Z31+U22 -> 0.1807142857 | AC31: =IF(AC30*0.7<(U30-U32)/2,AC30*0.7,(U30-U32)-(2*W25)) -> 0.2185714286 | AD31: =IF(AD30*0.7<U31,AD30*0.7,U31-(2*W25)) -> 0.19
T32: r1 | U32: =B27/IF(B23>B24,B23,B24) -> 0.4285714286 | V32: Costs | W32: front | X32: mid left | Y32: mid right | Z32: back | AA32: tri front/back | AB32: tri mid left/right
V33: length | W33: =IF((((M59-M63)*(IF(B23>B24,B23,B24)/1000))+0.07)>(W24*(IF(B23>B24,B23,B24)/1000)),(((M59-M63)*(IF(B23>B24,B23,B24)/1000))+0.07),(W24*(IF(B23>B24,B23,B24)/1000))) -> 2.069 | X33: =W24*(IF(B23>B24,B23,B24)/1000) -> 1.726991604 | Y33: =W24*(IF(B23>B24,B23,B24)/1000) -> 1.726991604 | Z33: =IF((((S55-S51)*(IF(B23>B24,B23,B24)/1000))+0.07)>(W24*(IF(B23>B24,B23,B24)/1000)),(((S55-S51)*(IF(B23>B24,B23,B24)/1000))+0.07),(W24*(IF(B23>B24,B23,B24)/1000))) -> 2.069 | AA33: =(SQRT((((B23-B27)/2)^2)+((B26-B25)^2)))/1000 -> 1.543534904 | AB33: =W24*(IF(B23>B24,B23,B24)/1000) -> 1.726991604
V34: width | W34: =IF(E5<>X3,IF((((L51-L47)*(IF(B23>B24,B23,B24)/1000))+0.07)>((SQRT((((B23-B27)/2)^2)+((B26-B25)^2)))/1000),(((L51-L47)*(IF(B23>B24,B23,B24)/1000))+0.07),((SQRT((((B23-B27)/2)^2)+((B26-B25)^2)))/1000)),(SQRT(((B23/2)^2)+((B26-B25)^2)))/1000) -> 2.2855 | X34: =IF(OR(E5=X4,R5=X5),((N51-N47)*(IF(B23>B24,B23,B24)/1000))+0.07,(W31+U23+U18)*(IF(B23>B24,B23,B24)/1000)) -> 2.9855 | Y34: =IF(E5=X5,(W31+U23+U22)*(IF(B23>B24,B23,B24)/1000),) -> 0 | Z34: =IF(E5<>X3,IF((((R51-R47)*(IF(B23>B24,B23,B24)/1000))+0.07)>((SQRT((((B23-B27)/2)^2)+((B26-B25)^2)))/1000),(((R51-R47)*(IF(B23>B24,B23,B24)/1000))+0.07),((SQRT((((B23-B27)/2)^2)+((B26-B25)^2)))/1000)),(SQRT(((B23/2)^2)+((B26-B25)^2)))/1000) -> 2.2855 | AA34: =(AD31*(IF(B23>B24,B23,B24)/1000))+0.07 -> 1.001 | AB34: =(AC31*(IF(B23>B24,B23,B24)/1000))+0.07 -> 1.141
V35: perimeter | W35: =(W33+W34+((W27*(IF(B23>B24,B23,B24)/1000))+0.07)+((W28*(IF(B23>B24,B23,B24)/1000))+0.07))*1.05 -> 7.722225 | X35: =((X33*2)+((W31*(IF(B23>B24,B23,B24)/1000))+0.07)+X34)*1.05 -> 8.966457368 | Y35: =((Y33*2)+((Z31*(IF(B23>B24,B23,B24)/1000))+0.07)+Y34)*1.05 -> 3.700182368 | Z35: =(Z33+Z34+((Y27*(IF(B23>B24,B23,B24)/1000))+0.07)+((Y28*(IF(B23>B24,B23,B24)/1000))+0.07))*1.05 -> 7.722225 | AA35: =((AA33*2)+AA34)*1.05 -> 4.292473298 | AB35: =((AB33*2)+AB34)*1.05 -> 4.824732368
W36: =(IF(E4=Y9,2,1)*(((1.05*(U1*((U6*W33*W34*W1)+(W35*W2)+(X8*W3)+W4))+7.2*X8))+IF(E22<>AE2,8*VAT!V1,0)))/1.2*VAT!V1 -> 991.8511692 | X36: =(IF(OR(E5=X4,E5=X5),(IF(E4=Y9,2,1)*(((1.05*(U1*((U6*X33*X34*W1)+(X35*W2)+(X8*W3)+W4))+7.2*X8))+IF(E22<>AE2,8*VAT!V1,0))),))/1.2*VAT!V1 -> 1075.427873 | Y36: =(IF(E5=X5,(IF(E4=Y9,2,1)*(((1.05*(U1*((U6*Y33*Y34*W1)+(Y35*W2)+(X8*W3)+W4))+7.2*X8))+IF(E22<>AE2,8*VAT!V1,0))),0))/1.2*VAT!V1 -> 0 | Z36: =(IF(E5=X2,0,IF(E4=Y9,2,1)*(((1.05*(U1*((U6*Z33*Z34*W1)+(Z35*W2)+(X8*W3)+W4))+7.2*X8)+(IF(E22<>AE2,8*VAT!V1,0))))))/1.2*VAT!V1 -> 991.8511692 | AA36: =(IF(OR(E6=Y6,E9=Y6),1.05*((U2*((U7*AA33*AA34*W1)+(AA35*W2)+(3*W3)+W4))+7.2*3),)+IF(E22<>AE2,6*VAT!V1,0))/1.2*VAT!V1 -> 0 | AB36: =(((IF(OR(E7=Y6,E8=Y6),1.05*((U2*((U7*AB33*AB34*W1)+(AB35*W2)+(3*W3)+W4))+7.2*3),))+IF(E22<>AE2,6*VAT!V1,0))*IF(E4=Y9,2,1))/1.2*VAT!V1 -> 0
C44: x | D44: y | E44: x | F44: y | G44: x | H44: y | I44: Roof plan
C45: mid left tri 1 | E45: mid right tri 4 | G45: f tri 3 | I45: x-axis | J45: y-axis | L45: x | M45: y | N45: x | O45: y | P45: x | Q45: y | R45: x | S45: y
C46: =IF(E7=Y6,C48-(AC31/2),) -> 0 | D46: =IF(E7=Y6,W25,) -> 0 | E46: =IF(OR(E5=X4,E5=X5),IF(E8=Y6,E48-(AC31/2),),0) -> 0 | F46: =IF(OR(E5=X4,E5=X5),IF(E8=Y6,W25,),0) -> 0 | G46: =IF(E6=Y6,W25,) -> 0 | H46: =IF(E6=Y6,J51+(AD31/2),) -> 0 | I46: 0 | J46: 0 | L46: down front | N46: down mid left | P46: down mid right | R46: down left
C47: =IF(E7=Y6,C48-(AC31/4),) -> 0 | D47: =IF(E7=Y6,Z24,) -> 0 | E47: =IF(OR(E5=X4,E5=X5),IF(E8=Y6,E48-(AC31/4),),0) -> 0 | F47: =IF(OR(E5=X4,E5=X5),IF(E8=Y6,Z24,),0) -> 0 | G47: =IF(E6=Y6,Z25,) -> 0 | H47: =IF(E6=Y6,H46-(AD31/4),) -> 0 | I47: =U30 -> 1 | J47: 0 | L47: =W25 -> 0.007142857143 | M47: =W25 -> 0.007142857143 | N47: =IF(E5=X4,U30/2-(X31/2),IF(E5=X5,U30/2-W31-U18)) -> 0.2025 | O47: =IF(OR(E5=X4,E5=X5),W25,) -> 0.007142857143 | P47: =IF(E5=X5,U30/2-U23,) -> 0 | Q47: =IF(E5=X5,W25,) -> 0 | R47: =IF(E5<>X2,R51-Z28,) -> 0.5407142857 | S47: =IF(E5<>X2,W25,) -> 0.007142857143
C48: =IF(E7=Y6,C54,) -> 0 | D48: =IF(E7=Y6,Y24,) -> 0 | E48: =IF(OR(E5=X4,E5=X5),IF(E8=Y6,E54,),0) -> 0 | F48: =IF(OR(E5=X4,E5=X5),IF(E8=Y6,Y24,),0) -> 0 | G48: =IF(E6=Y6,Y25,) -> 0 | H48: =IF(E6=Y6,H47-(AD31/4),) -> 0 | I48: =U30 -> 1 | J48: =U31 -> 0.6530612245 | L48: =IF(E5=X2,L47+(X28/4),L47+(X28/4)) -> 0.1201785714 | M48: =M49*0.75 -> 0.05083392857 | N48: =IF(E5=X4,N47+(MAX(X31:Y31)/4),IF(E5=X5,N47+((N51-N47)/4),)) -> 0.35125 | O48: =IF(E5=X4,Y20,IF(E5=X5,Y20,)) -> 0.05888928571 | P48: =IF(E5=X5,P47+((P51-P47)/4),) -> 0 | Q48: =IF(E5=X5,AB20,) -> 0 | R48: =IF(E5<>X2,R47+(Z28/4),0) -> 0.65375 | S48: =IF(E5<>X2,AB15,) -> 0.05083392857
C49: =IF(E7=Y6,C48+(AC31/4),) -> 0 | D49: =IF(E7=Y6,Z24,) -> 0 | E49: =IF(OR(E5=X4,E5=X5),IF(E8=Y6,E48+(AC31/4),),0) -> 0 | F49: =IF(OR(E5=X4,E5=X5),IF(E8=Y6,Z24,),0) -> 0 | G49: =IF(E6=Y6,G47,) -> 0 | H49: =IF(E6=Y6,H48-(AD31/4),) -> 0 | I49: 0 | J49: =U31 -> 0.6530612245 | L49: =IF(E5=X2,L47+(X28/2),L47+(X28/2)) -> 0.2332142857 | M49: =X15 -> 0.06777857143 | N49: =IF(OR(E5=X4,E5=X5),N51-(N51-N47)/2,) -> 0.5 | O49: =IF(E5=X4,X20,IF(E5=X5,X20,)) -> 0.07851904762 | P49: =IF(E5=X5,P51+(P47-P51)/2,) -> 0 | Q49: =IF(E5=X5,AA20,) -> 0 | R49: =IF(E5<>X2,R47+(Z28/2),0) -> 0.7667857143 | S49: =IF(E5<>X2,AA15,) -> 0.06777857143
C50: =IF(E7=Y6,C48+(AC31/2),) -> 0 | D50: =D46 -> 0 | E50: =IF(OR(E5=X4,E5=X5),IF(E8=Y6,E48+(AC31/2),),0) -> 0 | F50: =IF(OR(E5=X4,E5=X5),IF(E8=Y6,F46,),0) -> 0 | G50: =G46 -> 0 | H50: =IF(E6=Y6,J51-(AD31/2),) -> 0 | I50: 0 | J50: 0 | L50: =IF(E5=X2,L49+(X28/4),L49+(X28/4)) -> 0.34625 | M50: =M48 -> 0.05083392857 | N50: =IF(E5=X4,N51-(MAX(X31:Y31)/4),IF(E5=X5,N51-((N51-N47)/4))) -> 0.64875 | O50: =IF(OR(E5=X4,E5=X5),O48,) -> 0.05888928571 | P50: =IF(E5=X5,P51-((P51-P47)/4),) -> 0 | Q50: =IF(E5=X5,Q48,) -> 0 | R50: =IF(E5<>X2,R49+(Z28/4),0) -> 0.8798214286 | S50: =IF(E5<>X2,S48,) -> 0.05083392857
C51: =IF(E7=Y6,C50-((C50-C54)/1.8),) -> 0 | D51: =IF(E7=Y6,D52-(AC30/4),) -> 0 | E51: =IF(OR(E5=X4,E5=X5),IF(E8=Y6,E50-((E50-E54)/1.8),),0) -> 0 | F51: =IF(OR(E5=X4,E5=X5),IF(E8=Y6,F52-(AC30/4),),0) -> 0 | G51: =IF(E6=Y6,G52-(AD30/4),) -> 0 | H51: =IF(E6=Y6,H50+((H54-H50)/1.8),) -> 0 | I51: =(U30/2)-(U32/2) -> 0.2857142857 | J51: =U31/2 -> 0.3265306122 | L51: =L47+X28 -> 0.4592857143 | M51: =W25 -> 0.007142857143 | N51: =IF(E5=X4,U30/2+(Y31/2),IF(E5=X5,U30/2+U23,)) -> 0.7975 | O51: =IF(OR(E5=X4,E5=X5),W25,) -> 0.007142857143 | P51: =IF(E5=X5,P47+Z31+U23+U22,) -> 0 | Q51: =IF(E5=X5,W25,) -> 0 | R51: =IF(E5<>X2,U30-W25,0) -> 0.9928571429 | S51: =S47 -> 0.007142857143
C52: =IF(E7=Y6,C50-((C50-C54)*0.85),) -> 0 | D52: =IF(E7=Y6,(U31/2)-(U31/4),) -> 0 | E52: =IF(OR(E5=X4,E5=X5),IF(E8=Y6,E50-((E50-E54)*0.85),),0) -> 0 | F52: =IF(OR(E5=X4,E5=X5),IF(E8=Y6,U31/2-(U31/4),),0) -> 0 | G52: =IF(E6=Y6,G53-(AD30/4),) -> 0 | H52: =IF(E6=Y6,H50+((H54-H50)*0.85),) -> 0 | I52: =(U30/2)+(U32/2) -> 0.7142857143 | J52: =J51 -> 0.3265306122 | L52: =IF(E5=X2,L51-Y12,L51-Y12-(U18/2.75)) -> 0.356377551 | M52: =W27/4 -> 0.07806122449 | N52: =IF(E5=X4,N51-Y18-(U22/7),IF(E5=X5,N51-Y18,)) -> 0.7344897959 | O52: =IF(OR(E5=X4,E5=X5),M52,) -> 0.07806122449 | P52: =IF(E5=X5,P51-Y18-(U22/2.75),) -> 0 | Q52: =IF(E5=X5,U31/8,) -> 0 | R52: =IF(E5<>X2,R51-AB13,) -> 0.9463311224 | S52: =IF(E5<>X2,S53-(Z27/4),) -> 0.1091326531
C53: =IF(E7=Y6,C54+((C50-C54)*0.05),) -> 0 | D53: =IF(E7=Y6,D52+(AC30/4),) -> 0 | E53: =IF(OR(E5=X4,E5=X5),IF(E8=Y6,E54+((E50-E54)*0.05),),0) -> 0 | F53: =IF(OR(E5=X4,E5=X5),IF(E8=Y6,F52+(AC30/4),),0) -> 0 | G53: =IF(E6=Y6,G54-(AD30/4),) -> 0 | H53: =IF(E6=Y6,H54-((H54-H50)*0.05),) -> 0 | I53: 0 | J53: 0 | L53: =IF(E5=X2,L51-X12,L51-X12-(U18/1.6)) -> 0.296747449 | M53: =U31/4 -> 0.1632653061 | N53: =IF(E5=X4,N51-X18-(U22/3.5),IF(E5=X5,N51-X18,)) -> 0.6962755102 | O53: =IF(OR(E5=X4,E5=X5),M53,) -> 0.1632653061 | P53: =IF(E5=X5,P51-X18-(U22/1.6),) -> 0 | Q53: =IF(E5=X5,U31/4,) -> 0 | R53: =IF(E5<>X2,R51-AA13,) -> 0.930822449 | S53: =IF(E5<>X2,S54-(Z27/4),) -> 0.211122449
C54: =IF(E7=Y6,I51+IF(E5=X3,U32/2,),) -> 0 | D54: =IF(E7=Y6,J51-W25,) -> 0 | E54: =IF(OR(E5=X4,E5=X5),IF(E8=Y6,U32+I51,),0) -> 0 | F54: =IF(OR(E5=X4,E5=X5),IF(E8=Y6,J51-W25,),0) -> 0 | G54: =IF(E6=Y6,I51-W25,) -> 0 | H54: =IF(E6=Y6,J51,) -> 0 | I54: =(U30/2)-(U32/2) -> 0.2857142857 | J54: =J52 -> 0.3265306122 | L54: =IF(E5=X2,L55-Y12,L55-Y12+(U18/5.5)) -> 0.2742346939 | M54: =W27*0.75 -> 0.2341836735 | N54: =IF(E5=X4,N55-Y18+(U22/9),IF(E5=X5,N55-Y18,)) -> 0.6900283447 | O54: =IF(OR(E5=X4,E5=X5),M54,) -> 0.2341836735 | P54: =IF(E5=X5,P55-Y18+(U22/5),) -> 0 | Q54: =IF(E5=X5,(U31/8)*3,) -> 0 | R54: =IF(E5<>X2,R51-AB13,) -> 0.9463311224 | S54: =IF(E5<>X2,S55-(Z27/4),) -> 0.3131122449
C55: =IF(E7=Y6,C54-((C50-C54)*0.05),) -> 0 | D55: =D53 -> 0 | E55: =IF(OR(E5=X4,E5=X5),IF(E8=Y6,E54-((E50-E54)*0.05),),0) -> 0 | F55: =IF(OR(E5=X4,E5=X5),IF(E8=Y6,F53,),0) -> 0 | G55: =G53 -> 0 | H55: =H54+((H54-H50)*0.05) -> 0 | I55: 0 | J55: =J49 -> 0.6530612245 | L55: =IF(E5=X2,L47+X28,W28+L47) -> 0.2785714286 | M55: =U31/2-W25 -> 0.3193877551 | N55: =IF(E5=X4,I57-W25,IF(E5=X5,U30/2+U23,)) -> 0.7071428571 | O55: =IF(OR(E5=X4,E5=X5),U31/2-W25,) -> 0.3193877551 | P55: =IF(E5=X5,(U30/2)+Z31,) -> 0 | Q55: =IF(E5=X5,U31/2-W25,) -> 0 | R55: =IF(E5<>X2,R51,0) -> 0.9928571429 | S55: =IF(E5<>X2,S51+Z27,) -> 0.4151020408
C56: =IF(E7=Y6,C58+((C54-C58)*0.85),) -> 0 | D56: =D52 -> 0 | E56: =IF(OR(E5=X4,E5=X5),IF(E8=Y6,E58+((E54-E58)*0.85),),0) -> 0 | F56: =IF(OR(E5=X4,E5=X5),IF(E8=Y6,F52,),0) -> 0 | G56: =G52 -> 0 | H56: =H58-((H54-H50)*0.85) -> 0 | I56: =U30 -> 1 | J56: 0 | L56: =IF(E5=X2,L49+(X28/4),L55-(W28/4)) -> 0.2107142857 | M56: =M55-Y14+(U10/4) -> 0.3101020408 | N56: =IF(OR(E5=X4,E5=X5),N55-(W31/4),) -> 0.6035714286 | O56: =IF(OR(E5=X4,E5=X5),U31/2-Y19,) -> 0.2793877551 | P56: =IF(E5=X5,P55-((P55-P59)/4),) -> 0 | Q56: =IF(E5=X5,U31/2-AB19,) -> 0 | R56: =IF(E5<>X2,R55-(W28/4),) -> 0.925 | S56: =IF(E5<>X2,S55-AB14-(U14/4),) -> 0.3579591837
C57: =C58+((C54-C58)/1.8) -> 0 | D57: =D51 -> 0 | E57: =IF(OR(E5=X4,E5=X5),IF(E8=Y6,E58+((E54-E58)/1.8),),0) -> 0 | F57: =IF(OR(E5=X4,E5=X5),IF(E8=Y6,F51,),0) -> 0 | G57: =G51 -> 0 | H57: =H58-((H54-H50)/1.8) -> 0 | I57: =(U30/2)+(U32/2) -> 0.7142857143 | J57: =J51 -> 0.3265306122 | L57: =IF(E5=X2,L47+(X28/2),L56-(W28/4)) -> 0.1428571429 | M57: =M59-X14-(U10/2) -> 0.3229591837 | N57: =IF(E5=X4,U30/2,IF(E5=X5,N55-((N55-N59)/2),)) -> 0.5 | O57: =IF(OR(E5=X4,E5=X5),U31/2-X19,) -> 0.2636734694 | P57: =IF(E5=X5,P55-((P55-P59)/2),) -> 0 | Q57: =IF(E5=X5,U31/2-AA19,) -> 0 | R57: =IF(E5<>X2,R55-(W28/2),0) -> 0.8571428571 | S57: =IF(E5<>X2,S55-AA14-(U14/2),) -> 0.3229591837
C58: =C46 -> 0 | D58: =D46 -> 0 | E58: =IF(OR(E5=X4,E5=X5),IF(E8=Y6,E46,),0) -> 0 | F58: =IF(OR(E5=X4,E5=X5),IF(E8=Y6,F46,),0) -> 0 | G58: =G46 -> 0 | H58: =H46 -> 0 | I58: =U30 -> 1 | J58: =J55 -> 0.6530612245 | L58: =IF(E5=X2,L47+(X28/4),L57-(W28/4)) -> 0.075 | M58: =M59-Y14-(U10/4) -> 0.3579591837 | N58: =IF(OR(E5=X4,E5=X5),N57-((N55-N59)/4),) -> 0.3964285714 | O58: =IF(OR(E5=X4,E5=X5),U31/2-Y19,) -> 0.2793877551 | P58: =IF(E5=X5,P57-((P55-P59)/4),) -> 0 | Q58: =IF(E5=X5,U31/2-AB19,) -> 0 | R58: =IF(E5<>X2,R59+(W28/4),0) -> 0.7892857143 | S58: =IF(E5<>X2,S59-AB14+(U14/4),) -> 0.3101020408
C59: x | D59: y | F59: x | G59: y | H59: x | I59: y | L59: =L47 -> 0.007142857143 | M59: =M47+X27 -> 0.4151020408 | N59: =IF(E5=X4,N55-W31,IF(E5=X5,N55-W31-U23,)) -> 0.2928571429 | O59: =IF(OR(E5=X4,E5=X5),O55,) -> 0.3193877551 | P59: =IF(E5=X5,P55-Z31-U23,) -> 0 | Q59: =IF(E5=X5,Q55,) -> 0 | R59: =IF(E5=X3,I54+(U32/2)+W25,IF(E5<>X2,I57+W25,)) -> 0.7214285714 | S59: =IF(E5<>X2,J54-W25,) -> 0.3193877551
C60: mid left tri 2 | F60: mid right tri 5 | H60: b tri 6 | L60: =L47+Y13 -> 0.05366887755 | M60: =M59-(X27/4) -> 0.3131122449 | N60: =IF(E5=X4,N59+Y18-(U18/9),IF(E5=X5,N59+Y18-(U18/5),)) -> 0.3099716553 | O60: =O54 -> 0.2341836735 | P60: =IF(E5=X5,P59+AB18,) -> 0 | Q60: =Q54 -> 0 | R60: =IF(E5<>X2,R59+Y12-(U22/5.5),) -> 0.7257653061 | S60: =IF(E5<>X2,(W27*0.75),) -> 0.2341836735
C61: =IF(AND(E7=Y6,E4<>Y8),C48-(AC31/2),) -> 0 | D61: =IF(AND(E7=Y6,E4<>Y8),J48-W25,) -> 0 | F61: =IF(OR(E5=X2,E5=X3),0,IF(AND(E8=Y6,E4<>Y8),E48-(AC31/2),)) -> 0 | G61: =IF(OR(E5=X2,E5=X3),0,IF(AND(E8=Y6,E4<>Y8),J48-W25,)) -> 0 | H61: =IF(E5=X2,0,IF(AND(E9=Y6,E4<>Y10),I48-W25,)) -> 0 | I61: =IF(E5=X2,0,IF(AND(E9=Y6,E4<>Y10),J51+(AD31/2),)) -> 0 | L61: =L47+X13 -> 0.06917755102 | M61: =M60-(X27/4) -> 0.211122449 | N61: =IF(E5=X4,N63+X18+(U18/3.5),IF(E5=X5,N63+X18+(U18/1.6),)) -> 0.3037244898 | O61: =IF(OR(E5=X4,E5=X5),O53,) -> 0.1632653061 | P61: =IF(E5=X5,P63+AA18,) -> 0 | Q61: =IF(E5=X5,Q53,) -> 0 | R61: =IF(E5<>X2,R63+X12+(U22/1.6),) -> 0.703252551 | S61: =IF(E5<>X2,U31/4,) -> 0.1632653061
C62: =IF(AND(E7=Y6,E4<>Y8),C48-(AC31/4),) -> 0 | D62: =IF(AND(E7=Y6,E4<>Y8),J48-Z24,) -> 0 | F62: =IF(OR(E5=X2,E5=X3),0,IF(AND(E8=Y6,E4<>Y8),E48-(AC31/4),)) -> 0 | G62: =IF(OR(E5=X2,E5=X3),0,IF(AND(E8=Y6,E4<>Y8),J48-Z24,)) -> 0 | H62: =IF(E5=X2,0,IF(AND(E9=Y6,E4<>Y10),I48-Z25,)) -> 0 | I62: =IF(E5=X2,0,IF(AND(E9=Y6,E4<>Y10),I61-(AD31/4),)) -> 0 | L62: =L60 -> 0.05366887755 | M62: =M61-(X27/4) -> 0.1091326531 | N62: =IF(E5=X4,N63+Y18+(U18/7),IF(E5=X5,N63+Y18+(U18/2.75),)) -> 0.2655102041 | O62: =O52 -> 0.07806122449 | P62: =IF(E5=X5,P63+AB18,) -> 0 | Q62: =Q52 -> 0 | R62: =IF(E5<>X2,R63+Y12+(U22/2.75),) -> 0.643622449 | S62: =IF(E5<>X2,W27/4,) -> 0.07806122449
C63: =IF(AND(E7=Y6,E4<>Y8),C54,) -> 0 | D63: =IF(AND(E7=Y6,E4<>Y8),J49-Y24,) -> 0 | F63: =IF(OR(E5=X2,E5=X3),0,IF(AND(E8=Y6,E4<>Y8),E54,)) -> 0 | G63: =IF(OR(E5=X2,E5=X3),0,IF(AND(E8=Y6,E4<>Y8),J49-Y24,)) -> 0 | H63: =IF(E5=X2,0,IF(AND(E9=Y6,E4<>Y10),I48-Y25,)) -> 0 | I63: =IF(E5=X2,0,IF(AND(E9=Y6,E4<>Y10),I62-(AD31/4),)) -> 0 | L63: =L47 -> 0.007142857143 | M63: =W25 -> 0.007142857143 | N63: =IF(OR(E5=X4,E5=X5),N47,) -> 0.2025 | O63: =IF(OR(E5=X4,E5=X5),W25,) -> 0.007142857143 | P63: =IF(E5=X5,P47,) -> 0 | Q63: =IF(E5=X5,W25,) -> 0 | R63: =R47 -> 0.5407142857 | S63: =S47 -> 0.007142857143
C64: =IF(AND(E7=Y6,E4<>Y8),C48+(AC31/4),) -> 0 | D64: =IF(AND(E7=Y6,E4<>Y8),J49-Z24,) -> 0 | F64: =IF(OR(E5=X2,E5=X3),0,IF(AND(E8=Y6,E4<>Y8),E48+(AC31/4),)) -> 0 | G64: =IF(OR(E5=X2,E5=X3),0,IF(AND(E8=Y6,E4<>Y8),J49-Z24,)) -> 0 | H64: =IF(E5=X2,0,IF(AND(E9=Y6,E4<>Y10),I48-Z25,)) -> 0 | I64: =IF(E5=X2,0,IF(AND(E9=Y6,E4<>Y10),I63-(AD31/4),)) -> 0
C65: =IF(AND(E7=Y6,E4<>Y8),C48+(AC31/2),) -> 0 | D65: =IF(AND(E7=Y6,E4<>Y8),J48-D46,) -> 0 | F65: =IF(OR(E5=X2,E5=X3),0,IF(AND(E8=Y6,E4<>Y8),E48+(AC31/2),)) -> 0 | G65: =IF(OR(E5=X2,E5=X3),0,IF(AND(E8=Y6,E4<>Y8),J48-F46,)) -> 0 | H65: =IF(E5=X2,0,IF(AND(E9=Y6,E4<>Y10),H61,)) -> 0 | I65: =IF(E5=X2,0,IF(AND(E9=Y6,E4<>Y10),J51-(AD31/2),)) -> 0 | L65: x | M65: y | N65: x | O65: y | P65: x | Q65: y | R65: x | S65: y
C66: =IF(AND(E7=Y6,E4<>Y8),C50-((C50-C54)/1.8),) -> 0 | D66: =IF(AND(E7=Y6,E4<>Y8),D67+(AC30/4),) -> 0 | F66: =IF(OR(E5=X2,E5=X3),0,IF(AND(E8=Y6,E4<>Y8),E50-((E50-E54)/1.8),)) -> 0 | G66: =IF(OR(E5=X2,E5=X3),0,IF(AND(E8=Y6,E4<>Y8),G67+(AC30/4),)) -> 0 | H66: =IF(E5=X2,0,IF(AND(E9=Y6,E4<>Y10),H65-(AD30/4),)) -> 0 | I66: =IF(AND(E9=Y6,E4<>Y10),I65+((I69-I65)/1.8),) -> 0 | L66: up front | N66: up mid left | P66: up mid right | R66: up left
C67: =IF(AND(E7=Y6,E4<>Y8),C50-((C50-C54)*0.85),) -> 0 | D67: =IF(AND(E7=Y6,E4<>Y8),J48-(U31/4),) -> 0 | F67: =IF(OR(E5=X2,E5=X3),0,IF(AND(E8=Y6,E4<>Y8),E50-((E50-E54)*0.85),)) -> 0 | G67: =IF(OR(E5=X2,E5=X3),0,IF(AND(E8=Y6,E4<>Y8),J48-(U31/4),)) -> 0 | H67: =IF(E5=X2,0,IF(AND(E9=Y6,E4<>Y10),H65-(AD30/2),)) -> 0 | I67: =IF(AND(E9=Y6,E4<>Y10),I65+((I69-I65)*0.85),) -> 0 | L67: =IF(E4=Y8,0,W25) -> 0.007142857143 | M67: =IF(E4=Y8,0,J48-X27-W25) -> 0.2379591837 | N67: =IF(E4=Y8,0,IF(E5=X2,0,N59)) -> 0.2928571429 | O67: =IF(OR(E5=X4,E5=X5),M71,) -> 0.3336734694 | P67: =IF(E4=Y8,0,IF(E5=X2,0,P59)) -> 0 | Q67: =IF(E5=X5,M71,) -> 0 | R67: =IF(E4=Y8,0,IF(E5=X3,I54+(U32/2)+W25,IF(E5<>X2,I57+W25,))) -> 0.7214285714 | S67: =IF(E5<>X2,M71,) -> 0.3336734694
C68: =IF(AND(E7=Y6,E4<>Y8),C54+((C50-C54)*0.05),) -> 0 | D68: =IF(AND(E7=Y6,E4<>Y8),D67-(AC30/4),) -> 0 | F68: =IF(OR(E5=X2,E5=X3),0,IF(AND(E8=Y6,E4<>Y8),E54+((E50-E54)*0.05),)) -> 0 | G68: =IF(OR(E5=X2,E5=X3),0,IF(AND(E8=Y6,E4<>Y8),G67-(AC30/4),)) -> 0 | H68: =IF(E5=X2,0,IF(AND(E9=Y6,E4<>Y10),H69+(AD30/4),)) -> 0 | I68: =IF(AND(E9=Y6,E4<>Y10),I69-((I69-I65)*0.05),) -> 0 | L68: =IF(E4=Y8,0,L58) -> 0.075 | M68: =IF(E4=Y8,0,M67+Y14+(U10/4)) -> 0.2951020408 | N68: =IF(E4=Y8,0,IF(E5=X2,0,N58)) -> 0.3964285714 | O68: =IF(E4=Y8,0,IF(OR(E5=X4,E5=X5),O67+Y19,)) -> 0.3808163265 | P68: =IF(E4=Y8,0,IF(E5=X2,0,P58)) -> 0 | Q68: =IF(E4=Y8,0,IF(E5=X5,O67+Y19,)) -> 0 | R68: =IF(E4=Y8,0,IF(E5<>X2,R59+(W28/4),0)) -> 0.7892857143 | S68: =IF(E4=Y8,0,IF(E5<>X2,S67+AB14-(U14/4),)) -> 0.3429591837
C69: =IF(AND(E7=Y6,E4<>Y8),I51+IF(E5=X3,U32/2,),) -> 0 | D69: =IF(AND(E7=Y6,E4<>Y8),J51+W25,) -> 0 | F69: =IF(OR(E5=X2,E5=X3),0,IF(AND(E8=Y6,E4<>Y8),I51+U32,)) -> 0 | G69: =IF(OR(E5=X2,E5=X3),0,IF(AND(E8=Y6,E4<>Y8),J51+W25,)) -> 0 | H69: =IF(E5=X2,0,IF(AND(E9=Y6,E4<>Y10),I57+W25,)) -> 0 | I69: =IF(E5=X2,0,IF(AND(E9=Y6,E4<>Y10),J51,)) -> 0 | L69: =IF(E4=Y8,0,L57) -> 0.1428571429 | M69: =IF(E4=Y8,0,M67+X14+(U10/2)) -> 0.3301020408 | N69: =IF(E4=Y8,0,IF(E5=X2,0,N57)) -> 0.5 | O69: =IF(E4=Y8,0,IF(OR(E5=X4,E5=X5),O67+X19,)) -> 0.3965306122 | P69: =IF(E4=Y8,0,IF(E5=X2,0,P57)) -> 0 | Q69: =IF(E4=Y8,0,IF(E5=X5,O67+X19,)) -> 0 | R69: =IF(E4=Y8,0,IF(E5<>X2,R55-(W28/2),0)) -> 0.8571428571 | S69: =IF(E4=Y8,0,IF(E5<>X2,S71+AA14+(U14/2),)) -> 0.3301020408
C70: =IF(AND(E7=Y6,E4<>Y8),C54-((C50-C54)*0.05),) -> 0 | D70: =D68 -> 0 | F70: =IF(OR(E5=X2,E5=X3),0,IF(AND(E8=Y6,E4<>Y8),E54-((E50-E54)*0.05),)) -> 0 | G70: =IF(OR(E5=X2,E5=X3),0,G68) -> 0 | H70: =H68 -> 0 | I70: =IF(AND(E9=Y6,E4<>Y10),I69+((I69-I65)*0.05),) -> 0 | L70: =IF(E4=Y8,0,L56) -> 0.2107142857 | M70: =IF(E4=Y8,0,M71+Y14-(U10/4)) -> 0.3429591837 | N70: =N69+(N69-N68) -> 0.6035714286 | O70: =IF(OR(E5=X4,E5=X5),O68,) -> 0.3808163265 | P70: =P69+(P69-P68) -> 0 | Q70: =IF(E5=X5,O68,) -> 0 | R70: =IF(E4=Y8,0,IF(E5<>X2,R55-(W28/4),)) -> 0.925 | S70: =IF(E4=Y8,0,IF(E5<>X2,S71+AB14+(U14/4),)) -> 0.2951020408
C71: =IF(AND(E7=Y6,E4<>Y8),C58+((C54-C58)*0.85),) -> 0 | D71: =D67 -> 0 | F71: =IF(OR(E5=X2,E5=X3),0,IF(AND(E8=Y6,E4<>Y8),E58+((E54-E58)*0.85),)) -> 0 | G71: =IF(OR(E5=X2,E5=X3),0,G67) -> 0 | H71: =H67 -> 0 | I71: =IF(AND(E9=Y6,E4<>Y10),I73-((I69-I65)*0.85),) -> 0 | L71: =IF(E4=Y8,0,IF(E5=X2,L47+X28,W28+L47)) -> 0.2785714286 | M71: =IF(E4=Y8,0,J49-W27-W25) -> 0.3336734694 | N71: =IF(E4=Y8,0,IF(E5=X4,I57-W25,IF(E5=X5,U30/2+U23,))) -> 0.7071428571 | O71: =IF(OR(E5=X4,E5=X5),O67,) -> 0.3336734694 | P71: =IF(E4=Y8,0,IF(E5=X5,(U30/2)+Z31,)) -> 0 | Q71: =IF(E5=X5,O67,) -> 0 | R71: =IF(E4=Y8,0,IF(E5<>X2,U30-W25,0)) -> 0.9928571429 | S71: =IF(E4=Y8,0,IF(E5<>X2,J48-Z27-W25,)) -> 0.2379591837
C72: =IF(AND(E7=Y6,E4<>Y8),C58+((C54-C58)/1.8),) -> 0 | D72: =D66 -> 0 | F72: =IF(OR(E5=X2,E5=X3),0,IF(AND(E8=Y6,E4<>Y8),E58+((E54-E58)/1.8),)) -> 0 | G72: =IF(OR(E5=X2,E5=X3),0,G66) -> 0 | H72: =H66 -> 0 | I72: =IF(AND(E9=Y6,E4<>Y10),I73-((I69-I65)/1.8),) -> 0 | L72: =IF(E4=Y8,0,L54) -> 0.2742346939 | M72: =IF(E4=Y8,0,(W27/4)+U31/2) -> 0.4045918367 | N72: =IF(E4=Y8,0,IF(E5=X2,0,N54)) -> 0.6900283447 | O72: =IF(OR(E5=X4,E5=X5),M72,) -> 0.4045918367 | P72: =IF(E4=Y8,0,IF(E5=X2,0,P54)) -> 0 | Q72: =IF(E5=X5,M72,) -> 0 | R72: =IF(E4=Y8,0,IF(E5<>X2,R51-AB13,)) -> 0.9463311224 | S72: =IF(E4=Y8,0,IF(E5<>X2,S73-(Z27/4),)) -> 0.3399489796
C73: =IF(AND(E7=Y6,E4<>Y8),C46,) -> 0 | D73: =D65 -> 0 | F73: =IF(OR(E5=X2,E5=X3),0,IF(AND(E8=Y6,E4<>Y8),E46,)) -> 0 | G73: =IF(OR(E5=X2,E5=X3),0,G65) -> 0 | H73: =H65 -> 0 | I73: =IF(AND(E9=Y6,E4<>Y10),I61,) -> 0 | L73: =IF(E4=Y8,0,L53) -> 0.296747449 | M73: =IF(E4=Y8,0,(U31/4)+U31/2) -> 0.4897959184 | N73: =IF(E4=Y8,0,IF(E5=X2,0,N53)) -> 0.6962755102 | O73: =IF(OR(E5=X4,E5=X5),M73,) -> 0.4897959184 | P73: =IF(E4=Y8,0,IF(E5=X2,0,P53)) -> 0 | Q73: =IF(E5=X5,M73,) -> 0 | R73: =IF(E4=Y8,0,IF(E5<>X2,R51-AA13,)) -> 0.930822449 | S73: =IF(E4=Y8,0,IF(E5<>X2,S74-(Z27/4),)) -> 0.4419387755
L74: =IF(E4=Y8,0,L52) -> 0.356377551 | M74: =IF(E4=Y8,0,(W27*0.75)+U31/2) -> 0.5607142857 | N74: =IF(E4=Y8,0,N52) -> 0.7344897959 | O74: =IF(OR(E5=X4,E5=X5),M74,) -> 0.5607142857 | P74: =IF(E4=Y8,0,P52) -> 0 | Q74: =IF(E5=X5,M74,) -> 0 | R74: =IF(E4=Y8,0,IF(E5<>X2,R51-AB13,)) -> 0.9463311224 | S74: =IF(E4=Y8,0,IF(E5<>X2,S75-(Z27/4),)) -> 0.5439285714
L75: =IF(E4=Y8,0,L51) -> 0.4592857143 | M75: =IF(E4=Y8,0,(U31)-W25) -> 0.6459183673 | N75: =IF(OR(E5=X2,E4=Y8),0,N51) -> 0.7975 | O75: =IF(OR(E5=X4,E5=X5),M79,) -> 0.6459183673 | P75: =IF(OR(E5=X2,E4=Y8),0,P51) -> 0 | Q75: =IF(E5=X5,M79,) -> 0 | R75: =IF(E4=Y8,0,IF(E5<>X2,R51,0)) -> 0.9928571429 | S75: =IF(E5<>X2,M79,) -> 0.6459183673
L76: =IF(E4=Y8,0,L50) -> 0.34625 | M76: =IF(E4=Y8,0,(U31/2-M48)+U31/2) -> 0.6022272959 | N76: =IF(E4=Y8,0,IF(E5=X2,0,N50)) -> 0.64875 | O76: =IF(E4=Y8,0,IF(E5=X4,O75-Y20,IF(E5=X5,O75-Y19,))) -> 0.5870290816 | P76: =IF(E4=Y8,0,IF(E5=X2,0,P50)) -> 0 | Q76: =IF(E4=Y8,0,IF(E5=X5,Q75-AB19,)) -> 0 | R76: =IF(E4=Y8,0,IF(E5<>X2,R49+(Z28/4),0)) -> 0.8798214286 | S76: =IF(E4=Y8,0,IF(E5<>X2,J49-AB15,)) -> 0.6022272959
L77: =IF(E4=Y8,0,L49) -> 0.2332142857 | M77: =IF(E4=Y8,0,(U31/2-M49)+U31/2) -> 0.5852826531 | N77: =IF(E4=Y8,0,IF(E5=X2,0,N49)) -> 0.5 | O77: =IF(E4=Y8,0,IF(E5=X4,O75-X20,IF(E5=X5,O75-X19,))) -> 0.5673993197 | P77: =IF(E4=Y8,0,IF(E5=X2,0,P49)) -> 0 | Q77: =IF(E4=Y8,0,IF(E5=X5,Q75-AA19,)) -> 0 | R77: =IF(E4=Y8,0,IF(E5<>X2,R47+(Z28/2),0)) -> 0.7667857143 | S77: =IF(E4=Y8,0,IF(E5<>X2,J49-AA15,)) -> 0.5852826531
L78: =IF(E4=Y8,0,L48) -> 0.1201785714 | M78: =M76 -> 0.6022272959 | N78: =IF(E4=Y8,0,IF(E5=X2,0,N48)) -> 0.35125 | O78: =IF(OR(E5=X4,E5=X5),O76,) -> 0.5870290816 | P78: =IF(E4=Y8,0,IF(E5=X2,0,P48)) -> 0 | Q78: =IF(E5=X5,Q76,) -> 0 | R78: =IF(E4=Y8,0,IF(E5<>X2,R47+(Z28/4),0)) -> 0.65375 | S78: =S76 -> 0.6022272959
L79: =IF(E4=Y8,0,L47) -> 0.007142857143 | M79: =M75 -> 0.6459183673 | N79: =IF(E4=Y8,0,IF(E5=X2,0,N63)) -> 0.2025 | O79: =IF(OR(E5=X4,E5=X5),O75,) -> 0.6459183673 | P79: =IF(E4=Y8,0,IF(E5=X2,0,P63)) -> 0 | Q79: =IF(E5=X5,Q75,) -> 0 | R79: =IF(E4=Y8,0,IF(E5<>X2,R51-Z28,)) -> 0.5407142857 | S79: =S75 -> 0.6459183673
L80: =IF(E4=Y8,0,L47+Y13) -> 0.05366887755 | M80: =IF(E4=Y8,0,M79-(X27/4)) -> 0.5439285714 | N80: =IF(E4=Y8,0,IF(E5=X2,0,N62)) -> 0.2655102041 | O80: =O74 -> 0.5607142857 | P80: =IF(E4=Y8,0,IF(E5=X2,0,P62)) -> 0 | Q80: =Q74 -> 0 | R80: =IF(E4=Y8,0,R62) -> 0.643622449 | S80: =IF(E5<>X2,M74,) -> 0.5607142857
L81: =IF(E4=Y8,0,L47+X13) -> 0.06917755102 | M81: =IF(E4=Y8,0,M80-(X27/4)) -> 0.4419387755 | N81: =IF(E4=Y8,0,IF(E5=X2,0,N61)) -> 0.3037244898 | O81: =IF(OR(E5=X4,E5=X5),O73,) -> 0.4897959184 | P81: =IF(E4=Y8,0,IF(E5=X2,0,P61)) -> 0 | Q81: =IF(E5=X5,O73,) -> 0 | R81: =IF(E4=Y8,0,R61) -> 0.703252551 | S81: =IF(E5<>X2,M73,) -> 0.4897959184
L82: =IF(E4=Y8,0,L80) -> 0.05366887755 | M82: =IF(E4=Y8,0,M81-(X27/4)) -> 0.3399489796 | N82: =IF(E4=Y8,0,IF(E5=X2,0,N60)) -> 0.3099716553 | O82: =O72 -> 0.4045918367 | P82: =IF(E4=Y8,0,IF(E5=X2,0,P60)) -> 0 | Q82: =Q72 -> 0 | R82: =IF(E4=Y8,0,R60) -> 0.7257653061 | S82: =IF(E5<>X2,M72,) -> 0.4045918367
L83: =IF(E4=Y8,0,L47) -> 0.007142857143 | M83: =M67 -> 0.2379591837 | N83: =IF(E5=X2,0,N67) -> 0.2928571429 | O83: =IF(OR(E5=X4,E5=X5),O67,) -> 0.3336734694 | P83: =IF(E5=X2,0,P67) -> 0 | Q83: =IF(E5=X5,O67,) -> 0 | R83: =R67 -> 0.7214285714 | S83: =S67 -> 0.3336734694

Sheet Victorian
X1: Main material | Y1: =IF(OR(E17=AI2,E17=AI3,E17=AI4,E17=AI5,E17=AI6,E17=AI7),5,IF(OR(E17=AI8,E17=AI9,E17=AI10,E17=AI11,E17=AI12,E17=AI13,E17=AI14,E17=AI15,E17=AI16,E17=AI17),6,IF(OR(E17=AI18,E17=AI19,E17=AI20,E17=AI21,E17=AI22,E17=AI23,E17=AI24),7.2,))) -> 5 | Z1: Material cost | AA1: 11.35 | AB1: Sails | AC1: Warning 1 | AD1: Warning: Sail too narrow, increase no. of sails, add additional fitting points or reduce gap size | AE1: Coverage | AI1: Fabric Colour | AK1: Fittings Colours
X2: Tri material | Y2: =IF(OR(E18=AI2,E18=AI3,E18=AI4,E18=AI5,E18=AI6,E18=AI7),5,IF(OR(E18=AI8,E18=AI9,E18=AI10,E18=AI11,E18=AI12,E18=AI13,E18=AI14,E18=AI15,E18=AI16,E18=AI17),6,IF(OR(E18=AI18,E18=AI19,E18=AI20,E18=AI21,E18=AI22,E18=AI23,E18=AI24),7.2,))) -> 5 | Z2: PE | AA2: 2.5 | AB2: 1 | AC2: Warning 2 | AD2: Warning: Sail too narrow, decrease no. of sails, add additional fitting points or increase gap size | AE2: Cover one side | AI2: ISX Solid | AJ2: 5 | AK2: Stainless steel
Z3: PN | AA3: 3.5 | AB3: 2 | AC3: Warning 3 | AD3: Warning: Sail too wide for standard fabric, please add more sails or increase gap size | AE3: Cover both sides | AI3: ISX White | AK3: White
D4: Select coverage | E4: Cover both sides | Z4: IP | AA4: 2 | AB4: 3 | AC4: Warning 4 | AD4: Warning: Conservatory too long for standard fabric, contact office for more detailed price | AI4: ISX Solid Ivory | AK4: Gold
D5: Number of sails per side | E5: 2 | Z5: No. of vents | AC5: Warning 5 | AD5: Warning: Front triangular sails are too thin for this conservatory | AI5: ISX Solid Oyster
D6: Front triangle sail | E6: Yes | X6: Shape | Y6: =IF(AB9=X7,Y7,IF(AB9=X8,Y8,IF(AB9=X9,Y9))) -> 1 | Z6: 0 | AC6: Warning 6 | AD6: Warning: Middle triangular sails are too thin for this conservatory | AI6: ISX Solid Sand
D7: Middle triangle sails | E7: No | X7: Triangle | Y7: 0.6 | Z7: 1 | AC7: Warning 7 | AD7: Warning: Ridge is too short for a 3 sails per side solution, reduce no. of sails | AI7: ISX Solid Stone
D8: Back triangle sail | E8: No | X8: Diamond | Y8: 0.6 | Z8: 2 | AA8: No. of corners | AB8: 4 | AC8: Warnings front | AD8: Warnings mid | AE8: Warnings right | AF8: Warnings front tri | AG8: Warnings mid tri | AH8: Warnings mid tri | AI8: ISX Duplex | AJ8: 6
X9: Other | Y9: 1 | Z9: 3 | AA9: Shape | AB9: Other | AC9: =AA27 -> 1.53 | AD9: =AB27 -> 1.643441511 | AE9: =AC27 -> 1.643441511 | AF9: =IF(E6=AD12,1,0.0001)*AD27 -> 1.58 | AG9: =IF(OR(E7=AD12,E8=AD12),1,0.00001)*AE27 -> 1.643441511e-05 | AH9: =IF(OR(E7=AD12,E8=AD12),1,0.00001)*AF27 -> 1.643441511e-05 | AI9: ISX Duplex Ocean
D10: Reduce front gap size | E10: Standard | X10: Overlap front | Y10: =IF(E10=X11,Y11,IF(E10=X12,Y12,IF(E10=X13,Y13,))) -> 0 | Z10: 4 | AA10: Curve allowance | AB10: 0.5 | AC10: =AA28 -> 2.205 | AD10: =AB28*IF(E5=AB2,100000,1) -> 1.875 | AE10: =AC28*IF(E5<>AB4,100000,1) -> 187500 | AF10: =AD28 -> 1.25 | AG10: =IF(E7=AD12,AE28,AE28*AG9) -> 1.679597224e-05 | AH10: =AF28+(Y32*2) -> 1.044875817 | AI10: ISX Duplex Forest
D11: Reduce middle gap size | E11: 0.5 | X11: Point to point | Y11: 0 | Z11: Front | AA11: Mid | AB11: Quarters | AC11: Triangles | AD11: No | AI11: ISX Duplex Stone
D12: Reduce right gap size | E12: 0.5 | X12: 0.5 | Y12: =IF((AA12*2+(0.035/(IF(B24>B26,B24,B26)/1000)))>(Y27/3),Y27/3,(AA12*2+(0.035/(IF(B24>B26,B24,B26)/1000)))*0.8) -> 0.1074509804 | Z12: Horizontal long side | AA12: =((AA21+(0.07/(IF(B24>IF(B24>B26,B24,B26),B24,IF(B24>B26,B24,B26))/1000)))*0.1)+Y32 -> 0.0614379085 | AB12: =(AA12)*0.75 -> 0.04607843137 | AD12: Yes | AI12: ISX Duplex Slate
D13: Total additional fittings | E13: 0 | X13: 1 | Y13: =IF((AA13*2+(0.035/(IF(B24>B26,B24,B26)/1000)))>(Y27/2),Y27/2,(AA13*2+(0.035/(IF(B24>B26,B24,B26)/1000)))) -> 0.1643137255 | Z13: Vertical long | AA13: =IF(E5=AB2,((AA21+(0.07/(IF(B24>IF(B24>B26,B24,B26),B24,IF(B24>B26,B24,B26))/1000)))*0.13)+Y32,((AA21+(0.07/(IF(B24>IF(B24>B26,B24,B26),B24,IF(B24>B26,B24,B26))/1000)))*0.13)+Y32) -> 0.0764379085 | AB13: =AA13*0.75 -> 0.05732843137 | AC13: Tri | AD13: Mid | AE13: Quarters | AI13: ISX Duplex Graphite
D14: Total tie-bar loops | E14: 0 | X14: Overlap middle | Y14: =IF(E11=X15,Y15,IF(E11=X16,Y16,IF(E11=X17,Y17,))) -> 0.204248366 | Z14: V short side | AA14: =(((J74-J70)+(Y32*2))*0.13)+Y32 -> 0.09109477124 | AB14: =AA14*0.75 -> 0.06832107843 | AC14: Vertical back | AD14: =((AC25+(Y32*2))*0.13)+Y32 -> 0.05783006536 | AE14: =AD14*0.75 -> 0.04337254902 | AI14: ISXFR Solid | AJ14: 6
D15: Total straight edges | E15: 0 | X15: Standard | Y15: 0 | Z15: H short side | AA15: =(((Y27/2)+Y10)*0.13)+Y32 -> 0.03799019608 | AB15: =AA15*0.75 -> 0.02849264706 | AC15: Vertical middle | AD15: =((AB25+(Y32*2))*0.13)+Y32 -> 0.05783006536 | AE15: =AD15*0.75 -> 0.04337254902 | AI15: ISXFR White
X16: 0.5 | Y16: =Y17/2 -> 0.204248366 | Z16: Mid | AA16: Mid | AB16: Quarters | AC16: Vertical Front | AD16: =((AA25+(Y32*2))*0.13)+Y32 -> 0.05931699346 | AE16: =AD16*0.75 -> 0.0444877451 | AI16: ISXFR Solid Ivory
D17: Colour of main sails | E17: ISX Solid | X17: 1 | Y17: =V78-V70 -> 0.408496732 | Z17: Horizontal | AA17: =((AC21+(Y32*2))*0.13)+Y32 -> 0.0764379085 | AB17: =(AA17)*0.75 -> 0.05732843137 | AC17: Back | AD17: Mid | AE17: Quarters | AI17: ISXFR Solid Oyster
D18: Colour of triangles | E18: ISX Solid | X18: Overlap back | Y18: =IF(E5<>AB4,0,IF(E12=X15,Y19,IF(E12=X16,Y20,IF(E12=X17,Y21,)))) -> 0 | Z18: Vertical ridge | AA18: =((AE22+(Y32*2))*0.13)+Y32 -> 0.06454248366 | AB18: =AA18*0.75 -> 0.04840686275 | AC18: Horizontal | AD18: =((AF21+(Y32*2))*0.13)+Y32 -> 0.0764379085 | AE18: =AD18*0.75 -> 0.05732843137 | AI18: ISXFR Duplex | AJ18: 7.2
D19: Colour of fittings | E19: Stainless steel | X19: Standard | Y19: 0 | Z19: Vertical fascia | AA19: =((AVERAGE(AD22:AE22)+(Y32*2))*0.13)+Y32 -> 0.07781862745 | AB19: =AA19*0.75 -> 0.05836397059 | AC19: Vertical | AD19: =((AF22+(Y32*2))*0.13)+Y32 -> 0.03799019608 | AE19: =AD19*0.75 -> 0.02849264706 | AI19: ISXFR Duplex Ocean
D20: Number of window vents | E20: 0 | J20: Plan view - looking from above | X20: 0.5 | Y20: =IF(E5=AB3,AA17+(0.035/(IF(B24>B26,B24,B26)/1000)),IF(E5=AB4,AA17/2+(0.035/(IF(B24>B26,B24,B26)/1000)),)) -> 0.08787581699 | AA20: front + overlaped | AC20: mid + overlaped | AF20: back | AI20: ISXFR Duplex Forest
H21: =IF(OR(E13>0,E14>0,E15>0),"Mark additional features (fittings/tie-bar loops/straight edges) on sketch","") ->  | X21: 1 | Y21: =IF(E5=AB3,AA17*2+(0.035/(IF(B24>B26,B24,B26)/1000)),IF(E5=AB4,AA17+(0.035/(IF(B24>B26,B24,B26)/1000)),)) -> 0.1643137255 | Z21: Sail length | AA21: =(Y28/2)-(0.07/(IF(B24>B26,B24,B26)/1000)) -> 0.477124183 | AB21: =AA21+Y10 -> 0.477124183 | AC21: =AA21 -> 0.477124183 | AD21: <- | AE21: -> | AF21: =AC21 -> 0.477124183 | AI21: ISXFR Duplex Sand
D22: Max length of sail | E22: =(MAX(AA27:AC27))*1000 -> 1643.441511 | Y22: Dims in m | Z22: Sail width | AA22: =J74 -> 0.7091503268 | AB22: =AA22 -> 0.7091503268 | AC22: =((Y29/IF(E5=AB3,1,2))-(0.07/(IF(B24>B26,B24,B26)/1000))) -> 0.385620915 | AD22: =AC22+Y14 -> 0.589869281 | AE22: =AC22+Y18 -> 0.385620915 | AF22: =((Y29)/2)-(0.07/(IF(B24>B26,B24,B26)/1000))+Y18 -> 0.181372549 | AI22: ISXFR Duplex Stone
B23: All dims in mm | D23: Max width of sail | E23: =(MAX(AA28:AC28))*1000 -> 2205 | H23: Total budget cost incl. Installation+VAT+Delivery | K23: =(((12.15+(E20*50*VAT!V1)+AA32+AB30+AC30+AD30+IF(E7=AD12,AE30,)+IF(AND(E5=AB4,E8=AD12),AF30,))+(25.5*E13)+IF(E19<>AK2,E13*2,0)))+(E14*75*VAT!V1)+(E15*100*VAT!V1) -> 1802.970215 | X23: h1 | Y23: =B28/IF(B24>B26,B24,B26) -> 0.6535947712 | AA23: tri front | AB23: tri mid | AC23: tri back | AI23: ISXFR Duplex Slate
A24: X1 | B24: 3060 | K24: =' '!P7 -> 2073.415747 | X24: h2 | Y24: =B29/IF(B24>B26,B24,B26) -> 0.8496732026 | Z24: Sail length | AA24: =V78-(0.07/(IF(B24>B26,B24,B26)/1000)) -> 0.4934640523 | AB24: =W78-(0.07/(IF(B24>B26,B24,B26)/1000)) -> 0.477124183 | AC24: =AB24 -> 0.477124183 | AI24: ISXFR Duplex Graphite
A25: X2 | B25: 1250 | D25: Please note that sails larger than 2100mm in both directions, will require a colour matched seam. | G25: =' '!A9 -> 0 | X25: y2 | Y25: =B27/IF(B24>B26,B24,B26) -> 0.8169934641 | Z25: Sail width | AA25: =IF(AA24*0.7<Y27,AA24*0.7,Y27-(2*Y32)) -> 0.3454248366 | AB25: =IF(AB24*0.7<(Y25-Y29)*2,AB24*0.7,((Y25-Y29)*2)-(2*Y32)) -> 0.3339869281 | AC25: =IF(AC24*0.7<Y29,AC24*0.7,Y29-(Y32*2)) -> 0.3339869281
A26: Y1 | B26: 2830 | X26: y1 | Y26: =B26/IF(B24>B26,B24,B26) -> 0.9248366013 | Z26: Costs | AA26: front | AB26: mid | AC26: right | AD26: tri front | AE26: tri mid | AF26: tri back
A27: Y2 | B27: 2500 | X27: x2 | Y27: =B25/IF(B24>B26,B24,B26) -> 0.408496732 | Z27: length | AA27: =((K82-K74)*(IF(B24>B26,B24,B26)/1000))+0.07 -> 1.53 | AB27: =(Y31*(IF(B24>B26,B24,B26)/1000)) -> 1.643441511 | AC27: =Y31*(IF(B24>B26,B24,B26)/1000) -> 1.643441511 | AD27: =(AA24*(IF(B24>B26,B24,B26)/1000))+0.07 -> 1.58 | AE27: =(Y31*(IF(B24>B26,B24,B26)/1000)) -> 1.643441511 | AF27: =(Y31*(IF(B24>B26,B24,B26)/1000)) -> 1.643441511
A28: H1 | B28: 2000 | D28: =IF(((AD18*(B26/1000))*(IF(E13=AA7,0.5,2)))>(AE10*AB10),AD2,IF(((AA17*(B26/1000))*2)>(AD10*AB10),AD2,IF((((MAX(AA18,AA19,AD19)*(B26/1000))*2)>((MIN(AD9:AE9))*AB10)),AD1,IF(((AA12*(B26/1000))*(IF(E13=AA7,0.5,2)))>(AC10*AB10),AD2,IF(AND(AC10>4,AC9>4),AD3,IF(AND((Y29*(B26/1000))<1,E5=AB4),AD7,IF(AF9>(AF10*2),AD5,IF(AND(E7=AD12,AG9>(AG10*2)),AD6,"")))))))) ->  | G28: =' '!A12 -> 0 | X28: x1 | Y28: =B24/IF(B24>B26,B24,B26) -> 1 | Z28: width | AA28: =((J74-J82)*(IF(B24>B26,B24,B26)/1000))+0.07 -> 2.205 | AB28: =((L74-L70)*(IF(B24>B26,B24,B26)/1000))+0.07 -> 1.875 | AC28: =IF(E5<>AB4,MIN(AA28,AB28),((R74-R70)*(IF(B24>B26,B24,B26)/1000))+0.07) -> 1.875 | AD28: =(Y27*(IF(B24>B26,B24,B26)/1000)) -> 1.25 | AE28: =(AB25*(IF(B24>B26,B24,B26)/1000)) -> 1.022 | AF28: =(AC25*(IF(B24>B26,B24,B26)/1000)) -> 1.022
A29: H2 | B29: 2600 | X29: r1 | Y29: =B30/IF(B24>B26,B24,B26) -> 0.408496732 | Z29: V diagonal | AA29: =(SQRT(((IF(B24>B26,B24,B26)-B30)^2)+((B24/2)^2))/1000)-((SQRT((((IF(B24>B26,B24,B26)-B27)/2)^2)+(((B24-B25)/4)^2)))/1000) -> 1.837896816 | AB29: =(AB28+(AB27*2)+(((L78-L82)*(IF(B24>B26,B24,B26)/1000))+0.07))*1.05 -> 6.732477173 | AC29: =((AC27*2)+(AC28*2))*1.05 -> 7.388727173 | AD29: =((AD27*2)+AD28)*1.05 -> 4.6305 | AE29: =((AE27*2)+AE28)*1.05 -> 4.524327173 | AF29: =((AF27*2)+AF28)*1.05 -> 4.524327173
A30: R1 | B30: 1250 | X30: Roof area (m^2) | Y30: =(Y28/2)*IF(B24>B26,B24,B26) -> 1530 | Z30: H diagonal | AA30: =SQRT((AA27^2)+(AA28^2)) -> 2.683826559 | AB30: =(IF(E5=AB2,0,IF(E4=AE3,2,1)*((1.05*((Y1*((Y6*AB27*AB28*AA1)+(AB29*AA2)+(AB8*AA3)+AA4))+7.2*AB8))+IF(E19<>AK2,8*VAT!V1,0))))/1.2*VAT!V1 -> 772.4396672 | AC30: =(IF(E5<>AB4,0,IF(E4=AE3,2,1)*((1.05*((Y1*((Y6*AC27*AC28*AA1)+(AC29*AA2)+(AB8*AA3)+AA4))+7.2*AB8))+IF(E19<>AK2,8*VAT!V1,0))))/1.2*VAT!V1 -> 0 | AD30: =(IF(E6=AD12,(1.05*((Y2*((Y7*AD27*AD28*AA1)+(AD29*AA2)+(3*AA3)+AA4))+7.2*3)+(+IF(E19<>AK2,6*VAT!V1,0))),))/1.2*VAT!V1 -> 219.6915 | AE30: =((IF(E7=AD12,1.05*((Y2*((Y7*AE27*AE28*AA1)+(AE29*AA2)+(3*AA3)+AA4))+7.2*3)+(IF(E19<>AK2,6*VAT!V1,0)),))*IF(E4=AE3,2,1))/1.2*VAT!V1 -> 0 | AF30: =((IF(E8=AD12,1.05*((Y2*((Y7*AF27*AF28*AA1)+(AF29*AA2)+(3*AA3)+AA4))+7.2*3)+(IF(E19<>AK2,6*VAT!V1,0)),))*IF(E4=AE3,2,1))/1.2*VAT!V1 -> 0
X31: Glazing bar length | Y31: =SQRT((Y24-Y23)^2+(Y28/2)^2) -> 0.5370723892 | Z31: perimeter | AA31: =((V78+(Y28/2)+(J74-J70+(0.07/(IF(B24>B26,B24,B26)/1000)))+(K82-K86+(0.07/(IF(B24>B26,B24,B26)/1000)))+(V70*1.5))*(IF(B24>B26,B24,B26)/1000))*1.05 -> 6.447
X32: 50mm links | Y32: =(0.035/(IF(B24>B26,B24,B26)/1000)) -> 0.0114379085 | AA32: =(IF(E4=AE3,2,1)*(((1.05*(Y1*((Y6*(AA30*0.6)*AA29*AA1)+(AA31*AA2)+(5*AA3)+AA4))+7.2*5))+IF(E19<>AK2,10*VAT!V1,0)))/1.2*VAT!V1 -> 798.6890476
N52: x | O52: y | P52: x | Q52: y | R52: x | S52: y | T52: x | U52: y | V52: x | W52: y
N53: front tri 1 | P53: mid tri 2 | R53: mid tri 3 | T53: back tri 4 | V53: back tri 5
N54: =IF(E6=AD12,Y32,) -> 0.0114379085 | O54: =IF(E6=AD12,W78+(AA25/2),) -> 0.6727124183 | P54: =IF(E7=AD12,P56-(AB25/2)+Y32,) -> 0 | Q54: =IF(E7=AD12,Y32,) -> 0 | R54: =IF(AND(E7=AD12,E4<>AE2),P56-(AB25/2)+Y32,) -> 0 | S54: =IF(AND(E7=AD12,E4<>AE2),W72-Y32,) -> 0 | T54: =IF(AND(E5=AB4,E8=AD12),T56-(AC25/2),) -> 0 | U54: =IF(AND(E5=AB4,E8=AD12),Y32,) -> 0 | V54: =IF(AND(E5=AB4,E8=AD12,E4<>AE2),T56-(AC25/2),) -> 0 | W54: =IF(AND(E5=AB4,E8=AD12,E4<>AE2),W72-Y32,) -> 0
N55: =IF(E6=AD12,AE16,) -> 0.0444877451 | O55: =IF(E6=AD12,O54-(AA25/4),) -> 0.5863562092 | P55: =IF(E7=AD12,P56-(AB25/4),) -> 0 | Q55: =IF(E7=AD12,AE15,) -> 0 | R55: =IF(AND(E7=AD12,E4<>AE2),P56-(AB25/4),) -> 0 | S55: =IF(AND(E7=AD12,E4<>AE2),W72-AE15,) -> 0 | T55: =IF(AND(E5=AB4,E8=AD12),T56-(AC25/4),) -> 0 | U55: =IF(AND(E5=AB4,E8=AD12),AE14,) -> 0 | V55: =IF(AND(E5=AB4,E8=AD12,E4<>AE2),T56-(AC25/4),) -> 0 | W55: =IF(AND(E5=AB4,E8=AD12,E4<>AE2),W72-AE15,) -> 0
N56: =IF(E6=AD12,AD16,) -> 0.05931699346 | O56: =IF(E6=AD12,O55-(AA25/4),) -> 0.5 | P56: =IF(E7=AD12,P62,) -> 0 | Q56: =IF(E7=AD12,AD15,) -> 0 | R56: =IF(AND(E7=AD12,E4<>AE2),P62,) -> 0 | S56: =IF(AND(E7=AD12,E4<>AE2),W73-AD15,) -> 0 | T56: =IF(AND(E5=AB4,E8=AD12),T62,) -> 0 | U56: =IF(AND(E5=AB4,E8=AD12),AD14,) -> 0 | V56: =IF(AND(E5=AB4,E8=AD12,E4<>AE2),T62,) -> 0 | W56: =IF(AND(E5=AB4,E8=AD12,E4<>AE2),W72-AD15,) -> 0
N57: =IF(E6=AD12,N55,) -> 0.0444877451 | O57: =IF(E6=AD12,O56-(AA25/4),) -> 0.4136437908 | P57: =IF(E7=AD12,P56+(AB25/4),) -> 0 | Q57: =IF(E7=AD12,AE15,) -> 0 | R57: =IF(AND(E7=AD12,E4<>AE2),P56+(AB25/4),) -> 0 | S57: =IF(AND(E7=AD12,E4<>AE2),W73-AE15,) -> 0 | T57: =IF(AND(E5=AB4,E8=AD12),T56+(AC25/4),) -> 0 | U57: =IF(AND(E5=AB4,E8=AD12),AE14,) -> 0 | V57: =IF(AND(E5=AB4,E8=AD12,E4<>AE2),T56+(AC25/4),) -> 0 | W57: =IF(AND(E5=AB4,E8=AD12,E4<>AE2),W72-AE15,) -> 0
N58: =N54 -> 0.0114379085 | O58: =IF(E6=AD12,W78-(AA25/2),) -> 0.3272875817 | P58: =IF(E7=AD12,P56+(AB25/2),) -> 0 | Q58: =Q54 -> 0 | R58: =IF(AND(E7=AD12,E4<>AE2),P56+(AB25/2),) -> 0 | S58: =IF(AND(E7=AD12,E4<>AE2),W72-Q54,) -> 0 | T58: =IF(AND(E5=AB4,E8=AD12),T56+(AC25/2),) -> 0 | U58: =U54 -> 0 | V58: =IF(AND(E5=AB4,E8=AD12,E4<>AE2),T56+(AC25/2),) -> 0 | W58: =IF(AND(E5=AB4,E8=AD12,E4<>AE2),W72-Y32,) -> 0
N59: =IF(E6=AD12,N60-(AA24/4),) -> 0.1348039216 | O59: =IF(E6=AD12,O58+((O62-O58)/1.8),) -> 0.4232389252 | P59: =IF(E7=AD12,P58-((P58-P62)/1.8),) -> 0 | Q59: =IF(E7=AD12,Q60-(AB24/4),) -> 0 | R59: =IF(AND(E7=AD12,E4<>AE2),P58-((P58-P62)/1.8),) -> 0 | S59: =IF(AND(E7=AD12,E4<>AE2),S60+(AB24/4),) -> 0 | T59: =IF(AND(E5=AB4,E8=AD12),T58-((T58-T62)/1.8),) -> 0 | U59: =IF(AND(E5=AB4,E8=AD12),U60-(AB24/4),) -> 0 | V59: =IF(AND(E8=AD12,E4<>AE2),T58-((T58-T62)/1.8),) -> 0 | W59: =IF(AND(E5=AB4,E8=AD12,E4<>AE2),W60+(AB24/4),) -> 0
N60: =IF(E6=AD12,N61-(AA24/4),) -> 0.2581699346 | O60: =IF(E6=AD12,O58+((O62-O58)*0.85),) -> 0.4740931373 | P60: =IF(E7=AD12,P58-((P58-P62)*0.85),) -> 0 | Q60: =IF(E7=AD12,(Y28/2)-(Y28/4),) -> 0 | R60: =IF(AND(E7=AD12,E4<>AE2),P58-((P58-P62)*0.85),) -> 0 | S60: =IF(AND(E7=AD12,E4<>AE2),W72-(Y28/4),) -> 0 | T60: =IF(AND(E5=AB4,E8=AD12),T58-((T58-T62)*0.85),) -> 0 | U60: =IF(AND(E5=AB4,E8=AD12),(Y28/2)-(Y28/4),) -> 0 | V60: =IF(AND(E8=AD12,E4<>AE2),T58-((T58-T62)*0.85),) -> 0 | W60: =IF(AND(E5=AB4,E8=AD12,E4<>AE2),W72-(Y28/4),) -> 0
N61: =IF(E6=AD12,N62-(AA24/4),) -> 0.3815359477 | O61: =IF(E6=AD12,O62-((O62-O58)*0.05),) -> 0.4913643791 | P61: =IF(E7=AD12,P62+((P58-P62)*0.05),) -> 0 | Q61: =IF(E7=AD12,Q60+(AB24/4),) -> 0 | R61: =IF(AND(E7=AD12,E4<>AE2),P62+((P58-P62)*0.05),) -> 0 | S61: =IF(AND(E7=AD12,E4<>AE2),S60-(AB24/4),) -> 0 | T61: =IF(AND(E5=AB4,E8=AD12),T62+((T58-T62)*0.05),) -> 0 | U61: =IF(AND(E5=AB4,E8=AD12),U60+(AB24/4),) -> 0 | V61: =IF(AND(E8=AD12,E4<>AE2),T62+((T58-T62)*0.05),) -> 0 | W61: =IF(AND(E5=AB4,E8=AD12,E4<>AE2),W60-(AB24/4),) -> 0
N62: =IF(E6=AD12,V78-Y32,) -> 0.5049019608 | O62: =IF(E6=AD12,W78,) -> 0.5 | P62: =IF(E7=AD12,V78,) -> 0 | Q62: =IF(E7=AD12,W78-Y32,) -> 0 | R62: =IF(AND(E7=AD12,E4<>AE2),V78,) -> 0 | S62: =IF(AND(E7=AD12,E4<>AE2),W78+Y32,) -> 0 | T62: =IF(AND(E5=AB4,E8=AD12),V78+(Y29/2),) -> 0 | U62: =IF(AND(E5=AB4,E8=AD12),W78-Y32,) -> 0 | V62: =IF(AND(E5=AB4,E8=AD12,E4<>AE2),T62,) -> 0 | W62: =IF(AND(E5=AB4,E8=AD12,E4<>AE2),(Y28/2)+Y32,) -> 0
N63: =N61 -> 0.3815359477 | O63: =O62+((O62-O58)*0.05) -> 0.5086356209 | P63: =IF(E7=AD12,P62-((P58-P62)*0.05),) -> 0 | Q63: =Q61 -> 0 | R63: =IF(AND(E7=AD12,E4<>AE2),P62-((P58-P62)*0.05),) -> 0 | S63: =S61 -> 0 | T63: =IF(AND(E5=AB4,E8=AD12),T62-((T58-T62)*0.05),) -> 0 | U63: =U61 -> 0 | V63: =IF(AND(E8=AD12,E4<>AE2),T62-((T58-T62)*0.05),) -> 0 | W63: =W61 -> 0
N64: =N60 -> 0.2581699346 | O64: =O66-((O62-O58)*0.85) -> 0.5259068627 | P64: =IF(E7=AD12,P66+((P62-P66)*0.85),) -> 0 | Q64: =Q60 -> 0 | R64: =IF(AND(E7=AD12,E4<>AE2),P66+((P62-P66)*0.85),) -> 0 | S64: =S60 -> 0 | T64: =IF(AND(E5=AB4,E8=AD12),T66+((T62-T66)*0.85),) -> 0 | U64: =U60 -> 0 | V64: =IF(AND(E8=AD12,E4<>AE2),T66+((T62-T66)*0.85),) -> 0 | W64: =W60 -> 0
N65: =N59 -> 0.1348039216 | O65: =O66-((O62-O58)/1.8) -> 0.5767610748 | P65: =P66+((P62-P66)/1.8) -> 0 | Q65: =Q59 -> 0 | R65: =IF(AND(E7=AD12,E4<>AE2),P66+((P62-P66)/1.8),) -> 0 | S65: =S59 -> 0 | T65: =T66+((T62-T66)/1.8) -> 0 | U65: =U59 -> 0 | V65: =IF(AND(E8=AD12,E4<>AE2),T66+((T62-T66)/1.8),) -> 0 | W65: =W59 -> 0
N66: =N54 -> 0.0114379085 | O66: =O54 -> 0.6727124183 | P66: =P54 -> 0 | Q66: =Q54 -> 0 | R66: =IF(AND(E7=AD12,E4<>AE2),P54,) -> 0 | S66: =S58 -> 0 | T66: =T54 -> 0 | U66: =U54 -> 0 | V66: =IF(AND(E8=AD12,E4<>AE2),T54,) -> 0 | W66: =W58 -> 0
J68: x | K68: y | L68: x | M68: y | N68: x | O68: y | P68: x | Q68: y | R68: x | S68: y | T68: x | U68: y | V68: Roof plan
J69: Sail 1 | L69: Sail 2 | N69: Sail 3 | P69: Sail 4 | R69: Sail 5 | T69: Sail 6 | V69: x-axis | W69: y-axis
J70: =V70+Y32 -> 0.1192810458 | K70: =Y32 -> 0.0114379085 | L70: =IF(E5<>AB2,V78+Y32-Y14,) -> 0.3235294118 | M70: =IF(E5<>AB2,Y32,) -> 0.0114379085 | N70: =IF(E4=AE2,0,Y32) -> 0.0114379085 | O70: =IF(E4=AE2,0,W72-AB21-Y32) -> 0.5114379085 | P70: =IF(E4=AE2,0,IF(E5=AB2,0,L82)) -> 0.5277777778 | Q70: =IF(E5=AB2,0,O74) -> 0.5114379085 | R70: =IF(E5=AB4,R74-AF22,) -> 0 | S70: =S74 -> 0 | T70: =IF(AND(E4=AE3,E5=AB4),R74-AF22,) -> 0 | U70: =IF(AND(E4=AE3,E5=AB4),(Y28/2)+Y32,) -> 0 | V70: =Y26-Y25 -> 0.1078431373 | W70: 0
J71: =J70+((J74-J70)/4) -> 0.266748366 | K71: =AB14 -> 0.06832107843 | L71: =IF(E5<>AB2,L70+(MAX(AD22:AE22)/4),) -> 0.470996732 | M71: =IF(E5<>AB2,AB19,) -> 0.05836397059 | N71: =IF(E4=AE2,0,J81) -> 0.1262254902 | O71: =IF(E4=AE2,0,O70+AB13+(Y10/4)) -> 0.5687663399 | P71: =IF(E4=AE2,0,IF(E5=AB2,0,L81)) -> 0.6241830065 | Q71: =IF(E4=AE2,0,IF(E5=AB2,0,Q70+AB18)) -> 0.5598447712 | R71: =IF(E5=AB4,R72-(AF22/4),) -> 0 | S71: =IF(E5=AB4,AE19,) -> 0 | T71: =IF(AND(E4=AE3,E5=AB4),R72-(AF22/4),) -> 0 | U71: =IF(AND(E4=AE3,E5=AB4),AE19+(Y28/2),) -> 0 | V71: =Y26 -> 0.9248366013 | W71: 0
J72: =J71+((J74-J70)/4) -> 0.4142156863 | K72: =AA14 -> 0.09109477124 | L72: =IF(E5=AB3,L74-(L74-L70)/2,IF(E5=AB4,L74-(L74-L70)/2,)) -> 0.6184640523 | M72: =IF(E5<>AB2,AA19) -> 0.07781862745 | N72: =IF(E4=AE2,0,J80) -> 0.2524509804 | O72: =IF(E4=AE2,0,O70+AA13+(Y10/2)) -> 0.587875817 | P72: =IF(E4=AE2,0,IF(E5=AB2,0,L80)) -> 0.7205882353 | Q72: =IF(E4=AE2,0,IF(E5=AB2,0,Q70+AA18)) -> 0.5759803922 | R72: =IF(E5=AB4,R73-(AF22/4),) -> 0 | S72: =IF(E5=AB4,AD19,) -> 0 | T72: =IF(AND(E4=AE3,E5=AB4),R73-(AF22/4),) -> 0 | U72: =IF(AND(E4=AE3,E5=AB4),AD19+(Y28/2),) -> 0 | V72: =Y26 -> 0.9248366013 | W72: =Y28 -> 1
J73: =J72+((J74-J70)/4) -> 0.5616830065 | K73: =AB14 -> 0.06832107843 | L73: =IF(E5<>AB2,L74-(MAX(AD22:AE22)/4),) -> 0.7659313725 | M73: =IF(E5<>AB2,M71,) -> 0.05836397059 | N73: =IF(E4=AE2,0,J79) -> 0.3786764706 | O73: =IF(E4=AE2,0,O74+AB13-(Y10/4)) -> 0.5687663399 | P73: =P72+(P72-P71) -> 0.8169934641 | Q73: =IF(E5=AB2,0,Q71) -> 0.5598447712 | R73: =IF(E5=AB4,R74-(AF22/4),) -> 0 | S73: =IF(E5=AB4,S71,) -> 0 | T73: =IF(AND(E4=AE3,E5=AB4),R74-(AF22/4),) -> 0 | U73: =IF(AND(E4=AE3,E5=AB4),S71+(Y28/2),) -> 0 | V73: =V70 -> 0.1078431373 | W73: =Y28 -> 1
J74: =V83-Y32+Y14 -> 0.7091503268 | K74: =Y32 -> 0.0114379085 | L74: =IF(E5<>AB2,L78,) -> 0.9133986928 | M74: =IF(E5<>AB2,Y32,) -> 0.0114379085 | N74: =IF(E4=AE2,0,IF(E5=AB2,J78,J78)) -> 0.5049019608 | O74: =IF(E4=AE2,0,W73-AA21-Y32) -> 0.5114379085 | P74: =IF(E4=AE2,0,IF(E5=AB2,0,P70+AC22+Y18)) -> 0.9133986928 | Q74: =IF(E5=AB2,0,Q70) -> 0.5114379085 | R74: =IF(E5=AB4,V71-Y32,) -> 0 | S74: =IF(E5=AB4,Y32,) -> 0 | T74: =IF(AND(E4=AE3,E5=AB4),V72-Y32,) -> 0 | U74: =IF(AND(E4=AE3,E5=AB4),U70,) -> 0 | V74: 0 | W74: =(Y28/2)+(Y27/2) -> 0.704248366
J75: =J74-AB12-(Y14/2.75) -> 0.5887997623 | K75: =AA21/4 -> 0.1192810458 | L75: =IF(E5<>AB2,L74-AB17,) -> 0.8560702614 | M75: =IF(E5<>AB2,K75,) -> 0.1192810458 | N75: =IF(E4=AE2,0,J77) -> 0.495959596 | O75: =IF(E4=AE2,0,(AA21/4)+(Y28/2)) -> 0.6192810458 | P75: =IF(E4=AE2,0,IF(E5=AB2,0,P74-AB17)) -> 0.8560702614 | Q75: =IF(E5=AB2,0,O75) -> 0.6192810458 | R75: =IF(E5=AB4,R74-AE18,) -> 0 | S75: =IF(E5=AB4,M75,) -> 0 | T75: =IF(AND(E4=AE3,E5=AB4),R74-AE18,) -> 0 | U75: =IF(AND(E4=AE3,E5=AB4),Q75,) -> 0 | V75: 0 | W75: =(Y28/2)-(Y27/2) -> 0.295751634
J76: =J74-AA12-(Y14/1.6) -> 0.5200571895 | K76: =Y28/4 -> 0.25 | L76: =IF(E5<>AB2,L74-AA17,) -> 0.8369607843 | M76: =IF(E5<>AB2,K76,) -> 0.25 | N76: =IF(E4=AE2,0,J76) -> 0.5200571895 | O76: =IF(E4=AE2,0,(Y28/4)+(Y28/2)) -> 0.75 | P76: =IF(E4=AE2,0,IF(E5=AB2,0,P74-AA17)) -> 0.8369607843 | Q76: =IF(E5=AB2,0,O76) -> 0.75 | R76: =IF(E5=AB4,R74-AD18,) -> 0 | S76: =IF(E5=AB4,M76,) -> 0 | T76: =IF(AND(E4=AE3,E5=AB4),R74-AD18,) -> 0 | U76: =IF(AND(E4=AE3,E5=AB4),Q76,) -> 0 | V76: =V70 -> 0.1078431373 | W76: 0
J77: =J78-AB12+(Y14/5.5) -> 0.495959596 | K77: =(AA21*0.75) -> 0.3578431373 | L77: =L75 -> 0.8560702614 | M77: =IF(E5<>AB2,K77,) -> 0.3578431373 | N77: =IF(E4=AE2,0,J75) -> 0.5887997623 | O77: =IF(E4=AE2,0,(AA21*0.75)+(Y28/2)) -> 0.8578431373 | P77: =P75 -> 0.8560702614 | Q77: =IF(E5=AB2,0,O77) -> 0.8578431373 | R77: =IF(E5=AB4,R75,) -> 0 | S77: =IF(E5=AB4,M77,) -> 0 | T77: =IF(AND(E4=AE3,E5=AB4),T75,) -> 0 | U77: =IF(E5=AB4,Q77,) -> 0 | V77: =V70 -> 0.1078431373 | W77: =W70 -> 0
J78: =V83-Y32 -> 0.5049019608 | K78: =(Y28/2)-Y32 -> 0.4885620915 | L78: =IF(E5=AB3,Y26-Y32,IF(E5=AB4,V78+(Y29/4)+(AE22/2)+(Y18/2),)) -> 0.9133986928 | M78: =IF(E5<>AB2,(Y28/2)-Y32,) -> 0.4885620915 | N78: =IF(E4=AE2,0,J74) -> 0.7091503268 | O78: =IF(E4=AE2,0,Y28-Y32) -> 0.9885620915 | P78: =IF(E5=AB2,0,P74) -> 0.9133986928 | Q78: =IF(E5=AB2,0,O78) -> 0.9885620915 | R78: =IF(E5=AB4,R74,) -> 0 | S78: =IF(E5=AB4,M78,) -> 0 | T78: =IF(AND(E4=AE3,E5=AB4),R74,) -> 0 | U78: =IF(E5=AB4,Q78,) -> 0 | V78: =Y26-Y29 -> 0.5163398693 | W78: =Y28/2 -> 0.5
J79: =J78*0.75 -> 0.3786764706 | K79: =K78-AB13+(Y10/4) -> 0.4312336601 | L79: =IF(E5<>AB2,L78-(AE22/4),) -> 0.8169934641 | M79: =IF(E5<>AB2,(Y28/2)-AB18,) -> 0.4515931373 | N79: =IF(E4=AE2,0,J73) -> 0.5616830065 | O79: =IF(E4=AE2,0,W72-K73) -> 0.9316789216 | P79: =IF(E4=AE2,0,IF(E5=AB2,0,L73)) -> 0.7659313725 | Q79: =IF(E4=AE2,0,IF(E5=AB2,0,Q78-AB19)) -> 0.9301981209 | R79: =IF(E5=AB4,R73,) -> 0 | S79: =IF(E5=AB4,(Y28/2)-AE19,) -> 0 | T79: =IF(AND(E4=AE3,E5=AB4),R73,) -> 0 | U79: =IF(AND(E4=AE3,E5=AB4),W72-AE19,) -> 0 | V79: =V73 -> 0.1078431373 | W79: =W73 -> 1
J80: =J78/2 -> 0.2524509804 | K80: =K82-AA13-(Y10/2) -> 0.412124183 | L80: =IF(E5<>AB2,L79-(AE22/4),) -> 0.7205882353 | M80: =IF(E5<>AB2,(Y28/2)-AA18,) -> 0.4354575163 | N80: =IF(E4=AE2,0,J72) -> 0.4142156863 | O80: =IF(E4=AE2,0,W72-K72) -> 0.9089052288 | P80: =IF(E4=AE2,0,IF(E5=AB2,0,L72)) -> 0.6184640523 | Q80: =IF(E4=AE2,0,IF(E5=AB2,0,Q78-AA19)) -> 0.9107434641 | R80: =IF(E5=AB4,R72,) -> 0 | S80: =IF(E5=AB4,(Y28/2)-AD19,) -> 0 | T80: =IF(AND(E4=AE3,E5=AB4),R72,) -> 0 | U80: =IF(AND(E4=AE3,E5=AB4),W72-AD19,) -> 0 | V80: =V75 -> 0 | W80: =W75 -> 0.295751634
J81: =J78/4 -> 0.1262254902 | K81: =K82-AB13-(Y10/4) -> 0.4312336601 | L81: =IF(E5<>AB2,L80-(AE22/4),) -> 0.6241830065 | M81: =IF(E5<>AB2,(Y28/2)-AB18,) -> 0.4515931373 | N81: =IF(E4=AE2,0,J71) -> 0.266748366 | O81: =IF(E4=AE2,0,W72-K71) -> 0.9316789216 | P81: =IF(E4=AE2,0,IF(E5=AB2,0,L71)) -> 0.470996732 | Q81: =IF(E5=AB2,0,Q79) -> 0.9301981209 | R81: =IF(E5=AB4,R71,) -> 0 | S81: =IF(E5=AB4,S79,) -> 0 | T81: =IF(AND(E4=AE3,E5=AB4),R71,) -> 0 | U81: =IF(E5=AB4,U79,) -> 0 | V81: =V78 -> 0.5163398693 | W81: =Y28/2 -> 0.5
J82: =Y32 -> 0.0114379085 | K82: =K78+Y10 -> 0.4885620915 | L82: =IF(E5<>AB2,V78+Y32,) -> 0.5277777778 | M82: =IF(E5<>AB2,M78,) -> 0.4885620915 | N82: =IF(E4=AE2,0,J70) -> 0.1192810458 | O82: =O78 -> 0.9885620915 | P82: =IF(E4=AE2,0,IF(E5=AB2,0,L86)) -> 0.3235294118 | Q82: =IF(E5=AB2,0,Q78) -> 0.9885620915 | R82: =IF(E5=AB4,R70,) -> 0 | S82: =IF(E5=AB4,S78,) -> 0 | T82: =IF(AND(E4=AE3,E5=AB4),R70,) -> 0 | U82: =IF(E5=AB4,U78,) -> 0 | V82: =V74 -> 0 | W82: =W74 -> 0.704248366
J83: =AB15 -> 0.02849264706 | K83: =K82-((K82-K86)/4) -> 0.4403594771 | L83: =IF(E5<>AB2,L82+AB17-(Y14/5.5),) -> 0.5479701426 | M83: =M77 -> 0.3578431373 | N83: =IF(E4=AE2,0,J89) -> 0.1073529412 | O83: =IF(E4=AE2,0,W73-K89) -> 0.9112745098 | P83: =IF(E4=AE2,0,IF(E5=AB2,0,L85)) -> 0.4551299762 | Q83: =Q77 -> 0.8578431373 | R83: =IF(E5=AB4,R82+AE18,) -> 0 | S83: =IF(E5=AB4,S77,) -> 0 | T83: =IF(AND(E4=AE3,E5=AB4),R82+AE18,) -> 0 | U83: =IF(E5=AB4,Q83,) -> 0 | V83: =V78 -> 0.5163398693 | W83: =Y28/2 -> 0.5
J84: =AA15 -> 0.03799019608 | K84: =K83-((K82-K86)/4) -> 0.3921568627 | L84: =IF(E5<>AB2,L86+AA17+(Y14/1.6),) -> 0.527622549 | M84: =IF(E5<>AB2,M76,) -> 0.25 | N84: =IF(E4=AE2,0,J88) -> 0.07753267974 | O84: =IF(E4=AE2,0,W73-K88) -> 0.8077614379 | P84: =IF(E4=AE2,0,IF(E5=AB2,0,L84)) -> 0.527622549 | Q84: =IF(E5=AB2,0,Q76) -> 0.75 | R84: =IF(E5=AB4,R82+AD18,) -> 0 | S84: =IF(E5=AB4,S76,) -> 0 | T84: =IF(AND(E4=AE3,E5=AB4),R82+AD18,) -> 0 | U84: =IF(E5=AB4,Q84,) -> 0 | V84: =Y26 -> 0.9248366013 | W84: =W83 -> 0.5
J85: =AB15 -> 0.02849264706 | K85: =K84-((K82-K86)/4) -> 0.3439542484 | L85: =IF(E5<>AB2,L86+AB17+(Y14/2.75),) -> 0.4551299762 | M85: =M75 -> 0.1192810458 | N85: =IF(E4=AE2,0,J87) -> 0.0477124183 | O85: =IF(E4=AE2,0,W73-K87) -> 0.7486111111 | P85: =IF(E4=AE2,0,IF(E5=AB2,0,L83)) -> 0.5479701426 | Q85: =Q75 -> 0.6192810458 | R85: =IF(E5=AB4,R83,) -> 0 | S85: =IF(E5=AB4,S75,) -> 0 | T85: =IF(AND(E4=AE3,E5=AB4),T83,) -> 0 | U85: =IF(E5=AB4,Q85,) -> 0
J86: =V75+Y32 -> 0.0114379085 | K86: =W75 -> 0.295751634 | L86: =IF(E5<>AB2,L70,) -> 0.3235294118 | M86: =IF(E5<>AB2,Y32,) -> 0.0114379085 | N86: =IF(E4=AE2,0,Y32) -> 0.0114379085 | O86: =IF(E4=AE2,0,W74) -> 0.704248366 | P86: =IF(E5=AB2,0,P70) -> 0.5277777778 | Q86: =IF(E5=AB2,0,Q70) -> 0.5114379085 | R86: =IF(E5=AB4,R70,) -> 0 | S86: =IF(E5=AB4,S74,) -> 0 | T86: =IF(AND(E4=AE3,E5=AB4),R70,) -> 0 | U86: =IF(E5=AB4,U70,) -> 0
J87: =J90*0.4 -> 0.0477124183 | K87: =K86*0.85 -> 0.2513888889 | N87: =IF(E4=AE2,0,J83) -> 0.02849264706 | O87: =IF(E4=AE2,0,O86-((O86-O90)/4)) -> 0.6560457516
J88: =J90*0.65 -> 0.07753267974 | K88: =K86*0.65 -> 0.1922385621 | N88: =IF(E4=AE2,0,J84) -> 0.03799019608 | O88: =IF(E4=AE2,0,O87-((O86-O90)/4)) -> 0.6078431373
J89: =J90*0.9 -> 0.1073529412 | K89: =K86*0.3 -> 0.0887254902 | N89: =IF(E4=AE2,0,J85) -> 0.02849264706 | O89: =IF(E4=AE2,0,O88-((O86-O90)/4)) -> 0.5596405229
J90: =J70 -> 0.1192810458 | K90: =K70 -> 0.0114379085 | N90: =IF(E4=AE2,0,J82) -> 0.0114379085 | O90: =O70 -> 0.5114379085

Sheet 

Sheet 

Sheet 
A1: Additional Costs | K1: Roof Lantern | L1: ='Roof Lantern'!K21 -> 1094.343353 | M1: =IF(L1<A3,B3,0) -> 0 | N1: =L1+M1 -> 1094.343353 | O1: =L1*A6 -> 164.151503 | P1: =N1+O1 -> 1258.494856
A2: If job value is below (incl. VAT) | B2: Then add (incl. VAT) | K2: Lean To | L2: ='Lean To'!K21 -> 1790.797104 | M2: =IF(L2<A3,B3,0) -> 0 | N2: =L2+M2 -> 1790.797104 | O2: =L2*A6 -> 268.6195656 | P2: =O2+N2 -> 2059.416669
A3: 1200 | B3: 0 | K3: Lean To Hipped | L3: ='Lean To Hipped'!K21 -> 1881.680942 | M3: =IF(L3<A3,B3,0) -> 0 | N3: =L3+M3 -> 1881.680942 | O3: =L3*A6 -> 282.2521413 | P3: =O3+N3 -> 2163.933083
K4: Georgian Gable | L4: ='Georgian Gable'!K21 -> 2552.122431 | M4: =IF(L4<A3,B3,0) -> 0 | N4: 2552.122431 | O4: =L4*A6 -> 382.8183646 | P4: 2934.940796
A5: Margin | K5: Georgian Hipped | L5: ='Georgian Hipped'!K23 -> 2689.20748 | M5: =IF(L5<A3,B3,0) -> 0 | N5: 2689.20748 | O5: =L5*A6 -> 403.381122 | P5: 3092.588602
A6: 0.15 | K6: Georgian Double Hipped | L6: ='Georgian Double Hipped'!$J$25 -> 3071.280211 | M6: =IF(L6<A3,B3,0) -> 0 | N6: 3071.280211 | O6: =L6*A6 -> 460.6920317 | P6: 3531.972243
K7: Victorian | L7: =Victorian!K23 -> 1802.970215 | M7: =IF(L7<A3,B3,0) -> 0 | N7: =L7+M7 -> 1802.970215 | O7: =L7*A6 -> 270.4455322 | P7: =O7+N7 -> 2073.415747
A8: Type in your messages below
K11: 0
K12: 0.05
K13: 0.1
K14: 0.15

Sheet VAT
V1: =B2+1 -> 1.2
B2: 0.2
A3: VAT =
